Workbook

Sheet Part 1
A1: LOUISIANA MOTOR FUELS UNDERGROUND STORAGE TANK
A2: TRUST FUND REIMBURSEMENT APPLICATION
A3: PART 1
A4: SITE IDENTIFICATION
A5: FOR DEQ OFFICE USE ONLY | E5: DATE RECEIVED/DATE TO BE ENTERED ON EDMS
A6: TF No. | C6: Reviewer’s Due Date
A7: Reviewer Name
A8: APPLICATIONS WILL BE REJECTED FOR ANY OF THE FOLLOWING REASONS:
A9: 1. Proof of payment of the appropriate deductible is not provided.
A11: 2. Neither a work plan or sufficient budget has been approved by the DEQ prior to the submittal of charges.
A13: 3. Refer to section I.C.15.f of the Guidance Document for the complete list of reasons.
D17: =IF(OR(A20="",E20="",A22="",E22="",A24="",G24="",E24=""),"MISSING INFORMATION","") -> MISSING INFORMATION
A18: A. SITE/OWNER INFORMATION
A19: Site Name – Current Name | E19: Name of Responsible Party as Identified in Part 2 - Affidavit
A21: DEQ Issued Agency Interest No. | E21: DEQ Issued Owner Identification Number of Responsible Party
A23: Site Street Address – Physical Address, Not P.O. Box | E23: City | G23: Parish
J24: =IF(OR(E29>0,E31>0,E33>0,E35>0),1,0) -> 0 | K24: Print check
A26: B. APPLICATION INFORMATION
A27: 1. This application includes ALL INVOICES to the owner (responsible party) dated from: [Check appropriate quarter(s) and indicate
A28: year(s)]: | J28: Quarters | K28: Fiscal Years
J29: FALSE
J31: FALSE
F32: =IF(OR(AND(E29="",E31="",E33="",E35=""),OR(AND(E29>0,J29=FALSE),AND(E29="",J29=TRUE),AND(E31>0,J31=FALSE),AND(E31="",J31=TRUE),AND(E33>0,J33=FALSE),AND(E33="",J33=TRUE),AND(E35>0,J35=FALSE),AND(E35="",J35=TRUE))),"MISSING INFORMATION",IF(OR(AND(AND(E29>0,E31>0),E31-E29<>0),AND(AND(E29>0,E33>0),E33-E29<>1),AND(AND(E31>0,E33>0),E33-E31<>1),AND(AND(E29>0,E35>0),E35-E29<>1),AND(AND(E31>0,E35>0),E35-E31<>1),AND(AND(E33>0,E35>0),E35-E33<>0)),"APP CROSSES FISCAL YEARS","")) -> MISSING INFORMATION | K32: =IF(F32="APP CROSSES FISCAL YEARS", TRUE,FALSE) -> FALSE
J33: FALSE
J35: FALSE
A37: Application requests must include all invoices dated during at least one calendar quarter: July through September, October through December, January through March, or April through June. A single application may include invoices which cover more than one calendar quarter, provided the application includes all invoice for the entire calendar quarter or quarters. However, all multiple calendar quarter invoices must be dated within a single state fiscal year, July 1 - June 30. Once an application is submitted to DEQ, invoices for the period submitted or any prior periods WILL NOT be accepted. Overlapping "Work Performed" dates in subsequent applications is not permitted. When the site’s RAC changes during a quarter, two separate applications addressing each RAC's work should be submitted.
A43: 2. Application Grand Total (Reflecting the eligible pre-approved costs shown on Part 5 of this application) : | H43: =+'Part 5'!A3 -> 0
A44: 3. If applicable, indicate the following: | J44: First App?
J45: FALSE
J46: FALSE
A47: (Any application submitted to the Trust Fund Management Section for work performed on or after July 1, 2025 must be submitted on this form.)

Sheet Part 1 Cont'd
A1: PART 1 (cont’d)
A3: C. RELEASE INFORMATION | C3: =IF(AND(A6="",A7="",A8="",A9="",A10="",A11=""),"MISSING INFORMATION","") -> MISSING INFORMATION
A5: Incident No(s). Use the numeric value | B5: Date Released | C5: Substance(s) Released
A14: D. CORRECTIVE ACTION PLAN AND ADDENDUMS
A16: Addendum Submittal Date | B16: CAP Category | D16: DEQ Approval Date | G16: Approved Cost
A26: I certify the following:
A27: • I have reviewed the time sheets and the personnel charges and verify that they are in line with the duties indicated
A28: in the UST Trust Fund Cost Control Guidance Document in effect at the time the work was performed;
A29: • the rates identified in this application are in accordance with the response action contractor equipment rate sheet;
A30: • the travel charges contained in this application are based on the mileage logs which indicate the person traveling,
A31: distance traveled and beginning/ending odometer readings;
A32: • I personally examined and am familiar with the information submitted with this application, and that I
A33: believe that the submitted information is true, accurate and complete.
A35: Preparer’s Certification (Original Signature Required) | D35: Date Signed
A36: =IF(OR(B37="",F37="",B38="",B40="",F38=""),"MISSING INFORMATION","") -> MISSING INFORMATION
A37: Preparer’s Name | D37: Firm Name
A38: Telephone Number | D38: Mailing Address
A39: Telefax Number
A40: Email Address

Sheet Part 2
A1: PART 2
A2: OWNER, OPERATOR, OR RESPONSIBLE PARTY CERTIFICATION AFFIDAVIT
A4: I certify that I have researched and determined that I have no assistance from private sources, such as
A5: insurance or other means of financial assurance, to pay for investigation or remediation costs at this site. I also
A6: certify that all outstanding financial obligations integral to this site investigation/remediation have been met.
A8: I certify that this program task has been completed in accordance with La. R.S. 30:2194 et seq and La R.S.
A9: 30:2195 et seq. I have reviewed and certify that all data and documentation represented on invoices listed in
A10: section D are a true and correct representation of costs actually incurred as an integral part of site
A11: rehabilitation from motor fuel contamination and that reimbursement from the Motor Fuels Underground
A12: Storage Tank Trust Fund has not been received on any of the charges identified in this application.
A14: The site owner, operator, or responsible party warrants that he has not received any fee, commission,
A15: percentage, gift, or other consideration as a result of his employment of a person, company, corporation,
A16: individual, or firm for purposes of conducting the site assessment or rehabilitation.
A17: If charges within this application are being applied toward the deductible(s), the following statement must be certified by checking the box below:
A18: The responsible party received an invoice for the applicable deductible from the Department for the incident(s) associated with this application.
A19: deductible [canceled checks and a list of corresponding invoices or Proof of Payment of Deductible Affidavit (Part 2A)] is attached.
A21: A. Site Owner, Operator, Responsible Party | I21: I. Site Name
A22: =IF('Part 1'!E20="","",'Part 1'!E20) ->  | I22: =IF('Part 1'!A20>0,'Part 1'!A20,"") -> 
A23: B. Mailing Address | I23: J. Site Address
I24: Physical Address | J24: =IF('Part 1'!A24>0,'Part 1'!A24,"") -> 
A25: City | D25: State | G25: Zip | I25: City | L25: Parish
I26: =IF('Part 1'!E24>0,'Part 1'!E24,"") ->  | L26: =IF('Part 1'!G24>0,'Part 1'!G24,"") -> 
A27: C. Telephone/Telefax Numbers | I27: K. Agency Interest Number
A28: Telephone | E28: Telefax | I28: =IF('Part 1'!A22>0,'Part 1'!A22,"") -> 
A29: D. RAC/Owner Invoice No(s). | E29: =IF(N29="","",LEFT(N29,LEN(N29)-2)) ->  | N29: =CONCATENATE('Part 4'!Q12,'Part 4'!Q13,'Part 4'!Q14,'Part 4'!Q15,'Part 4'!Q16,'Part 4'!Q17,'Part 4'!Q18,'Part 4'!Q19,'Part 4'!Q20,'Part 4'!Q21,'Part 4'!Q22,'Part 4'!Q23,'Part 4'!Q24,'Part 4'!Q25,'Part 4'!Q26,'Part 4'!Q27,'Part 4'!Q28,'Part 4'!Q29,'Part 4'!Q30,'Part 4'!Q31,) -> 
A30: E. Signature of person designated to sign for the owner, operator, or responsible party | I30: L. Federal Tax ID# if applicable (SSN not applicable)
A32: F. Check the appropriate box below. The contract for work addressed in this application was signed:
A33: Before August 1, 1995, the owner/operator/responsible party receives reimbursement. | N33: FALSE
A34: On or after August 1, 1995, and as required by Act 336 of the 1995 Regular Session, the RAC receives reimbursement | N34: FALSE
A35: G. Invoices to the owner (responsible party) addressed in this application are dated for the following quarters: [Check appropriate quarter(s) and indicate year(s)]
A36: July 1, -Sept 30, . | E36: Oct. 1, -Dec. 31, . | I36: Jan 1, - Mar 31, . | L36: Apr 1, - June 30, .
A37: H. Program Grand Task Total Addressed in Part 1, Part 3 and Part 5 | I37: ='Part 5'!A3 -> 0
A38: Before me, the undersigned notary public, came and appeared | L38: (please print or type the name
A39: shown in E above), who, being known to me, did execute the foregoing certification affidavit in my presence, who, being duly sworn,
A40: did state under oath or affirmation that he/she executed said document for the purpose expressed therein.
A42: WITNESS my hand and official seal, this | H42: day of, | J42: ,
I44: My commission expires
A45: Notary Public (Signature)
A48: Notary Public Name (Printed, typed, or stamped) | I48: Notary # or Bar Roll #( if a Louisiana notary)
A50: State of | I50: County or Parish of

Sheet Part2A Deductible
A1: PART 2.A
A2: PROOF OF PAYMENT OF DEDUCTIBLE AFFIDAVIT
A3: (To be completed by Response Action Contractor)
A5: I, (signature of principal or his designee for the response action contractor) certify
A6: that payments were made to | K6: (name of response
A7: action contractor) in the amounts specified below, which were integral to the investigation/remediation of the
A8: below specified site.
A9: A. Name of Site
A10: =IF('Part 1'!A20>0,'Part 1'!A20,"") -> 
A11: B. Site Address (Physical address, city)
A12: =IF('Part 1'!A24>0,'Part 1'!A24&", "&'Part 1'!E24,"") -> 
A13: C. Parish | F13: D. Site AI No. | J13: E. Incident No.
A14: =IF('Part 1'!G24>0,'Part 1'!G24,"") ->  | F14: =IF('Part 1'!A22>0,'Part 1'!A22,"") -> 
A15: Invoice No. | C15: Date of Payment Received | F15: Check No. | J15: Amount
A16: (As contained in application) | N16: =IF(J26>0,1,0) -> 0
A26: Total Deductible Amount Addressed in Affidavit | J26: =SUM(J17:K25) -> 0
A27: =IF(OR(C6="",J14="",AND(OR(A17="",C17="",F17="",J17=""),OR(A18="",C18="",F18="",J18=""),OR(A19="",C19="",F19="",J19=""),OR(A20="",C20="",F20="",J20=""),OR(A21="",C21="",F21="",J21=""),OR(A22="",C22="",F22="",J22=""),OR(A23="",C23="",F23="",J23=""),OR(A24="",C24="",F24="",J24=""),OR(A25="",C25="",F25="",J25=""))),"MISSING INFORMATION","") -> MISSING INFORMATION
A29: Before me, the undersigned notary public, came and appeared | J29: (please print or type the name
A30: shown in first Paragraph), who, being known to me, did execute the foregoing certification affidavit in my presence, and who, being
A31: duly sworn, did state under oath or affirmation that he/she executed said document for the purpose expressed therein.
A33: WITNESS my hand and official seal, this | F33: day of, | J33: ,
G35: My commission expires
A36: Notary Public (Signature)
A38: Notary Public Name (Printed, typed, or stamped) | G38: Notary # or Bar Roll #( if a Louisiana notary)
A40: State of | G40: County or Parish of

Sheet Part 3
A1: PART 3
A2: RESPONSE ACTION CONTRACTOR CERTIFICATION AFFIDAVIT
A4: I certify that this program task has been completed in accordance with La. R.S. 30:2194 et seq and La. R.S. 30:2195 et seq.
A5: I have reviewed and certify that all data and documentation submitted as part of this reimbursement application are a true and
A6: correct representation of costs actually incurred as an integral part of site rehabilitation from motor fuel contamination. I also
A7: certify that reimbursement from the Motor Fuels Underground Storage Tank Trust Fund has not been received on any of the
A8: charges identified in this application. I agree to reimburse the owner, operator, or the responsible party of the referenced site
A9: any monies due to him upon reimbursement from the Motor Fuels Underground Storage Tank Trust Fund.
A11: The person responsible for conducting site rehabilitation warrants that he/she has not received any fee, commission,
A12: percentage, gift, or other consideration as a result of his employment of a person, company, corporation, individual, firm, or
A13: other legal entity for purposes of conducting the site assessment or rehabilitation. Copies of mileage logs, detailed timesheets
A14: and RAC equipment rental rates sheets will be maintained for a period of four years following reimbursement for auditing
A15: purposes and will be readily available upon request by the DEQ or a DEQ contractor.
O17: FALSE
A19: A. Name principal/president of the company responsible for | G19: H. Company Name
A20: conducting the site assessment/rehabilitation
A22: B. Mailing Address | G22: I. Response Action Contractor Telephone/Telefax Numbers
G23: Telephone
A24: City: | C24: State | F24: Zip | G24: Telefax
A26: C. Facility Name | G26: J. Agency Interest Number
A27: =IF(+'Part 1'!A20="","",'Part 1'!A20) ->  | G27: =IF(+'Part 1'!A22="","",+'Part 1'!A22) -> 
A28: D. Signature of the principal/president of the company or his designee responsible for conducting site assessment/rehabilitation | G28: K. Federal Tax ID# if applicable
A30: =IF(OR(A21="",G21="",A23="",I23="",A25="",A27="",G27="",C25="",F25="",AND(O32=FALSE,O33=FALSE),AND(O35=FALSE,P35=FALSE,Q35=FALSE,R35=FALSE),G36=0),"MISSING INFORMATION","") -> MISSING INFORMATION
A31: E. Check appropriate box below. The contract for work addressed in this application was signed:
A32: Before August 1, 1995, the owner/operator/responsible party receives reimbursement. | O32: FALSE
A33: On or after August 1, 1995, and as required by Act 336 of the 1995 Regular Session, the RAC receives reimbursement | O33: FALSE
A34: F. Invoices to the owner (responsible party) addressed in this application are dated for the following quarters: [Check appropriate quarter(s) and indicate year(s)]
A35: July 1, - Sept 30, . | D35: Oct. 1, - Dec. 31, . | G35: Jan 1, - Mar 31, . | L35: Apr 1, - June 30, . | O35: ='Part 1'!J29 -> FALSE | P35: ='Part 1'!J31 -> FALSE | Q35: ='Part 1'!J33 -> FALSE | R35: ='Part 1'!J35 -> FALSE
A36: G. Program Grand Task Total Addressed in Part 1, Part 2 and Part 5 | G36: ='Part 5'!A3 -> 0
A37: Before me, the undersigned notary public, came and appeared | L37: (please print or type the name
A38: shown in D above), who, being known to me, did execute the foregoing certification affidavit in my presence, who, being duly sworn,
A39: did state under oath or affirmation that he/she executed said document for the purpose expressed therein.
A41: WITNESS my hand and official seal, this | G41: day of, | L41: ,
G43: My commission expires
A44: Notary Public (Signature)
A47: Notary Public Name (Printed, Typed, or Stamped) | G47: Notary # or Bar Roll #( if a Louisiana notary)
A49: State of | G49: County or Parish of

Sheet Part 4
A1: PART 4
A2: RAC OR OWNER INVOICE SUMMARY
A4: List in chronological order, all RAC invoices to the owner and all other invoices billed directly to the owner on this sheet. Each application can
A5: not address invoices dated for a period of more than one fiscal year (July 1 - June 30). Copies of all listed invoices must be attached.
A6: Outside invoices/receipts must be attached to the appropriate RAC/Owner Invoice.
G7: =IF(OR(G8="",J8="",L32>0,AND(N13=0,L32=0)),"MISSING INFORMATION","") -> MISSING INFORMATION
A8: Site Name | B8: =IF('Part 1'!A20>0,'Part 1'!A20,"") ->  | F8: Invoicing Period | H8: through
A9: Site Address | B9: =IF('Part 1'!A24<>"",('Part 1'!A24&", "&'Part 1'!E24&", "&'Part 1'!G24&" Parish"),"") ->  | H9: AIN | I9: =IF('Part 1'!A22>0,'Part 1'!A22,"") -> 
A10: WORKED PERFORMED (TIME PERIOD) | C10: INVOICE DATE | D10: COMPANY NAME | F10: INVOICE NO. | G10: AMOUNT | H10: RAC INVOICE DESCRIPTION | L10: Missing Invoice Info
L12: =IF(OR(AND(A12="",OR(C12>0,D12>0,F12>0,G12>0)), AND(C12="",OR(A12>0,D12>0,F12>0,G12>0)), AND(D12="",OR(A12>0,C12>0,F12>0,G12>0)), AND(F12="",OR(A12>0,C12>0,D12>0,G12>0)), AND(G12="",OR(A12>0,C12>0,D12>0,F12>0))),TRUE,FALSE) -> FALSE | M12: part 5 | N12: ='Part 5'!A3 -> 0 | O12: =ROUND(N12,2) -> 0 | Q12: =IF(F12="","",F12&"; ") -> 
L13: FALSE | M13: part 4 | N13: =G32 -> 0 | O13: =ROUND(N13,2) -> 0 | Q13: =IF(F13="","",F13&"; ") -> 
L14: FALSE
L15: FALSE | M15: =IF(O12=O13,0,1) -> 0
L16: FALSE
L17: FALSE
L18: FALSE
L19: FALSE
L20: FALSE
L21: FALSE
L22: FALSE
L23: FALSE
L24: FALSE
L25: FALSE
L26: FALSE
L27: FALSE
L28: FALSE
L29: FALSE
L30: FALSE
L31: FALSE
A32: TOTAL RAC OR OWNER INVOICE SUMMARY | G32: =SUM(G12:G31) -> 0 | L32: =COUNTIF(L12:L31,TRUE) -> 0

Sheet Part 5
A1: PART 5 – EVENT SUMMARY SHEET
A2: APPLICATION GRAND TOTAL | C2: AIN | D2: =IF('Part 1'!A22>0,'Part 1'!A22,"") ->  | K2: RAC Name | M2: =IF('Part 3'!G21>0,'Part 3'!G21," ") -> 
A3: =SUM(C14,F14,K14,M14,Q14,) -> 0 | C3: 1. Emergency/Initial | F3: 2. Investigation Field Work | K3: 3. Interim Monitoring | M3: 4. Corrective Action Plan | Q3: 5. Report Preparation
C4: Charges | D4: DEQ Adjusted Charges | F4: Charges | H4: DEQ Adjusted Charges | K4: Charges | L4: DEQ Adjusted Charges | M4: Charges | O4: DEQ Adjusted Charges | Q4: Charges | S4: DEQ Adjusted Charges
A5: A. Personnel | C5: =+'Personnel Sheet'!H3 -> 0 | D5: 0 | F5: =+'Personnel Sheet'!H4 -> 0 | H5: 0 | K5: =+'Personnel Sheet'!H5 -> 0 | L5: 0 | M5: =+'Personnel Sheet'!H6 -> 0 | O5: 0 | Q5: =+'Personnel Sheet'!H7 -> 0 | S5: 0
A6: B. Soil/Water | C6: =+'Soil-Water Disposal'!J5 -> 0 | D6: 0 | F6: =+'Soil-Water Disposal'!J6 -> 0 | H6: 0 | K6: =+'Soil-Water Disposal'!J7 -> 0 | L6: 0 | M6: =+'Soil-Water Disposal'!J8 -> 0 | O6: 0
A7: Disposal
A8: C. Equipment | C8: =+'Equipment Rent-Purchase'!L6 -> 0 | D8: 0 | F8: =+'Equipment Rent-Purchase'!L7 -> 0 | H8: 0 | K8: =+'Equipment Rent-Purchase'!L8 -> 0 | L8: 0 | M8: =+'Equipment Rent-Purchase'!L9 -> 0 | O8: 0
A9: D. Travel | C9: =+Travel!J3+'Hotel & Food'!J4 -> 0 | D9: 0 | F9: =+'Hotel & Food'!J5+Travel!J4 -> 0 | H9: 0 | K9: =+'Hotel & Food'!J6+Travel!J5 -> 0 | L9: 0 | M9: =+'Hotel & Food'!J7+Travel!J6 -> 0 | O9: 0 | Q9: =+'Hotel & Food'!J8+Travel!J7 -> 0 | S9: 0
A10: E. Transportation | C10: =+'Transportation&Shipping'!G5 -> 0 | D10: 0 | F10: =+'Transportation&Shipping'!G6 -> 0 | H10: 0 | K10: =+'Transportation&Shipping'!G7 -> 0 | L10: 0 | M10: =+'Transportation&Shipping'!G8 -> 0 | O10: 0
A11: F. Drilling & P & A | C11: =+'Drilling-P&A'!I9 -> 0 | D11: 0 | F11: =+'Drilling-P&A'!I10 -> 0 | H11: 0 | K11: =+'Drilling-P&A'!I11 -> 0 | L11: 0 | M11: =+'Drilling-P&A'!I12 -> 0 | O11: 0
A12: G. Analysis | C12: =+Analysis!K3 -> 0 | D12: 0 | F12: =+Analysis!K4 -> 0 | H12: 0 | K12: =+Analysis!K5 -> 0 | L12: 0 | M12: =+Analysis!K6 -> 0 | O12: 0
A13: H. Miscellaneous | C13: =+'Miscellaneous 1'!H4+'Miscellaneous 2'!K3+'Miscellaneous 3'!K2 -> 0 | D13: 0 | F13: =+'Miscellaneous 1'!H5+'Miscellaneous 2'!K4+'Miscellaneous 3'!K3+'Miscellaneous 4'!G4 -> 0 | H13: 0 | K13: =+'Miscellaneous 1'!H6+'Miscellaneous 2'!K5+'Miscellaneous 3'!K4+'Miscellaneous 4'!G5 -> 0 | L13: 0 | M13: =+'Miscellaneous 1'!H7+'Miscellaneous 2'!K6+'Miscellaneous 3'!K5+'Miscellaneous 4'!G6 -> 0 | O13: 0 | Q13: =+'Miscellaneous 1'!H8+'Miscellaneous 3'!K6+'Miscellaneous 4'!G7 -> 0 | S13: 0
A14: Subtotals | C14: =SUM(C5:C13) -> 0 | D14: =SUM(D5:D13) -> 0 | E14: 0 | F14: 0 | G14: 0 | H14: 0 | I14: 0 | J14: 0 | K14: 0 | L14: 0 | M14: 0 | N14: 0 | O14: 0 | P14: 0 | Q14: 0 | R14: 0 | S14: 0 | T14: 0
A15: =IF(OR(E16="",G16=""),"6. Dates work performed in application: MISSING INFORMATION","6. Dates work performed in application:") -> 6. Dates work performed in application: MISSING INFORMATION | E15: Beginning | G15: Ending | J15: 7. Application addresses invoices to the owner dated: (Select quarter by entering year)
J16: July 1 – September 30 | M16: =IF('Part 1'!E29>0,'Part 1'!E29,"") ->  | O16: January 1 – March 31 | S16: =IF('Part 1'!E33>0,'Part 1'!E33,"") -> 
A17: 8. DEQ Fiscal Year (July - June) | E17: =IF((IF(AND(M16>0,M17>0,S16>0,S17>0),(MAX(IF(M16="",0,M16+1),IF(M17="",,M17+1),S16,S17)),""))=0,"",(IF(AND(M16>0,M17>0,S16>0,S17>0),(MAX(IF(M16="",0,M16+1),IF(M17="",,M17+1),S16,S17)),""))) ->  | J17: October 1 – December 31 | M17: =IF('Part 1'!E31>0,'Part 1'!E31,"") ->  | O17: April 1 - June 30 | S17: =IF('Part 1'!E35>0,'Part 1'!E35,"") -> 
A18: The area below is for DEQ Trust Fund use only:
A19: Incident Information | G19: Total Adjusted Charges $ | M19: =+D14+H14+L14+O14+S14 -> 0 | P19: DEQ Comments, Notations for Deductibles, Treatment Units, & Last Applications
A20: Incident No. | C20: Release Date | E20: Substance
G21: LDEQ Adjustments | J21: Trust Fund No. | L21: CAP Amount
G25: Deductible Amount ($)
A26: Reviewer Name | B26: =IF('Part 1'!B7<>"",'Part 1'!B7,"") ->  | G26: LDEQ Reimbursement $ | M26: =+M19+M22+M23+M24-M25 -> 0
A27: Trust Fund Number | B27: =IF('Part 1'!B6="","",'Part 1'!B6) -> 
A28: ICAP Charges $ | D28: ICAP Balance $ | H28: CAP Charges $ | L28: (ROG Approved) CAP Balance $ | P28: Payment To: | R28: RAC
R29: Owner

Sheet Personnel Sheet
A1: PART 5.A | L1: =+L30+L64 -> 0 | M1: Total Print check
A2: PERSONNEL SUPPLEMENTARY SHEET | E2: Costing Category Summary
E3: Emergency/Initial | H3: =SUMIF($A$12:$A$30,E3,$H$12:$H$30)+SUMIF($A$46:$A$64,E3,$H$46:$H$64) -> 0
E4: Investigation | H4: =SUMIF($A$12:$A$30,E4,$H$12:$H$30)+SUMIF($A$46:$A$64,E4,$H$46:$H$64) -> 0
E5: Interim Monitoring | H5: =SUMIF($A$12:$A$30,E5,$H$12:$H$30)+SUMIF($A$46:$A$64,E5,$H$46:$H$64) -> 0
E6: Corrective Action Plan | H6: =SUMIF($A$12:$A$30,E6,$H$12:$H$30)+SUMIF($A$46:$A$64,E6,$H$46:$H$64) -> 0
A7: =IF(SUM(O11:O30)>0,"MISSING INFORMATION","") ->  | E7: Report Preparation | H7: =SUMIF($A$12:$A$30,E7,$H$12:$H$30)+SUMIF($A$46:$A$64,E7,$H$46:$H$64) -> 0
A9: Personnel charges for work activities included in unit pricing should not be addressed on this form.
A11: Costing Category | B11: Personnel Duties | C11: Employee Name | D11: Hourly Rate | E11: Work Performed Date, Location (field or office) and Description | F11: RAC Invoice No. | G11: No. HRS | H11: TOTAL | O11: Test | P11: Max Hours | Q11: Adjusted Hours
D12: =IF(B12="","",VLOOKUP(B12,Reference!A$9:B$23,2,FALSE)) ->  | H12: =IF(B12="","",ROUND((D12*Q12),2)) ->  | O12: =IF(B12<>"",IF(OR(A12="",C12="",E12="",F12="",G12=""),1,0),0) -> 0 | P12: =IF(G12>0,VLOOKUP('Personnel Sheet'!B12,Reference!A$9:C$23,3,FALSE),0) -> 0 | Q12: =IF(G12>P12,P12,G12) -> 0
D13: =IF(B13="","",VLOOKUP(B13,Reference!A$9:B$23,2,FALSE)) ->  | H13: =IF(B13="","",ROUND((D13*Q13),2)) ->  | O13: =IF(B13<>"",IF(OR(A13="",C13="",E13="",F13="",G13=""),1,0),0) -> 0 | P13: =IF(G13>0,VLOOKUP('Personnel Sheet'!B13,Reference!A$9:C$23,3,FALSE),0) -> 0 | Q13: =IF(G13>P13,P13,G13) -> 0
D14: =IF(B14="","",VLOOKUP(B14,Reference!A$9:B$23,2,FALSE)) ->  | O14: 0 | P14: =IF(G14>0,VLOOKUP('Personnel Sheet'!B14,Reference!A$9:C$23,3,FALSE),0) -> 0 | Q14: 0
D15: =IF(B15="","",VLOOKUP(B15,Reference!A$9:B$23,2,FALSE)) ->  | O15: 0 | P15: =IF(G15>0,VLOOKUP('Personnel Sheet'!B15,Reference!A$9:C$23,3,FALSE),0) -> 0 | Q15: 0
D16: =IF(B16="","",VLOOKUP(B16,Reference!A$9:B$23,2,FALSE)) ->  | O16: 0 | P16: =IF(G16>0,VLOOKUP('Personnel Sheet'!B16,Reference!A$9:C$23,3,FALSE),0) -> 0 | Q16: 0
D17: =IF(B17="","",VLOOKUP(B17,Reference!A$9:B$23,2,FALSE)) ->  | O17: 0 | P17: =IF(G17>0,VLOOKUP('Personnel Sheet'!B17,Reference!A$9:C$23,3,FALSE),0) -> 0 | Q17: 0
D18: =IF(B18="","",VLOOKUP(B18,Reference!A$9:B$23,2,FALSE)) ->  | O18: 0 | P18: =IF(G18>0,VLOOKUP('Personnel Sheet'!B18,Reference!A$9:C$23,3,FALSE),0) -> 0 | Q18: 0
D19: =IF(B19="","",VLOOKUP(B19,Reference!A$9:B$23,2,FALSE)) ->  | O19: 0 | P19: =IF(G19>0,VLOOKUP('Personnel Sheet'!B19,Reference!A$9:C$23,3,FALSE),0) -> 0 | Q19: 0
D20: =IF(B20="","",VLOOKUP(B20,Reference!A$9:B$23,2,FALSE)) ->  | O20: 0 | P20: =IF(G20>0,VLOOKUP('Personnel Sheet'!B20,Reference!A$9:C$23,3,FALSE),0) -> 0 | Q20: 0
D21: =IF(B21="","",VLOOKUP(B21,Reference!A$9:B$23,2,FALSE)) ->  | O21: 0 | P21: =IF(G21>0,VLOOKUP('Personnel Sheet'!B21,Reference!A$9:C$23,3,FALSE),0) -> 0 | Q21: 0
D22: =IF(B22="","",VLOOKUP(B22,Reference!A$9:B$23,2,FALSE)) ->  | O22: 0 | P22: =IF(G22>0,VLOOKUP('Personnel Sheet'!B22,Reference!A$9:C$23,3,FALSE),0) -> 0 | Q22: 0
D23: =IF(B23="","",VLOOKUP(B23,Reference!A$9:B$23,2,FALSE)) ->  | O23: 0 | P23: =IF(G23>0,VLOOKUP('Personnel Sheet'!B23,Reference!A$9:C$23,3,FALSE),0) -> 0 | Q23: 0
D24: =IF(B24="","",VLOOKUP(B24,Reference!A$9:B$23,2,FALSE)) ->  | O24: 0 | P24: =IF(G24>0,VLOOKUP('Personnel Sheet'!B24,Reference!A$9:C$23,3,FALSE),0) -> 0 | Q24: 0
D25: =IF(B25="","",VLOOKUP(B25,Reference!A$9:B$23,2,FALSE)) ->  | O25: 0 | P25: =IF(G25>0,VLOOKUP('Personnel Sheet'!B25,Reference!A$9:C$23,3,FALSE),0) -> 0 | Q25: 0
D26: =IF(B26="","",VLOOKUP(B26,Reference!A$9:B$23,2,FALSE)) ->  | O26: 0 | P26: =IF(G26>0,VLOOKUP('Personnel Sheet'!B26,Reference!A$9:C$23,3,FALSE),0) -> 0 | Q26: 0
D27: =IF(B27="","",VLOOKUP(B27,Reference!A$9:B$23,2,FALSE)) ->  | O27: 0 | P27: =IF(G27>0,VLOOKUP('Personnel Sheet'!B27,Reference!A$9:C$23,3,FALSE),0) -> 0 | Q27: 0
D28: =IF(B28="","",VLOOKUP(B28,Reference!A$9:B$23,2,FALSE)) ->  | O28: 0 | P28: =IF(G28>0,VLOOKUP('Personnel Sheet'!B28,Reference!A$9:C$23,3,FALSE),0) -> 0 | Q28: 0
D29: =IF(B29="","",VLOOKUP(B29,Reference!A$9:B$23,2,FALSE)) ->  | H29: =IF(B29="","",ROUND((D29*Q29),2)) ->  | O29: =IF(B29<>"",IF(OR(A29="",C29="",E29="",F29="",G29=""),1,0),0) -> 0 | P29: =IF(G29>0,VLOOKUP('Personnel Sheet'!B29,Reference!A$9:C$23,3,FALSE),0) -> 0 | Q29: =IF(G29>P29,P29,G29) -> 0
D30: =IF(B30="","",VLOOKUP(B30,Reference!A$9:B$23,2,FALSE)) ->  | L30: =IF(SUM(H12:H30)>0,1,0) -> 0 | M30: Print check | O30: 0 | P30: =IF(G30>0,VLOOKUP('Personnel Sheet'!B30,Reference!A$9:C$23,3,FALSE),0) -> 0 | Q30: 0
A31: *Only one individual can perform this duty for a specific time period.
A32: **A limited number of hours is allowable for this position.
A38: PART 5.A
A39: PERSONNEL SUPPLEMENTARY SHEET
E40: =IF(SUM(O46:O64)>0,"MISSING INFORMATION","") -> 
A43: Personnel charges for work activities included in unit pricing should not be addressed on this form.
A45: Costing Category | B45: Personnel Duties | C45: Employee Name | D45: Hourly Rate | E45: Work Performed Date, Location (field or office) and Description | F45: RAC Invoice No. | G45: No. HRS | H45: TOTAL | O45: Test | P45: Max Hours | Q45: Adjusted Hours
D46: =IF(B46="","",VLOOKUP(B46,Reference!A$9:B$23,2,FALSE)) ->  | H46: =IF(B46="","",ROUND((D46*Q46),2)) ->  | O46: =IF(B46<>"",IF(OR(A46="",C46="",E46="",F46="",G46=""),1,0),0) -> 0 | P46: =IF(G46>0,VLOOKUP('Personnel Sheet'!B46,Reference!A$9:C$23,3,FALSE),0) -> 0 | Q46: =IF(G46>P46,P46,G46) -> 0
D47: =IF(B47="","",VLOOKUP(B47,Reference!A$9:B$23,2,FALSE)) ->  | H47: =IF(B47="","",ROUND((D47*Q47),2)) ->  | O47: =IF(B47<>"",IF(OR(A47="",C47="",E47="",F47="",G47=""),1,0),0) -> 0 | P47: =IF(G47>0,VLOOKUP('Personnel Sheet'!B47,Reference!A$9:C$23,3,FALSE),0) -> 0 | Q47: =IF(G47>P47,P47,G47) -> 0
D48: =IF(B48="","",VLOOKUP(B48,Reference!A$9:B$23,2,FALSE)) ->  | O48: 0 | P48: =IF(G48>0,VLOOKUP('Personnel Sheet'!B48,Reference!A$9:C$23,3,FALSE),0) -> 0 | Q48: 0
D49: =IF(B49="","",VLOOKUP(B49,Reference!A$9:B$23,2,FALSE)) ->  | O49: 0 | P49: =IF(G49>0,VLOOKUP('Personnel Sheet'!B49,Reference!A$9:C$23,3,FALSE),0) -> 0 | Q49: 0
D50: =IF(B50="","",VLOOKUP(B50,Reference!A$9:B$23,2,FALSE)) ->  | O50: 0 | P50: =IF(G50>0,VLOOKUP('Personnel Sheet'!B50,Reference!A$9:C$23,3,FALSE),0) -> 0 | Q50: 0
D51: =IF(B51="","",VLOOKUP(B51,Reference!A$9:B$23,2,FALSE)) ->  | O51: 0 | P51: =IF(G51>0,VLOOKUP('Personnel Sheet'!B51,Reference!A$9:C$23,3,FALSE),0) -> 0 | Q51: 0
D52: =IF(B52="","",VLOOKUP(B52,Reference!A$9:B$23,2,FALSE)) ->  | O52: 0 | P52: =IF(G52>0,VLOOKUP('Personnel Sheet'!B52,Reference!A$9:C$23,3,FALSE),0) -> 0 | Q52: 0
D53: =IF(B53="","",VLOOKUP(B53,Reference!A$9:B$23,2,FALSE)) ->  | O53: 0 | P53: =IF(G53>0,VLOOKUP('Personnel Sheet'!B53,Reference!A$9:C$23,3,FALSE),0) -> 0 | Q53: 0
D54: =IF(B54="","",VLOOKUP(B54,Reference!A$9:B$23,2,FALSE)) ->  | O54: 0 | P54: =IF(G54>0,VLOOKUP('Personnel Sheet'!B54,Reference!A$9:C$23,3,FALSE),0) -> 0 | Q54: 0
D55: =IF(B55="","",VLOOKUP(B55,Reference!A$9:B$23,2,FALSE)) ->  | O55: 0 | P55: =IF(G55>0,VLOOKUP('Personnel Sheet'!B55,Reference!A$9:C$23,3,FALSE),0) -> 0 | Q55: 0
D56: =IF(B56="","",VLOOKUP(B56,Reference!A$9:B$23,2,FALSE)) ->  | O56: 0 | P56: =IF(G56>0,VLOOKUP('Personnel Sheet'!B56,Reference!A$9:C$23,3,FALSE),0) -> 0 | Q56: 0
D57: =IF(B57="","",VLOOKUP(B57,Reference!A$9:B$23,2,FALSE)) ->  | O57: 0 | P57: =IF(G57>0,VLOOKUP('Personnel Sheet'!B57,Reference!A$9:C$23,3,FALSE),0) -> 0 | Q57: 0
D58: =IF(B58="","",VLOOKUP(B58,Reference!A$9:B$23,2,FALSE)) ->  | O58: 0 | P58: =IF(G58>0,VLOOKUP('Personnel Sheet'!B58,Reference!A$9:C$23,3,FALSE),0) -> 0 | Q58: 0
D59: =IF(B59="","",VLOOKUP(B59,Reference!A$9:B$23,2,FALSE)) ->  | O59: 0 | P59: =IF(G59>0,VLOOKUP('Personnel Sheet'!B59,Reference!A$9:C$23,3,FALSE),0) -> 0 | Q59: 0
D60: =IF(B60="","",VLOOKUP(B60,Reference!A$9:B$23,2,FALSE)) ->  | O60: 0 | P60: =IF(G60>0,VLOOKUP('Personnel Sheet'!B60,Reference!A$9:C$23,3,FALSE),0) -> 0 | Q60: 0
D61: =IF(B61="","",VLOOKUP(B61,Reference!A$9:B$23,2,FALSE)) ->  | O61: 0 | P61: =IF(G61>0,VLOOKUP('Personnel Sheet'!B61,Reference!A$9:C$23,3,FALSE),0) -> 0 | Q61: 0
D62: =IF(B62="","",VLOOKUP(B62,Reference!A$9:B$23,2,FALSE)) ->  | O62: 0 | P62: =IF(G62>0,VLOOKUP('Personnel Sheet'!B62,Reference!A$9:C$23,3,FALSE),0) -> 0 | Q62: 0
D63: =IF(B63="","",VLOOKUP(B63,Reference!A$9:B$23,2,FALSE)) ->  | O63: 0 | P63: =IF(G63>0,VLOOKUP('Personnel Sheet'!B63,Reference!A$9:C$23,3,FALSE),0) -> 0 | Q63: 0
D64: =IF(B64="","",VLOOKUP(B64,Reference!A$9:B$23,2,FALSE)) ->  | L64: =IF(SUM(H45:H64)>0,1,0) -> 0 | M64: Print check | O64: 0 | P64: =IF(G64>0,VLOOKUP('Personnel Sheet'!B64,Reference!A$9:C$23,3,FALSE),0) -> 0 | Q64: =IF(G64>P64,P64,G64) -> 0
A65: *Only one individual can perform this duty for a specific time period.
A66: **A limited number of hours is allowable for this position.

Sheet Soil-Water Disposal
A1: PART 5.B | N1: =+N27+N55 -> 0 | O1: Total Print check
A2: SOIL/WATER DISPOSAL SUPPLEMENTARY SHEET
A4: =IF(SUM(T15:T27)>0,"MISSING INFORMATION","") ->  | G4: Costing Category Summary
A5: 1. The unit rate for purge water disposal for groundwater sampling events is $5.15/gal. | G5: Emergency/Initial | J5: =SUMIF($A$15:$A$27,G5,$J$15:$J$27)+SUMIF($A$43:$A$55,G5,$J$43:$J$55) -> 0
A6: 2. Addresses, manifests, bills of lading, etc. must be provided for disposal charges. | G6: Investigation | J6: =SUMIF($A$15:$A$27,G6,$J$15:$J$27)+SUMIF($A$43:$A$55,G6,$J$43:$J$55) -> 0
A7: 3. Purge water disposal not associated with groundwater sampling is reimbursed at | G7: Interim Monitoring | J7: =SUMIF($A$15:$A$27,G7,$J$15:$J$27)+SUMIF($A$43:$A$55,G7,$J$43:$J$55) -> 0
A8: invoice costs plus 10% markup not to exceed the maximum of $0.63/gal. | G8: Corrective Action Plan | J8: =SUMIF($A$15:$A$27,G8,$J$15:$J$27)+SUMIF($A$43:$A$55,G8,$J$43:$J$55) -> 0
A9: 4. RAC markups should not be addressed on this page. Indicate markups on Part 5.H (1).
A10: 5. Soil drum disposal (not associated with excavation): $845.00 minimum, $338.00 for the first drum, $254.00 each additional drum.
A11: 6. For excavation/transportation/disposal unit rates, please refer to the most recent “Excavation Cost Evaluation Spreadsheet” on http://www.deq.louisiana.gov/trustfund.
A12: 7. For cost reductions associated with non-impacted soil and onsite, treated soil, enter the total tonnage removed in the upper section and the appropriate tonnage value in the lower section.
A14: Costing Category | B14: Disposal Category Type | C14: Source of Waste and Description | D14: Disposal Date | E14: RAC Invoice No. | F14: Outside Invoice No. | G14: Tons, Drums Units, or Gallons | H14: Quantity | I14: Cost Per Unit | J14: TOTAL | P14: Soil Cuttings | Q14: UNIT | R14: TONS | S14: DRUMS | T14: Test | AB14: TONS | AC14: DRUMS | AD14: GALLONS
J15: =IF(OR(G15="TONS",G15="Unit"),AB15*H15,IF(G15="DRUMS",AC15,AD15)) -> 0 | P15: Water | R15: GALLONS | T15: =IF(B15<>"",IF(OR(A15="",D15="",E15="",G15="",H15=""),1,0),0) -> 0 | AB15: =IF(AND(B15="Excavation",G15="TONS"),IF(I15>0,I15,VLOOKUP(INT(H15),ExcData!D$18:F$5017,2,FALSE)),IF(AND(OR(B15="Soil Cuttings",B15="Other solid waste"),OR(G15="Unit",G15="Tons")),I15,0)) -> 0 | AC15: =IF(G15="DRUMS",IF(IF(H15>1,Reference!B$296+(H15-1)*Reference!B$297,Reference!B$296)<Reference!B$298,Reference!B$298,IF(H15>1,Reference!B$296+(H15-1)*Reference!B$297,Reference!B$296)),0) -> 0 | AD15: =IF(G15="GALLONS",I15*H15,0) -> 0
J16: =IF(OR(G16="TONS",G16="Unit"),AB16*H16,IF(G16="DRUMS",AC16,AD16)) -> 0 | P16: Excavation | R16: TONS | T16: =IF(B16<>"",IF(OR(A16="",D16="",E16="",G16="",H16=""),1,0),0) -> 0 | AB16: =IF(AND(B16="Excavation",G16="TONS"),IF(I16>0,I16,VLOOKUP(INT(H16),ExcData!D$18:F$5017,2,FALSE)),IF(AND(OR(B16="Soil Cuttings",B16="Other solid waste"),OR(G16="Unit",G16="Tons")),I16,0)) -> 0 | AC16: =IF(G16="DRUMS",IF(IF(H16>1,Reference!B$296+(H16-1)*Reference!B$297,Reference!B$296)<Reference!B$298,Reference!B$298,IF(H16>1,Reference!B$296+(H16-1)*Reference!B$297,Reference!B$296)),0) -> 0 | AD16: =IF(G16="GALLONS",I16*H16,0) -> 0
J17: 0 | P17: Other solid waste | Q17: UNIT | R17: TONS | S17: DRUMS | T17: 0 | AB17: =IF(AND(B17="Excavation",G17="TONS"),IF(I17>0,I17,VLOOKUP(INT(H17),ExcData!D$18:F$5017,2,FALSE)),IF(AND(OR(B17="Soil Cuttings",B17="Other solid waste"),OR(G17="Unit",G17="Tons")),I17,0)) -> 0 | AC17: =IF(G17="DRUMS",IF(IF(H17>1,Reference!B$296+(H17-1)*Reference!B$297,Reference!B$296)<Reference!B$298,Reference!B$298,IF(H17>1,Reference!B$296+(H17-1)*Reference!B$297,Reference!B$296)),0) -> 0 | AD17: 0
J18: 0 | T18: 0 | AB18: =IF(AND(B18="Excavation",G18="TONS"),IF(I18>0,I18,VLOOKUP(INT(H18),ExcData!D$18:F$5017,2,FALSE)),IF(AND(OR(B18="Soil Cuttings",B18="Other solid waste"),OR(G18="Unit",G18="Tons")),I18,0)) -> 0 | AC18: =IF(G18="DRUMS",IF(IF(H18>1,Reference!B$296+(H18-1)*Reference!B$297,Reference!B$296)<Reference!B$298,Reference!B$298,IF(H18>1,Reference!B$296+(H18-1)*Reference!B$297,Reference!B$296)),0) -> 0 | AD18: 0
J19: 0 | T19: 0 | AB19: =IF(AND(B19="Excavation",G19="TONS"),IF(I19>0,I19,VLOOKUP(INT(H19),ExcData!D$18:F$5017,2,FALSE)),IF(AND(OR(B19="Soil Cuttings",B19="Other solid waste"),OR(G19="Unit",G19="Tons")),I19,0)) -> 0 | AC19: =IF(G19="DRUMS",IF(IF(H19>1,Reference!B$296+(H19-1)*Reference!B$297,Reference!B$296)<Reference!B$298,Reference!B$298,IF(H19>1,Reference!B$296+(H19-1)*Reference!B$297,Reference!B$296)),0) -> 0 | AD19: 0
J20: 0 | T20: 0 | AB20: =IF(AND(B20="Excavation",G20="TONS"),IF(I20>0,I20,VLOOKUP(INT(H20),ExcData!D$18:F$5017,2,FALSE)),IF(AND(OR(B20="Soil Cuttings",B20="Other solid waste"),OR(G20="Unit",G20="Tons")),I20,0)) -> 0 | AC20: =IF(G20="DRUMS",IF(IF(H20>1,Reference!B$296+(H20-1)*Reference!B$297,Reference!B$296)<Reference!B$298,Reference!B$298,IF(H20>1,Reference!B$296+(H20-1)*Reference!B$297,Reference!B$296)),0) -> 0 | AD20: 0
J21: 0 | T21: 0 | AB21: =IF(AND(B21="Excavation",G21="TONS"),IF(I21>0,I21,VLOOKUP(INT(H21),ExcData!D$18:F$5017,2,FALSE)),IF(AND(OR(B21="Soil Cuttings",B21="Other solid waste"),OR(G21="Unit",G21="Tons")),I21,0)) -> 0 | AC21: =IF(G21="DRUMS",IF(IF(H21>1,Reference!B$296+(H21-1)*Reference!B$297,Reference!B$296)<Reference!B$298,Reference!B$298,IF(H21>1,Reference!B$296+(H21-1)*Reference!B$297,Reference!B$296)),0) -> 0 | AD21: =IF(G21="GALLONS",I21*H21,0) -> 0
J22: 0 | T22: 0 | AB22: =IF(AND(B22="Excavation",G22="TONS"),IF(I22>0,I22,VLOOKUP(INT(H22),ExcData!D$18:F$5017,2,FALSE)),IF(AND(OR(B22="Soil Cuttings",B22="Other solid waste"),OR(G22="Unit",G22="Tons")),I22,0)) -> 0 | AC22: =IF(G22="DRUMS",IF(IF(H22>1,Reference!B$296+(H22-1)*Reference!B$297,Reference!B$296)<Reference!B$298,Reference!B$298,IF(H22>1,Reference!B$296+(H22-1)*Reference!B$297,Reference!B$296)),0) -> 0 | AD22: 0
J23: 0 | T23: 0 | AB23: =IF(AND(B23="Excavation",G23="TONS"),IF(I23>0,I23,VLOOKUP(INT(H23),ExcData!D$18:F$5017,2,FALSE)),IF(AND(OR(B23="Soil Cuttings",B23="Other solid waste"),OR(G23="Unit",G23="Tons")),I23,0)) -> 0 | AC23: =IF(G23="DRUMS",IF(IF(H23>1,Reference!B$296+(H23-1)*Reference!B$297,Reference!B$296)<Reference!B$298,Reference!B$298,IF(H23>1,Reference!B$296+(H23-1)*Reference!B$297,Reference!B$296)),0) -> 0 | AD23: 0
J24: 0 | T24: 0 | AB24: =IF(AND(B24="Excavation",G24="TONS"),IF(I24>0,I24,VLOOKUP(INT(H24),ExcData!D$18:F$5017,2,FALSE)),IF(AND(OR(B24="Soil Cuttings",B24="Other solid waste"),OR(G24="Unit",G24="Tons")),I24,0)) -> 0 | AC24: =IF(G24="DRUMS",IF(IF(H24>1,Reference!B$296+(H24-1)*Reference!B$297,Reference!B$296)<Reference!B$298,Reference!B$298,IF(H24>1,Reference!B$296+(H24-1)*Reference!B$297,Reference!B$296)),0) -> 0 | AD24: 0
J25: 0 | T25: 0 | AB25: =IF(AND(B25="Excavation",G25="TONS"),IF(I25>0,I25,VLOOKUP(INT(H25),ExcData!D$18:F$5017,2,FALSE)),IF(AND(OR(B25="Soil Cuttings",B25="Other solid waste"),OR(G25="Unit",G25="Tons")),I25,0)) -> 0 | AC25: =IF(G25="DRUMS",IF(IF(H25>1,Reference!B$296+(H25-1)*Reference!B$297,Reference!B$296)<Reference!B$298,Reference!B$298,IF(H25>1,Reference!B$296+(H25-1)*Reference!B$297,Reference!B$296)),0) -> 0 | AD25: 0
C26: Non-Impacted Soil | G26: TONS | I26: -45 | J26: =IF(A26="",0,IF(H26="",0,H26*I26)) -> 0 | T26: =IF(H26<>"",IF(OR(A26="",D26="",E26=""),1,0),0) -> 0
C27: Treated Soil | G27: TONS | I27: -30 | J27: =IF(A27="",0,IF(H27="",0,H27*I27)) -> 0 | N27: =IF(SUM(J15:J27)>0,1,0) -> 0 | O27: Print check | T27: =IF(H27<>"",IF(OR(A27="",D27="",E27=""),1,0),0) -> 0
A29: PART 5.B
A30: SOIL/WATER DISPOSAL SUPPLEMENTARY SHEET
A32: 1. The unit rate for purge water disposal for groundwater sampling events is $5.15/gal.
A33: 2. Addresses, manifests, bills of lading, etc. must be provided for disposal charges.
A34: 3. Purge water disposal not associated with groundwater sampling is reimbursed at invoice costs plus 10% markup not to exceed the maximum of $0.63/gal.
A36: 4. RAC markups should not be addressed on this page. Indicate markups on Part 5.H (1).
A37: 5. Soil drum disposal (not associated with excavation): $845.00 minimum, $338.00 for the first drum, $254.00 each additional drum.
A38: 6. For excavation/transportation/disposal unit rates, please refer to the most recent “Excavation Cost Evaluation Spreadsheet” on http://www.deq.louisiana.gov/trustfund.
A40: 7. For cost reductions associated with non-impacted soil and onsite, treated soil, enter the total tonnage removed in the upper section and the appropriate tonnage value in the lower section.
A42: Costing Category | B42: Disposal Category Type | C42: Source of Waste and Description | D42: Disposal Date | E42: RAC Invoice No. | F42: Outside Invoice No. | G42: Tons, Drums Units, or Gallons | H42: Quantity | I42: Cost Per Unit | J42: TOTAL | T42: Test | AB42: TONS | AC42: DRUMS | AD42: GALLONS
J43: =IF(OR(G43="TONS",G43="Unit"),AB43*H43,IF(G43="DRUMS",AC43,AD43)) -> 0 | T43: =IF(B43<>"",IF(OR(A43="",D43="",E43="",G43="",H43=""),1,0),0) -> 0 | AB43: =IF(AND(B43="Excavation",G43="TONS"),IF(I43>0,I43,VLOOKUP(INT(H43),ExcData!D$18:F$5017,2,FALSE)),IF(AND(OR(B43="Soil Cuttings",B43="Other solid waste"),OR(G43="Unit",G43="Tons")),I43,0)) -> 0 | AC43: =IF(G43="DRUMS",IF(IF(H43>1,Reference!B$296+(H43-1)*Reference!B$297,Reference!B$296)<Reference!B$298,Reference!B$298,IF(H43>1,Reference!B$296+(H43-1)*Reference!B$297,Reference!B$296)),0) -> 0 | AD43: =IF(G43="GALLONS",I43*H43,0) -> 0
J44: 0 | T44: =IF(B44<>"",IF(OR(A44="",D44="",E44="",G44="",H44=""),1,0),0) -> 0 | AB44: =IF(AND(B44="Excavation",G44="TONS"),IF(I44>0,I44,VLOOKUP(INT(H44),ExcData!D$18:F$5017,2,FALSE)),IF(AND(OR(B44="Soil Cuttings",B44="Other solid waste"),OR(G44="Unit",G44="Tons")),I44,0)) -> 0 | AC44: =IF(G44="DRUMS",IF(IF(H44>1,Reference!B$296+(H44-1)*Reference!B$297,Reference!B$296)<Reference!B$298,Reference!B$298,IF(H44>1,Reference!B$296+(H44-1)*Reference!B$297,Reference!B$296)),0) -> 0 | AD44: =IF(G44="GALLONS",I44*H44,0) -> 0
J45: 0 | T45: 0 | AB45: =IF(AND(B45="Excavation",G45="TONS"),IF(I45>0,I45,VLOOKUP(INT(H45),ExcData!D$18:F$5017,2,FALSE)),IF(AND(OR(B45="Soil Cuttings",B45="Other solid waste"),OR(G45="Unit",G45="Tons")),I45,0)) -> 0 | AC45: =IF(G45="DRUMS",IF(IF(H45>1,Reference!B$296+(H45-1)*Reference!B$297,Reference!B$296)<Reference!B$298,Reference!B$298,IF(H45>1,Reference!B$296+(H45-1)*Reference!B$297,Reference!B$296)),0) -> 0 | AD45: 0
J46: 0 | T46: 0 | AB46: =IF(AND(B46="Excavation",G46="TONS"),IF(I46>0,I46,VLOOKUP(INT(H46),ExcData!D$18:F$5017,2,FALSE)),IF(AND(OR(B46="Soil Cuttings",B46="Other solid waste"),OR(G46="Unit",G46="Tons")),I46,0)) -> 0 | AC46: =IF(G46="DRUMS",IF(IF(H46>1,Reference!B$296+(H46-1)*Reference!B$297,Reference!B$296)<Reference!B$298,Reference!B$298,IF(H46>1,Reference!B$296+(H46-1)*Reference!B$297,Reference!B$296)),0) -> 0 | AD46: 0
J47: 0 | T47: 0 | AB47: =IF(AND(B47="Excavation",G47="TONS"),IF(I47>0,I47,VLOOKUP(INT(H47),ExcData!D$18:F$5017,2,FALSE)),IF(AND(OR(B47="Soil Cuttings",B47="Other solid waste"),OR(G47="Unit",G47="Tons")),I47,0)) -> 0 | AC47: =IF(G47="DRUMS",IF(IF(H47>1,Reference!B$296+(H47-1)*Reference!B$297,Reference!B$296)<Reference!B$298,Reference!B$298,IF(H47>1,Reference!B$296+(H47-1)*Reference!B$297,Reference!B$296)),0) -> 0 | AD47: 0
J48: 0 | T48: 0 | AB48: =IF(AND(B48="Excavation",G48="TONS"),IF(I48>0,I48,VLOOKUP(INT(H48),ExcData!D$18:F$5017,2,FALSE)),IF(AND(OR(B48="Soil Cuttings",B48="Other solid waste"),OR(G48="Unit",G48="Tons")),I48,0)) -> 0 | AC48: =IF(G48="DRUMS",IF(IF(H48>1,Reference!B$296+(H48-1)*Reference!B$297,Reference!B$296)<Reference!B$298,Reference!B$298,IF(H48>1,Reference!B$296+(H48-1)*Reference!B$297,Reference!B$296)),0) -> 0 | AD48: 0
J49: 0 | T49: 0 | AB49: =IF(AND(B49="Excavation",G49="TONS"),IF(I49>0,I49,VLOOKUP(INT(H49),ExcData!D$18:F$5017,2,FALSE)),IF(AND(OR(B49="Soil Cuttings",B49="Other solid waste"),OR(G49="Unit",G49="Tons")),I49,0)) -> 0 | AC49: =IF(G49="DRUMS",IF(IF(H49>1,Reference!B$296+(H49-1)*Reference!B$297,Reference!B$296)<Reference!B$298,Reference!B$298,IF(H49>1,Reference!B$296+(H49-1)*Reference!B$297,Reference!B$296)),0) -> 0 | AD49: 0
J50: 0 | T50: 0 | AB50: =IF(AND(B50="Excavation",G50="TONS"),IF(I50>0,I50,VLOOKUP(INT(H50),ExcData!D$18:F$5017,2,FALSE)),IF(AND(OR(B50="Soil Cuttings",B50="Other solid waste"),OR(G50="Unit",G50="Tons")),I50,0)) -> 0 | AC50: =IF(G50="DRUMS",IF(IF(H50>1,Reference!B$296+(H50-1)*Reference!B$297,Reference!B$296)<Reference!B$298,Reference!B$298,IF(H50>1,Reference!B$296+(H50-1)*Reference!B$297,Reference!B$296)),0) -> 0 | AD50: 0
J51: 0 | T51: 0 | AB51: =IF(AND(B51="Excavation",G51="TONS"),IF(I51>0,I51,VLOOKUP(INT(H51),ExcData!D$18:F$5017,2,FALSE)),IF(AND(OR(B51="Soil Cuttings",B51="Other solid waste"),OR(G51="Unit",G51="Tons")),I51,0)) -> 0 | AC51: =IF(G51="DRUMS",IF(IF(H51>1,Reference!B$296+(H51-1)*Reference!B$297,Reference!B$296)<Reference!B$298,Reference!B$298,IF(H51>1,Reference!B$296+(H51-1)*Reference!B$297,Reference!B$296)),0) -> 0 | AD51: 0
J52: 0 | T52: 0 | AB52: =IF(AND(B52="Excavation",G52="TONS"),IF(I52>0,I52,VLOOKUP(INT(H52),ExcData!D$18:F$5017,2,FALSE)),IF(AND(OR(B52="Soil Cuttings",B52="Other solid waste"),OR(G52="Unit",G52="Tons")),I52,0)) -> 0 | AC52: =IF(G52="DRUMS",IF(IF(H52>1,Reference!B$296+(H52-1)*Reference!B$297,Reference!B$296)<Reference!B$298,Reference!B$298,IF(H52>1,Reference!B$296+(H52-1)*Reference!B$297,Reference!B$296)),0) -> 0 | AD52: 0
J53: 0 | T53: 0 | AB53: =IF(AND(B53="Excavation",G53="TONS"),IF(I53>0,I53,VLOOKUP(INT(H53),ExcData!D$18:F$5017,2,FALSE)),IF(AND(OR(B53="Soil Cuttings",B53="Other solid waste"),OR(G53="Unit",G53="Tons")),I53,0)) -> 0 | AC53: =IF(G53="DRUMS",IF(IF(H53>1,Reference!B$296+(H53-1)*Reference!B$297,Reference!B$296)<Reference!B$298,Reference!B$298,IF(H53>1,Reference!B$296+(H53-1)*Reference!B$297,Reference!B$296)),0) -> 0 | AD53: 0
C54: Non-Impacted Soil | G54: TONS | I54: -45 | J54: =IF(A54="",0,IF(H54="",0,H54*I54)) -> 0 | T54: =IF(H54<>"",IF(OR(A54="",D54="",E54=""),1,0),0) -> 0
C55: Treated Soil | G55: TONS | I55: -30 | J55: =IF(A55="",0,IF(H55="",0,H55*I55)) -> 0 | N55: =IF(SUM(J43:J55)>0,1,0) -> 0 | O55: Print check | T55: =IF(H55<>"",IF(OR(A55="",D55="",E55=""),1,0),0) -> 0

Sheet Equipment Rent-Purchase
A1: PART 5.C | Q1: =+Q32+Q65 -> 0 | R1: Total Print check
A2: EQUIPMENT RENTAL/PURCHASE SUPPLEMENTARY SHEET
B4: =IF(SUM(S15:S65)>0,"MISSING INFORMATION","") -> 
A5: 1. List all charges for outside rentals, contractor-owned rental equipment, and purchased equipment. | I5: Costing Category Summary
A6: 2. A completed Treatment System Tracking Form (Part 7) & Purchase Agreement Form (Part 8) must be provided for treatment units. | I6: Emergency/Initial | L6: =SUMIF(A$15:A$32,I6,M$15:M$32)+SUMIF(A$48:A$65,I6,M$48:M$65) -> 0
A7: 3. Vehicle rental charges are not reimbursable. | I7: Investigation | L7: =SUMIF(A$15:A$32,I7,M$15:M$32)+SUMIF(A$48:A$65,I7,M$48:M$65) -> 0
A8: 4. (No. of Units/Time Used At Site) X (Rental Rate) = (Total) | I8: Interim Monitoring | L8: =SUMIF(A$15:A$32,I8,M$15:M$32)+SUMIF(A$48:A$65,I8,M$48:M$65) -> 0
A9: 5. Equipment charges for work activities included in unit pricing should not be included on this form. | I9: Corrective Action Plan | L9: =SUMIF(A$15:A$32,I9,M$15:M$32)+SUMIF(A$48:A$65,I9,M$48:M$65) -> 0
A10: 6. Rental rates for contractor-owned equipment are listed in Appendix B, Table 2 of the Guidance Document.
A11: 7. Weekly rate goes into effect when equipment is used at a site for more than three days in a week (Mon – Sun). Daily rates are based on an 8-hour day. Hourly rate must be utilized for more or less than an 8-hour day.
A12: 8. The ratings for the following equipment must be provided: air compressor – cfm, backhoe – bucket size, dump truck – yard capacity, trackhoe – horsepower, vacuum truck - horsepower.
A14: Costing Category | B14: Equipment | C14: Description | D14: RAC Invoice No. | E14: Outside Invoice No. | F14: Dates Equipment Used | G14: 10% Markup Applies (Yes/No) | H14: Units | I14: Time Used | J14: Outside Vendor Rate ($) | K14: RAC Owned Rate ($) | L14: Markup Subtotal ($) | M14: TOTAL | S14: Test
K15: =IF(B15="","",VLOOKUP(B15,Reference!A$28:E$71,IF(H15="Hourly",2,IF(H15="Daily",3,IF(H15="Weekly",4,5))),FALSE)) ->  | L15: =IF(G15="Yes",ROUND(IF(J15="",I15*K15,J15*I15)*0.1,2),0) -> 0 | M15: =IF(A15="",0,IF(B15="","",IF(J15="",I15*K15,J15*I15)+L15)) -> 0 | S15: =IF(B15<>"",IF(OR(A15="",C15="",F15="",H15="",I15="",CONCATENATE(D15,E15)=""),1,0),0) -> 0
K16: =IF(B16="","",VLOOKUP(B16,Reference!A$28:E$71,IF(H16="Hourly",2,IF(H16="Daily",3,IF(H16="Weekly",4,5))),FALSE)) ->  | L16: =IF(G16="Yes",ROUND(IF(J16="",I16*K16,J16*I16)*0.1,2),0) -> 0 | M16: =IF(A16="",0,IF(B16="","",IF(J16="",I16*K16,J16*I16)+L16)) -> 0 | S16: =IF(B16<>"",IF(OR(A16="",C16="",F16="",H16="",I16="",CONCATENATE(D16,E16)=""),1,0),0) -> 0
K17: =IF(B17="","",VLOOKUP(B17,Reference!A$28:E$71,IF(H17="Hourly",2,IF(H17="Daily",3,IF(H17="Weekly",4,5))),FALSE)) ->  | L17: 0 | M17: 0 | S17: 0
K18: =IF(B18="","",VLOOKUP(B18,Reference!A$28:E$71,IF(H18="Hourly",2,IF(H18="Daily",3,IF(H18="Weekly",4,5))),FALSE)) ->  | L18: 0 | M18: 0 | S18: 0
K19: =IF(B19="","",VLOOKUP(B19,Reference!A$28:E$71,IF(H19="Hourly",2,IF(H19="Daily",3,IF(H19="Weekly",4,5))),FALSE)) ->  | L19: 0 | M19: 0 | S19: 0
K20: =IF(B20="","",VLOOKUP(B20,Reference!A$28:E$71,IF(H20="Hourly",2,IF(H20="Daily",3,IF(H20="Weekly",4,5))),FALSE)) ->  | L20: 0 | M20: 0 | S20: 0
K21: =IF(B21="","",VLOOKUP(B21,Reference!A$28:E$71,IF(H21="Hourly",2,IF(H21="Daily",3,IF(H21="Weekly",4,5))),FALSE)) ->  | L21: 0 | M21: 0 | S21: 0
K22: =IF(B22="","",VLOOKUP(B22,Reference!A$28:E$71,IF(H22="Hourly",2,IF(H22="Daily",3,IF(H22="Weekly",4,5))),FALSE)) ->  | L22: 0 | M22: 0 | S22: 0
K23: =IF(B23="","",VLOOKUP(B23,Reference!A$28:E$71,IF(H23="Hourly",2,IF(H23="Daily",3,IF(H23="Weekly",4,5))),FALSE)) ->  | L23: 0 | M23: 0 | S23: 0
K24: =IF(B24="","",VLOOKUP(B24,Reference!A$28:E$71,IF(H24="Hourly",2,IF(H24="Daily",3,IF(H24="Weekly",4,5))),FALSE)) ->  | L24: 0 | M24: 0 | S24: 0
K25: =IF(B25="","",VLOOKUP(B25,Reference!A$28:E$71,IF(H25="Hourly",2,IF(H25="Daily",3,IF(H25="Weekly",4,5))),FALSE)) ->  | L25: 0 | M25: 0 | S25: 0
K26: =IF(B26="","",VLOOKUP(B26,Reference!A$28:E$71,IF(H26="Hourly",2,IF(H26="Daily",3,IF(H26="Weekly",4,5))),FALSE)) ->  | L26: 0 | M26: 0 | S26: 0
K27: =IF(B27="","",VLOOKUP(B27,Reference!A$28:E$71,IF(H27="Hourly",2,IF(H27="Daily",3,IF(H27="Weekly",4,5))),FALSE)) ->  | L27: 0 | M27: 0 | S27: 0
K28: =IF(B28="","",VLOOKUP(B28,Reference!A$28:E$71,IF(H28="Hourly",2,IF(H28="Daily",3,IF(H28="Weekly",4,5))),FALSE)) ->  | L28: 0 | M28: 0 | S28: 0
K29: =IF(B29="","",VLOOKUP(B29,Reference!A$28:E$71,IF(H29="Hourly",2,IF(H29="Daily",3,IF(H29="Weekly",4,5))),FALSE)) ->  | L29: 0 | M29: 0 | S29: 0
K30: =IF(B30="","",VLOOKUP(B30,Reference!A$28:E$71,IF(H30="Hourly",2,IF(H30="Daily",3,IF(H30="Weekly",4,5))),FALSE)) ->  | L30: 0 | M30: 0 | S30: 0
K31: =IF(B31="","",VLOOKUP(B31,Reference!A$28:E$71,IF(H31="Hourly",2,IF(H31="Daily",3,IF(H31="Weekly",4,5))),FALSE)) ->  | L31: 0 | M31: 0 | S31: 0
K32: =IF(B32="","",VLOOKUP(B32,Reference!A$28:E$71,IF(H32="Hourly",2,IF(H32="Daily",3,IF(H32="Weekly",4,5))),FALSE)) ->  | L32: 0 | M32: 0 | Q32: =IF(SUM(M15:M32)>0,1,0) -> 0 | R32: Print check | S32: 0
A34: PART 5.C
A35: EQUIPMENT RENTAL/PURCHASE SUPPLEMENTARY SHEET
A37: 1. List all charges for outside rentals, contractor-owned rental equipment, and purchased equipment.
A38: 2. A completed Treatment System Tracking Form (Part 7) & Purchase Agreement Form (Part 8) must be provided for treatment units.
A39: 3. Vehicle rental charges are not reimbursable.
A40: 4. (No. of Units/Time Used At Site) X (Rental Rate) = (Total)
A41: 5. Equipment charges for work activities included in unit pricing should not be included on this form.
A42: 6. Rental rates for contractor-owned equipment are listed in Appendix B, Table 2 of the Guidance Document.
A43: 7. Weekly rate goes into effect when equipment is used at a site for more than three days in a week (Monday – Sunday) . Daily rates are based on an 8-hour day. Equipment rental costs
A44: for more or less than an 8-hour day must utilize the hourly rate.
A45: 8. The ratings for the following equipment must be provided: air compressor – cfm, backhoe – bucket size, dump truck – yard capacity, trackhoe – horsepower, vacuum truck - horsepower.
A47: Costing Category | B47: Equipment | C47: Description | D47: RAC Invoice No. | E47: Outside Invoice No. | F47: Dates Equipment Used | G47: 10% Markup Applies (Yes/No) | H47: Units | I47: Time Used | J47: Outside Vendor Rate ($) | K47: RAC Owned Rate ($) | L47: Markup Subtotal ($) | M47: TOTAL | S47: Test
K48: =IF(B48="","",VLOOKUP(B48,Reference!A$28:E$71,IF(H48="Hourly",2,IF(H48="Daily",3,IF(H48="Weekly",4,5))),FALSE)) ->  | L48: =IF(G48="Yes",ROUND(IF(J48="",I48*K48,J48*I48)*0.1,2),0) -> 0 | M48: =IF(A48="",0,IF(B48="","",IF(J48="",I48*K48,J48*I48)+L48)) -> 0 | S48: =IF(B48<>"",IF(OR(A48="",C48="",F48="",H48="",I48="",CONCATENATE(D48,E48)=""),1,0),0) -> 0
K49: =IF(B49="","",VLOOKUP(B49,Reference!A$28:E$71,IF(H49="Hourly",2,IF(H49="Daily",3,IF(H49="Weekly",4,5))),FALSE)) ->  | L49: =IF(G49="Yes",ROUND(IF(J49="",I49*K49,J49*I49)*0.1,2),0) -> 0 | M49: =IF(A49="",0,IF(B49="","",IF(J49="",I49*K49,J49*I49)+L49)) -> 0 | S49: =IF(B49<>"",IF(OR(A49="",C49="",F49="",H49="",I49="",CONCATENATE(D49,E49)=""),1,0),0) -> 0
K50: =IF(B50="","",VLOOKUP(B50,Reference!A$28:E$71,IF(H50="Hourly",2,IF(H50="Daily",3,IF(H50="Weekly",4,5))),FALSE)) ->  | L50: 0 | M50: 0 | S50: 0
K51: =IF(B51="","",VLOOKUP(B51,Reference!A$28:E$71,IF(H51="Hourly",2,IF(H51="Daily",3,IF(H51="Weekly",4,5))),FALSE)) ->  | L51: 0 | M51: 0 | S51: 0
K52: =IF(B52="","",VLOOKUP(B52,Reference!A$28:E$71,IF(H52="Hourly",2,IF(H52="Daily",3,IF(H52="Weekly",4,5))),FALSE)) ->  | L52: 0 | M52: 0 | S52: 0
K53: =IF(B53="","",VLOOKUP(B53,Reference!A$28:E$71,IF(H53="Hourly",2,IF(H53="Daily",3,IF(H53="Weekly",4,5))),FALSE)) ->  | L53: 0 | M53: 0 | S53: 0
K54: =IF(B54="","",VLOOKUP(B54,Reference!A$28:E$71,IF(H54="Hourly",2,IF(H54="Daily",3,IF(H54="Weekly",4,5))),FALSE)) ->  | L54: 0 | M54: 0 | S54: 0
K55: =IF(B55="","",VLOOKUP(B55,Reference!A$28:E$71,IF(H55="Hourly",2,IF(H55="Daily",3,IF(H55="Weekly",4,5))),FALSE)) ->  | L55: 0 | M55: 0 | S55: 0
K56: =IF(B56="","",VLOOKUP(B56,Reference!A$28:E$71,IF(H56="Hourly",2,IF(H56="Daily",3,IF(H56="Weekly",4,5))),FALSE)) ->  | L56: 0 | M56: 0 | S56: 0
K57: =IF(B57="","",VLOOKUP(B57,Reference!A$28:E$71,IF(H57="Hourly",2,IF(H57="Daily",3,IF(H57="Weekly",4,5))),FALSE)) ->  | L57: 0 | M57: 0 | S57: 0
K58: =IF(B58="","",VLOOKUP(B58,Reference!A$28:E$71,IF(H58="Hourly",2,IF(H58="Daily",3,IF(H58="Weekly",4,5))),FALSE)) ->  | L58: 0 | M58: 0 | S58: 0
K59: =IF(B59="","",VLOOKUP(B59,Reference!A$28:E$71,IF(H59="Hourly",2,IF(H59="Daily",3,IF(H59="Weekly",4,5))),FALSE)) ->  | L59: 0 | M59: 0 | S59: 0
K60: =IF(B60="","",VLOOKUP(B60,Reference!A$28:E$71,IF(H60="Hourly",2,IF(H60="Daily",3,IF(H60="Weekly",4,5))),FALSE)) ->  | L60: 0 | M60: 0 | S60: 0
K61: =IF(B61="","",VLOOKUP(B61,Reference!A$28:E$71,IF(H61="Hourly",2,IF(H61="Daily",3,IF(H61="Weekly",4,5))),FALSE)) ->  | L61: 0 | M61: 0 | S61: 0
K62: =IF(B62="","",VLOOKUP(B62,Reference!A$28:E$71,IF(H62="Hourly",2,IF(H62="Daily",3,IF(H62="Weekly",4,5))),FALSE)) ->  | L62: 0 | M62: 0 | S62: 0
K63: =IF(B63="","",VLOOKUP(B63,Reference!A$28:E$71,IF(H63="Hourly",2,IF(H63="Daily",3,IF(H63="Weekly",4,5))),FALSE)) ->  | L63: 0 | M63: 0 | S63: 0
K64: =IF(B64="","",VLOOKUP(B64,Reference!A$28:E$71,IF(H64="Hourly",2,IF(H64="Daily",3,IF(H64="Weekly",4,5))),FALSE)) ->  | L64: 0 | M64: 0 | S64: 0
K65: =IF(B65="","",VLOOKUP(B65,Reference!A$28:E$71,IF(H65="Hourly",2,IF(H65="Daily",3,IF(H65="Weekly",4,5))),FALSE)) ->  | L65: 0 | M65: 0 | Q65: =IF(SUM(M48:M65)>0,1,0) -> 0 | R65: Print check | S65: 0

Sheet Hotel & Food
A1: PART 5.D (1) | N1: =+N48+N97 -> 0 | O1: Total Print check
A2: TRAVEL SUPPLEMENTARY SHEET - LODGING/MEALS
F3: Costing Category Summary
A4: RATES DESCRIPTION | C4: MAXIMUM RATES | F4: Emergency/Initial | J4: =SUMIF(A$19:A$48,F4,J$19:J$48)+SUMIF(A$68:A$90,F4,J$68:J$90) -> 0
A5: Meals - Statewide | C5: $50/day | F5: Investigation | J5: =SUMIF(A$19:A$48,F5,J$19:J$48)+SUMIF(A$68:A$90,F5,J$68:J$90) -> 0
A6: Meals - Gretna/Kenner/Metairie/New Orleans | C6: $55/day | F6: Interim Monitoring | J6: =SUMIF(A$19:A$48,F6,J$19:J$48)+SUMIF(A$68:A$90,F6,J$68:J$90) -> 0
A7: Hotel - Statewide | C7: $110/night (plus tax) | F7: Corrective Action Plan | J7: =SUMIF(A$19:A$48,F7,J$19:J$48)+SUMIF(A$68:A$90,F7,J$68:J$90) -> 0
A8: Hotel - Gretna/Kenner/Metairie/New Orleans | C8: $165/night (plus tax) | F8: Report Preparation | J8: =SUMIF(A$19:A$48,F8,J$19:J$48)+SUMIF(A$68:A$90,F8,J$68:J$90) -> 0
A10: 1. Overnight charges (hotel or meals) are allowed for any activities when it is more cost effective than commuting.
A11: 2. Meals are only reimbursable when overnight stay is required.
A12: 3. Hotel charges must be accompanied by itemized bill/invoices with the guest name(s) printed by the hotel. | F12: =IF(SUM(P19:P90)>0,"MISSING INFORMATION","") -> 
A13: 4. No RAC markup allowed.
A14: 5. Single site visits: (Hotel Charges) + (Meal Charges) = Total
A15: 6. Multiple site visits: [(Hotel Charges) + (Meal Charges)] ÷ (No. Of Sites Visited) = Total
A16: 7. Airfares, toll charges, and taxi charges are not reimbursable.
A18: Costing Category | B18: Reason for Overnight Stay or Meals (Select all options that apply) | C18: Last Name of Person(s) | D18: RAC Invoice No. | E18: Trip Start Date | F18: Trip Return Date | G18: Hotel Charges | H18: Meal Charges | I18: No. of Sites Visited | J18: TOTAL | P18: Test
J19: =ROUND(IF(I19=0,SUM(G19+H19),((G19+H19)/I19)),2) -> 0 | P19: =IF((G19+H19)>0,IF(OR(CONCATENATE(B19,B20,B21)="",E19="",D19="",C19="",F19="",A19=""),1,0),0) -> 0
J22: =ROUND(IF(I22=0,SUM(G22+H22),((G22+H22)/I22)),2) -> 0 | P22: =IF((G22+H22)>0,IF(OR(CONCATENATE(B22,B23,B24)="",E22="",D22="",C22="",F22="",A22=""),1,0),0) -> 0
J25: =ROUND(IF(I25=0,SUM(G25+H25),((G25+H25)/I25)),2) -> 0 | P25: =IF((G25+H25)>0,IF(OR(CONCATENATE(B25,B26,B27)="",E25="",D25="",C25="",F25="",A25=""),1,0),0) -> 0
J28: =ROUND(IF(I28=0,SUM(G28+H28),((G28+H28)/I28)),2) -> 0 | P28: =IF((G28+H28)>0,IF(OR(CONCATENATE(B28,B29,B30)="",E28="",D28="",C28="",F28="",A28=""),1,0),0) -> 0
J31: =ROUND(IF(I31=0,SUM(G31+H31),((G31+H31)/I31)),2) -> 0 | P31: =IF((G31+H31)>0,IF(OR(CONCATENATE(B31,B32,B33)="",E31="",D31="",C31="",F31="",A31=""),1,0),0) -> 0
J34: =ROUND(IF(I34=0,SUM(G34+H34),((G34+H34)/I34)),2) -> 0 | P34: =IF((G34+H34)>0,IF(OR(CONCATENATE(B34,B35,B36)="",E34="",D34="",C34="",F34="",A34=""),1,0),0) -> 0
J37: =ROUND(IF(I37=0,SUM(G37+H37),((G37+H37)/I37)),2) -> 0 | P37: =IF((G37+H37)>0,IF(OR(CONCATENATE(B37,B38,B39)="",E37="",D37="",C37="",F37="",A37=""),1,0),0) -> 0
J40: =ROUND(IF(I40=0,SUM(G40+H40),((G40+H40)/I40)),2) -> 0 | P40: =IF((G40+H40)>0,IF(OR(CONCATENATE(B40,B41,B42)="",E40="",D40="",C40="",F40="",A40=""),1,0),0) -> 0
J43: =ROUND(IF(I43=0,SUM(G43+H43),((G43+H43)/I43)),2) -> 0 | P43: =IF((G43+H43)>0,IF(OR(CONCATENATE(B43,B44,B45)="",E43="",D43="",C43="",F43="",A43=""),1,0),0) -> 0
J46: =ROUND(IF(I46=0,SUM(G46+H46),((G46+H46)/I46)),2) -> 0 | P46: =IF((G46+H46)>0,IF(OR(CONCATENATE(B46,B47,B48)="",E46="",D46="",C46="",F46="",A46=""),1,0),0) -> 0
N48: =IF(SUM(J19:J48)>0,1,0) -> 0 | O48: Print check
A50: PART 5.D (1)
A51: TRAVEL SUPPLEMENTARY SHEET - LODGING/MEALS
A53: RATES DESCRIPTION | C53: MAXIMUM RATES
A54: Meals - Statewide | C54: $50/day
A55: Meals - Gretna/Kenner/Metairie/New Orleans | C55: $55/day
A56: Hotel - Statewide | C56: $110/night (plus tax)
A57: Hotel - Gretna/Kenner/Metairie/New Orleans | C57: $165/night (plus tax)
A59: 1. Overnight charges (hotel or meals) are allowed for any activities when it is more cost effective than commuting.
A60: 2. Meals are only reimbursable when overnight stay is required.
A61: 3. Hotel charges must be accompanied by itemized bill/invoices with the guest name(s) printed by the hotel.
A62: 4. No RAC markup allowed.
A63: 5. Single site visits: (Hotel Charges) + (Meal Charges) = Total
A64: 6. Multiple site visits: [(Hotel Charges) + (Meal Charges)] ÷ (No. Of Sites Visited) = Total
A65: 7. Airfares, toll charges, and taxi charges are not reimbursable.
A67: Costing Category | B67: Reason for Overnight Stay or Meals (Select all options that apply) | C67: Last Name of Person(s) | D67: RAC Invoice No. | E67: Trip Start Date | F67: Trip Return Date | G67: Hotel Charges | H67: Meal Charges | I67: No. of Sites Visited | J67: TOTAL | P67: Test
J68: =ROUND(IF(I68=0,SUM(G68+H68),((G68+H68)/I68)),2) -> 0 | P68: =IF((G68+H68)>0,IF(OR(CONCATENATE(B68,B69,B70)="",E68="",D68="",C68="",F68="",A68=""),1,0),0) -> 0
J71: =ROUND(IF(I71=0,SUM(G71+H71),((G71+H71)/I71)),2) -> 0 | P71: =IF((G71+H71)>0,IF(OR(CONCATENATE(B71,B72,B73)="",E71="",D71="",C71="",F71="",A71=""),1,0),0) -> 0
J74: =ROUND(IF(I74=0,SUM(G74+H74),((G74+H74)/I74)),2) -> 0 | P74: =IF((G74+H74)>0,IF(OR(CONCATENATE(B74,B75,B76)="",E74="",D74="",C74="",F74="",A74=""),1,0),0) -> 0
J77: =ROUND(IF(I77=0,SUM(G77+H77),((G77+H77)/I77)),2) -> 0 | P77: =IF((G77+H77)>0,IF(OR(CONCATENATE(B77,B78,B79)="",E77="",D77="",C77="",F77="",A77=""),1,0),0) -> 0
J80: =ROUND(IF(I80=0,SUM(G80+H80),((G80+H80)/I80)),2) -> 0 | P80: =IF((G80+H80)>0,IF(OR(CONCATENATE(B80,B81,B82)="",E80="",D80="",C80="",F80="",A80=""),1,0),0) -> 0
J83: =ROUND(IF(I83=0,SUM(G83+H83),((G83+H83)/I83)),2) -> 0 | P83: =IF((G83+H83)>0,IF(OR(CONCATENATE(B83,B84,B85)="",E83="",D83="",C83="",F83="",A83=""),1,0),0) -> 0
J86: =ROUND(IF(I86=0,SUM(G86+H86),((G86+H86)/I86)),2) -> 0 | P86: =IF((G86+H86)>0,IF(OR(CONCATENATE(B86,B87,B88)="",E86="",D86="",C86="",F86="",A86=""),1,0),0) -> 0
J89: =ROUND(IF(I89=0,SUM(G89+H89),((G89+H89)/I89)),2) -> 0 | P89: =IF((G89+H89)>0,IF(OR(CONCATENATE(B89,B90,B91)="",E89="",D89="",C89="",F89="",A89=""),1,0),0) -> 0
J92: =ROUND(IF(I92=0,SUM(G92+H92),((G92+H92)/I92)),2) -> 0 | P92: =IF((G92+H92)>0,IF(OR(CONCATENATE(B92,B93,B94)="",E92="",D92="",C92="",F92="",A92=""),1,0),0) -> 0
J95: =ROUND(IF(I95=0,SUM(G95+H95),((G95+H95)/I95)),2) -> 0 | P95: =IF((G95+H95)>0,IF(OR(CONCATENATE(B95,B96,B97)="",E95="",D95="",C95="",F95="",A95=""),1,0),0) -> 0
N97: =IF(SUM(J68:J97)>0,1,0) -> 0 | O97: Print check

Sheet Travel
A1: PART 5.D (2) | N1: =+N50+N99+N148 -> 0 | O1: Total Print check
A2: TRAVEL SUPPLEMENTARY SHEET - UNIT PRICE TRAVEL | G2: Costing Category Summary
A3: (The mileage unit price includes costs for fuel and personnel travel time.) | D3: =IF(SUM(P12:P87)>0,"MISSING INFORMATION","") ->  | G3: Emergency/Initial | J3: =SUMIF(A$12:A$50,G3,J$12:J$50)+SUMIF(A$61:A$99,G3,J$61:J$99)+SUMIF(A$110:A$148,G3,J$110:J$148) -> 0
G4: Investigation | J4: =SUMIF(A$12:A$50,G4,J$12:J$50)+SUMIF(A$61:A$99,G4,J$61:J$99)+SUMIF(A$110:A$148,G4,J$110:J$148) -> 0
A5: 1. When multiple sites are visited in a single day, the total mileage must be divided by the number of sites visited. Total mileage | G5: Interim Monitoring | J5: 0
A6: should be rounded UP to a whole number. | G6: Corrective Action Plan | J6: 0
A7: 2. Travel charges for work activities included in unit pricing should not be addressed on this form. | G7: Report Preparation | J7: 0
A10: Costing Category | B10: Activities Performed (Select all options that apply) | C10: Date Sort By Oldest to Newest | D10: Destination Include Beginning, Interim, and Ending Areas Traveled (Ex: BR, Rayne, Lafayette, BR) | E10: RAC Invoice No. | F10: Total Mileage | G10: Complete these columns only when multiple site visits occurred | I10: RATE | J10: TOTAL | P10: Test
G11: No. of Sites Visited | H11: Adusted Mileage
H12: =IF(G12=0,"",ROUND(F12/G12,2)) ->  | I12: =IF(A12="",0,Reference!B$74) -> 0 | J12: =ROUND(IF(G12=0,F12*I12,H12*I12),2) -> 0 | P12: =IF(F12>0,IF(OR(A12="",CONCATENATE(B12,B13,B14)="",C12="",D12="",E12=""),1,0),0) -> 0
H15: =IF(G15=0,"",ROUND(F15/G15,2)) ->  | I15: =IF(A15="",0,Reference!B$74) -> 0 | J15: =ROUND(IF(G15=0,F15*I15,H15*I15),2) -> 0 | P15: =IF(F15>0,IF(OR(A15="",CONCATENATE(B15,B16,B17)="",C15="",D15="",E15=""),1,0),0) -> 0
H18: =IF(G18=0,"",ROUND(F18/G18,2)) ->  | I18: =IF(A18="",0,Reference!B$74) -> 0 | J18: =ROUND(IF(G18=0,F18*I18,H18*I18),2) -> 0 | P18: =IF(F18>0,IF(OR(A18="",CONCATENATE(B18,B19,B20)="",C18="",D18="",E18=""),1,0),0) -> 0
H21: =IF(G21=0,"",ROUND(F21/G21,2)) ->  | I21: =IF(A21="",0,Reference!B$74) -> 0 | J21: =ROUND(IF(G21=0,F21*I21,H21*I21),2) -> 0 | P21: =IF(F21>0,IF(OR(A21="",CONCATENATE(B21,B22,B23)="",C21="",D21="",E21=""),1,0),0) -> 0
H24: =IF(G24=0,"",ROUND(F24/G24,2)) ->  | I24: =IF(A24="",0,Reference!B$74) -> 0 | J24: =ROUND(IF(G24=0,F24*I24,H24*I24),2) -> 0 | P24: =IF(F24>0,IF(OR(A24="",CONCATENATE(B24,B25,B26)="",C24="",D24="",E24=""),1,0),0) -> 0
H27: =IF(G27=0,"",ROUND(F27/G27,2)) ->  | I27: =IF(A27="",0,Reference!B$74) -> 0 | J27: =ROUND(IF(G27=0,F27*I27,H27*I27),2) -> 0 | P27: =IF(F27>0,IF(OR(A27="",CONCATENATE(B27,B28,B29)="",C27="",D27="",E27=""),1,0),0) -> 0
H30: =IF(G30=0,"",ROUND(F30/G30,2)) ->  | I30: =IF(A30="",0,Reference!B$74) -> 0 | J30: =ROUND(IF(G30=0,F30*I30,H30*I30),2) -> 0 | P30: =IF(F30>0,IF(OR(A30="",CONCATENATE(B30,B31,B32)="",C30="",D30="",E30=""),1,0),0) -> 0
H33: =IF(G33=0,"",ROUND(F33/G33,2)) ->  | I33: =IF(A33="",0,Reference!B$74) -> 0 | J33: =ROUND(IF(G33=0,F33*I33,H33*I33),2) -> 0 | P33: =IF(F33>0,IF(OR(A33="",CONCATENATE(B33,B34,B35)="",C33="",D33="",E33=""),1,0),0) -> 0
H36: =IF(G36=0,"",ROUND(F36/G36,2)) ->  | I36: =IF(A36="",0,Reference!B$74) -> 0 | J36: =ROUND(IF(G36=0,F36*I36,H36*I36),2) -> 0 | P36: =IF(F36>0,IF(OR(A36="",CONCATENATE(B36,B37,B38)="",C36="",D36="",E36=""),1,0),0) -> 0
H39: =IF(G39=0,"",ROUND(F39/G39,2)) ->  | I39: =IF(A39="",0,Reference!B$74) -> 0 | J39: =ROUND(IF(G39=0,F39*I39,H39*I39),2) -> 0 | P39: =IF(F39>0,IF(OR(A39="",CONCATENATE(B39,B40,B41)="",C39="",D39="",E39=""),1,0),0) -> 0
H42: =IF(G42=0,"",ROUND(F42/G42,2)) ->  | I42: =IF(A42="",0,Reference!B$74) -> 0 | J42: =ROUND(IF(G42=0,F42*I42,H42*I42),2) -> 0 | P42: =IF(F42>0,IF(OR(A42="",CONCATENATE(B42,B43,B44)="",C42="",D42="",E42=""),1,0),0) -> 0
H45: =IF(G45=0,"",ROUND(F45/G45,2)) ->  | I45: =IF(A45="",0,Reference!B$74) -> 0 | J45: =ROUND(IF(G45=0,F45*I45,H45*I45),2) -> 0 | P45: =IF(F45>0,IF(OR(A45="",CONCATENATE(B45,B46,B47)="",C45="",D45="",E45=""),1,0),0) -> 0
H48: =IF(G48=0,"",ROUND(F48/G48,2)) ->  | I48: =IF(A48="",0,Reference!B$74) -> 0 | J48: =ROUND(IF(G48=0,F48*I48,H48*I48),2) -> 0 | P48: =IF(F48>0,IF(OR(A48="",CONCATENATE(B48,B49,B50)="",C48="",D48="",E48=""),1,0),0) -> 0
N50: =IF(SUM(J12:J50)>0,1,0) -> 0 | O50: Print check
A52: PART 5.D (2)
A53: TRAVEL SUPPLEMENTARY SHEET - UNIT PRICE TRAVEL
A54: (The unit price addresses costs associated with vehicle mileage and employees’ travel time)
A56: 1. When multiple sites are visited in a single day, the total mileage must be divided by the number of sites visited. Total mileage should be rounded UP to a whole number.
A57: 2. Travel charges for work activities included in unit pricing should not be addressed on this form.
A59: Costing Category | B59: Activities Performed (Select all options that apply) | C59: Date Sort By Oldest to Newest | D59: Destination Include Beginning, Interim, and Ending Areas Traveled (Ex: BR, Rayne, Lafayette, BR) | E59: RAC Invoice No. | F59: Total Mileage | G59: Complete these columns only when multiple site visits occurred | I59: RATE | J59: TOTAL | P59: Test
G60: No. of Sites Visited | H60: Adusted Mileage
H61: =IF(G61=0,"",ROUND(F61/G61,2)) ->  | I61: =IF(A61="",0,Reference!B$74) -> 0 | J61: =ROUND(IF(G61=0,F61*I61,H61*I61),2) -> 0 | P61: =IF(F61>0,IF(OR(A61="",CONCATENATE(B61,B62,B63)="",C61="",D61="",E61=""),1,0),0) -> 0
H64: =IF(G64=0,"",ROUND(F64/G64,2)) ->  | I64: =IF(A64="",0,Reference!B$74) -> 0 | J64: =ROUND(IF(G64=0,F64*I64,H64*I64),2) -> 0 | P64: =IF(F64>0,IF(OR(A64="",CONCATENATE(B64,B65,B66)="",C64="",D64="",E64=""),1,0),0) -> 0
H67: =IF(G67=0,"",ROUND(F67/G67,2)) ->  | I67: =IF(A67="",0,Reference!B$74) -> 0 | J67: =ROUND(IF(G67=0,F67*I67,H67*I67),2) -> 0 | P67: =IF(F67>0,IF(OR(A67="",CONCATENATE(B67,B68,B69)="",C67="",D67="",E67=""),1,0),0) -> 0
H70: =IF(G70=0,"",ROUND(F70/G70,2)) ->  | I70: =IF(A70="",0,Reference!B$74) -> 0 | J70: =ROUND(IF(G70=0,F70*I70,H70*I70),2) -> 0 | P70: =IF(F70>0,IF(OR(A70="",CONCATENATE(B70,B71,B72)="",C70="",D70="",E70=""),1,0),0) -> 0
H73: =IF(G73=0,"",ROUND(F73/G73,2)) ->  | I73: =IF(A73="",0,Reference!B$74) -> 0 | J73: =ROUND(IF(G73=0,F73*I73,H73*I73),2) -> 0 | P73: =IF(F73>0,IF(OR(A73="",CONCATENATE(B73,B74,B75)="",C73="",D73="",E73=""),1,0),0) -> 0
H76: =IF(G76=0,"",ROUND(F76/G76,2)) ->  | I76: =IF(A76="",0,Reference!B$74) -> 0 | J76: =ROUND(IF(G76=0,F76*I76,H76*I76),2) -> 0 | P76: =IF(F76>0,IF(OR(A76="",CONCATENATE(B76,B77,B78)="",C76="",D76="",E76=""),1,0),0) -> 0
H79: =IF(G79=0,"",ROUND(F79/G79,2)) ->  | I79: =IF(A79="",0,Reference!B$74) -> 0 | J79: =ROUND(IF(G79=0,F79*I79,H79*I79),2) -> 0 | P79: =IF(F79>0,IF(OR(A79="",CONCATENATE(B79,B80,B81)="",C79="",D79="",E79=""),1,0),0) -> 0
H82: =IF(G82=0,"",ROUND(F82/G82,2)) ->  | I82: =IF(A82="",0,Reference!B$74) -> 0 | J82: =ROUND(IF(G82=0,F82*I82,H82*I82),2) -> 0 | P82: =IF(F82>0,IF(OR(A82="",CONCATENATE(B82,B83,B84)="",C82="",D82="",E82=""),1,0),0) -> 0
H85: =IF(G85=0,"",ROUND(F85/G85,2)) ->  | I85: =IF(A85="",0,Reference!B$74) -> 0 | J85: =ROUND(IF(G85=0,F85*I85,H85*I85),2) -> 0 | P85: =IF(F85>0,IF(OR(A85="",CONCATENATE(B85,B86,B87)="",C85="",D85="",E85=""),1,0),0) -> 0
H88: =IF(G88=0,"",ROUND(F88/G88,2)) ->  | I88: =IF(A88="",0,Reference!B$74) -> 0 | J88: =ROUND(IF(G88=0,F88*I88,H88*I88),2) -> 0 | P88: =IF(F88>0,IF(OR(A88="",CONCATENATE(B88,B89,B90)="",C88="",D88="",E88=""),1,0),0) -> 0
H91: =IF(G91=0,"",ROUND(F91/G91,2)) ->  | I91: =IF(A91="",0,Reference!B$74) -> 0 | J91: =ROUND(IF(G91=0,F91*I91,H91*I91),2) -> 0 | P91: =IF(F91>0,IF(OR(A91="",CONCATENATE(B91,B92,B93)="",C91="",D91="",E91=""),1,0),0) -> 0
H94: =IF(G94=0,"",ROUND(F94/G94,2)) ->  | I94: =IF(A94="",0,Reference!B$74) -> 0 | J94: =ROUND(IF(G94=0,F94*I94,H94*I94),2) -> 0 | P94: =IF(F94>0,IF(OR(A94="",CONCATENATE(B94,B95,B96)="",C94="",D94="",E94=""),1,0),0) -> 0
H97: =IF(G97=0,"",ROUND(F97/G97,2)) ->  | I97: =IF(A97="",0,Reference!B$74) -> 0 | J97: =ROUND(IF(G97=0,F97*I97,H97*I97),2) -> 0 | P97: =IF(F97>0,IF(OR(A97="",CONCATENATE(B97,B98,B99)="",C97="",D97="",E97=""),1,0),0) -> 0
N99: =IF(SUM(J61:J99)>0,1,0) -> 0 | O99: Print check
A101: PART 5.D (2)
A102: TRAVEL SUPPLEMENTARY SHEET - UNIT PRICE TRAVEL
A103: (The unit price addresses costs associated with vehicle mileage and employees’ travel time)
A105: 1. When multiple sites are visited in a single day, the total mileage must be divided by the number of sites visited. Total mileage should be rounded UP to a whole number.
A106: 2. Travel charges for work activities included in unit pricing should not be addressed on this form.
A108: Costing Category | B108: Activities Performed (Select all options that apply) | C108: Date Sort By Oldest to Newest | D108: Destination Include Beginning, Interim, and Ending Areas Traveled (Ex: BR, Rayne, Lafayette, BR) | E108: RAC Invoice No. | F108: Total Mileage | G108: Complete these columns only when multiple site visits occurred | I108: RATE | J108: TOTAL | P108: Test
G109: No. of Sites Visited | H109: Adusted Mileage
H110: =IF(G110=0,"",ROUND(F110/G110,2)) ->  | I110: =IF(A110="",0,Reference!B$74) -> 0 | J110: =ROUND(IF(G110=0,F110*I110,H110*I110),2) -> 0 | P110: =IF(F110>0,IF(OR(A110="",CONCATENATE(B110,B111,B112)="",C110="",D110="",E110=""),1,0),0) -> 0
H113: =IF(G113=0,"",ROUND(F113/G113,2)) ->  | I113: =IF(A113="",0,Reference!B$74) -> 0 | J113: =ROUND(IF(G113=0,F113*I113,H113*I113),2) -> 0 | P113: =IF(F113>0,IF(OR(A113="",CONCATENATE(B113,B114,B115)="",C113="",D113="",E113=""),1,0),0) -> 0
H116: =IF(G116=0,"",ROUND(F116/G116,2)) ->  | I116: =IF(A116="",0,Reference!B$74) -> 0 | J116: =ROUND(IF(G116=0,F116*I116,H116*I116),2) -> 0 | P116: =IF(F116>0,IF(OR(A116="",CONCATENATE(B116,B117,B118)="",C116="",D116="",E116=""),1,0),0) -> 0
H119: =IF(G119=0,"",ROUND(F119/G119,2)) ->  | I119: =IF(A119="",0,Reference!B$74) -> 0 | J119: =ROUND(IF(G119=0,F119*I119,H119*I119),2) -> 0 | P119: =IF(F119>0,IF(OR(A119="",CONCATENATE(B119,B120,B121)="",C119="",D119="",E119=""),1,0),0) -> 0
H122: =IF(G122=0,"",ROUND(F122/G122,2)) ->  | I122: =IF(A122="",0,Reference!B$74) -> 0 | J122: =ROUND(IF(G122=0,F122*I122,H122*I122),2) -> 0 | P122: =IF(F122>0,IF(OR(A122="",CONCATENATE(B122,B123,B124)="",C122="",D122="",E122=""),1,0),0) -> 0
H125: =IF(G125=0,"",ROUND(F125/G125,2)) ->  | I125: =IF(A125="",0,Reference!B$74) -> 0 | J125: =ROUND(IF(G125=0,F125*I125,H125*I125),2) -> 0 | P125: =IF(F125>0,IF(OR(A125="",CONCATENATE(B125,B126,B127)="",C125="",D125="",E125=""),1,0),0) -> 0
H128: =IF(G128=0,"",ROUND(F128/G128,2)) ->  | I128: =IF(A128="",0,Reference!B$74) -> 0 | J128: =ROUND(IF(G128=0,F128*I128,H128*I128),2) -> 0 | P128: =IF(F128>0,IF(OR(A128="",CONCATENATE(B128,B129,B130)="",C128="",D128="",E128=""),1,0),0) -> 0
H131: =IF(G131=0,"",ROUND(F131/G131,2)) ->  | I131: =IF(A131="",0,Reference!B$74) -> 0 | J131: =ROUND(IF(G131=0,F131*I131,H131*I131),2) -> 0 | P131: =IF(F131>0,IF(OR(A131="",CONCATENATE(B131,B132,B133)="",C131="",D131="",E131=""),1,0),0) -> 0
H134: =IF(G134=0,"",ROUND(F134/G134,2)) ->  | I134: =IF(A134="",0,Reference!B$74) -> 0 | J134: =ROUND(IF(G134=0,F134*I134,H134*I134),2) -> 0 | P134: =IF(F134>0,IF(OR(A134="",CONCATENATE(B134,B135,B136)="",C134="",D134="",E134=""),1,0),0) -> 0
H137: =IF(G137=0,"",ROUND(F137/G137,2)) ->  | I137: =IF(A137="",0,Reference!B$74) -> 0 | J137: =ROUND(IF(G137=0,F137*I137,H137*I137),2) -> 0 | P137: =IF(F137>0,IF(OR(A137="",CONCATENATE(B137,B138,B139)="",C137="",D137="",E137=""),1,0),0) -> 0
H140: =IF(G140=0,"",ROUND(F140/G140,2)) ->  | I140: =IF(A140="",0,Reference!B$74) -> 0 | J140: =ROUND(IF(G140=0,F140*I140,H140*I140),2) -> 0 | P140: =IF(F140>0,IF(OR(A140="",CONCATENATE(B140,B141,B142)="",C140="",D140="",E140=""),1,0),0) -> 0
H143: =IF(G143=0,"",ROUND(F143/G143,2)) ->  | I143: =IF(A143="",0,Reference!B$74) -> 0 | J143: =ROUND(IF(G143=0,F143*I143,H143*I143),2) -> 0 | P143: =IF(F143>0,IF(OR(A143="",CONCATENATE(B143,B144,B145)="",C143="",D143="",E143=""),1,0),0) -> 0
H146: =IF(G146=0,"",ROUND(F146/G146,2)) ->  | I146: =IF(A146="",0,Reference!B$74) -> 0 | J146: =ROUND(IF(G146=0,F146*I146,H146*I146),2) -> 0 | P146: =IF(F146>0,IF(OR(A146="",CONCATENATE(B146,B147,B148)="",C146="",D146="",E146=""),1,0),0) -> 0
N148: =IF(SUM(J110:J148)>0,1,0) -> 0 | O148: Print check

Sheet Transportation&Shipping
A1: PART 5.E | L1: =+L37+L73 -> 0 | M1: Total Print check
A2: TRANSPORTATION/SHIPPING SUPPLEMENTARY SHEET
B3: =IF(SUM(N13:N73)>0,"MISSING INFORMATION","") -> 
D4: Costing Category Summary
D5: Emergency/Initial | G5: =SUMIF(A$13:A$37,D5,H$13:H$37)+SUMIF(A$49:A$73,D5,H$49:H$73) -> 0
A6: 1. List shipping charges for contaminated soils and/or water and equipment used for activities other than well drilling, P&A, and geoprobe work. | D6: Investigation | G6: =SUMIF(A$13:A$37,D6,H$13:H$37)+SUMIF(A$49:A$73,D6,H$49:H$73) -> 0
A7: 2. If a single invoice addresses charges for multiple sites, indicate each site name and the amount charged to each site on the invoice. | D7: Interim Monitoring | G7: =SUMIF(A$13:A$37,D7,H$13:H$37)+SUMIF(A$49:A$73,D7,H$49:H$73) -> 0
A8: 3. Rush charges not required by DEQ will not be reimbursed. | D8: Corrective Action Plan | G8: =SUMIF(A$13:A$37,D8,H$13:H$37)+SUMIF(A$49:A$73,D8,H$49:H$73) -> 0
A9: 4. Transportation charges for work activities included in unit pricing should not be addressed on this form.
A12: Costing Category | B12: Description of Each Item Shipped | C12: RAC Invoice No. | D12: Outside Invoice No. | E12: 10% Markup Applies (Yes/No) | F12: Shipping Cost ($) | G12: Markup Subtotal ($) | H12: TOTAL | N12: Test
G13: =IF(E13="Yes",H13-F13,0) -> 0 | H13: =IF(F13<>0,IF(E13="Yes",F13*1.1,F13),0) -> 0 | N13: =IF(H13>0,IF(OR(A13="",B13="",C13="",D13=""),1,0),0) -> 0
G14: =IF(E14="Yes",H14-F14,0) -> 0 | H14: =IF(F14<>0,IF(E14="Yes",F14*1.1,F14),0) -> 0 | N14: =IF(H14>0,IF(OR(A14="",B14="",C14="",D14=""),1,0),0) -> 0
G15: 0 | H15: 0 | N15: 0
G16: 0 | H16: 0 | N16: 0
G17: 0 | H17: 0 | N17: 0
G18: 0 | H18: 0 | N18: 0
G19: 0 | H19: 0 | N19: 0
G20: 0 | H20: 0 | N20: 0
G21: 0 | H21: 0 | N21: 0
G22: 0 | H22: 0 | N22: 0
G23: 0 | H23: 0 | N23: 0
G24: 0 | H24: 0 | N24: 0
G25: 0 | H25: 0 | N25: 0
G26: 0 | H26: 0 | N26: 0
G27: 0 | H27: 0 | N27: 0
G28: 0 | H28: 0 | N28: 0
G29: 0 | H29: 0 | N29: 0
G30: 0 | H30: 0 | N30: 0
G31: 0 | H31: 0 | N31: 0
G32: 0 | H32: 0 | N32: 0
G33: 0 | H33: 0 | N33: 0
G34: 0 | H34: 0 | N34: 0
G35: 0 | H35: 0 | N35: 0
G36: 0 | H36: 0 | N36: 0
G37: 0 | H37: 0 | L37: =IF(SUM(H13:H37)>0,1,0) -> 0 | M37: Print check | N37: 0
A39: PART 5.E
A40: TRANSPORTATION/SHIPPING SUPPLEMENTARY SHEET
A42: 1. List shipping charges for contaminated soils and/or water and equipment used for activities other than well drilling, P&A, and geoprobe work.
A43: 2. If a single invoice addresses charges for multiple sites, indicate each site name and the amount charged to each site on the invoice.
A44: 3. Rush charges not required by DEQ will not be reimbursed.
A45: 4. Transportation charges for work activities included in unit pricing should not be addressed on this form.
A48: Costing Category | B48: Description of Each Item Shipped | C48: RAC Invoice No. | D48: Outside Invoice No. | E48: 10% Markup Applies (Yes/No) | F48: Shipping Cost ($) | G48: Markup Subtotal ($) | H48: TOTAL | N48: Test
G49: =IF(E49="Yes",H49-F49,0) -> 0 | H49: =IF(F49<>0,IF(E49="Yes",F49*1.1,F49),0) -> 0 | N49: =IF(H49>0,IF(OR(A49="",B49="",C49="",D49=""),1,0),0) -> 0
G50: =IF(E50="Yes",H50-F50,0) -> 0 | H50: 0 | N50: =IF(H50>0,IF(OR(A50="",B50="",C50="",D50=""),1,0),0) -> 0
G51: 0 | H51: 0 | N51: 0
G52: 0 | H52: 0 | N52: 0
G53: 0 | H53: 0 | N53: 0
G54: 0 | H54: 0 | N54: 0
G55: 0 | H55: 0 | N55: 0
G56: 0 | H56: 0 | N56: 0
G57: 0 | H57: 0 | N57: 0
G58: 0 | H58: 0 | N58: 0
G59: 0 | H59: 0 | N59: 0
G60: 0 | H60: 0 | N60: 0
G61: 0 | H61: 0 | N61: 0
G62: 0 | H62: 0 | N62: 0
G63: 0 | H63: 0 | N63: 0
G64: 0 | H64: 0 | N64: 0
G65: 0 | H65: 0 | N65: 0
G66: 0 | H66: 0 | N66: 0
G67: 0 | H67: 0 | N67: 0
G68: 0 | H68: 0 | N68: 0
G69: 0 | H69: 0 | N69: 0
G70: 0 | H70: 0 | N70: 0
G71: 0 | H71: 0 | N71: 0
G72: 0 | H72: 0 | N72: 0
G73: 0 | H73: 0 | L73: =IF(SUM(H49:H73)>0,1,0) -> 0 | M73: Print check | N73: 0

Sheet Drilling-P&A
A1: PART 5.F | D1: =IF(SUM(Q18:Q79)>0,"MISSING INFORMATION","") ->  | M1: =+M39+M79 -> 0 | N1: Total Print check
A2: DRILLING/PLUGGING & ABANDONMENT SUPPLEMENTARY SHEET
A6: 1. The per foot rates include all costs associated with drilling or P&A of wells and borings with the exceptions of mileage, mob/demob unit price, analysis, and disposal of cuttings.
A7: 2. (Depth of Boring or Well) X (Cost Per Foot) = (Total)
A8: 3. When a boring is converted to a monitoring well, only the monitoring well rate is reimbursable. | F8: Costing Category Summary
A9: 4. Drilling logs, well registrations, and P&A forms must be provided. | F9: Emergency/Initial | I9: =SUMIF(A$18:A$39,F9,I$18:I$39)+SUMIF(A$58:A$79,F9,I$58:I$79) -> 0
A10: 5. In the “Activity Type” column, enter one of the following P&A methods: | F10: Investigation | I10: =SUMIF(A$18:A$39,F10,I$18:I$39)+SUMIF(A$58:A$79,F10,I$58:I$79) -> 0
A11: P&A-1 = Overdrilling | F11: Interim Monitoring | I11: =SUMIF(A$18:A$39,F11,I$18:I$39)+SUMIF(A$58:A$79,F11,I$58:I$79) -> 0
A12: P&A-2 = Pulling casing/screen and grouting | F12: Corrective Action Plan | I12: =SUMIF(A$18:A$39,F12,I$18:I$39)+SUMIF(A$58:A$79,F12,I$58:I$79) -> 0
A13: P&A-3 = Grouting only
A14: 6. If a minimum rate or per-day rate for chemical injection is being charged, indicate the number of events next to the appropriate activity. All well/activity information
A15: must be documented, excluding the Cost Per Foot Rate and including the dates of chemical injection events.
A17: Costing Category | B17: Well/Boring Identification Numbers (As shown in technical reports to DEQ) | C17: Activity Date | D17: Well Type, Activity, and Diameter (inches) | E17: RAC Invoice No. | F17: Activity Type [New well or P&A (1, 2, or 3); see note 5] | G17: Depth (feet) | H17: Cost Per Foot Rate | I17: TOTAL | O17: New Well ($/ft) | P17: P&A ($/ft) | Q17: Test
H18: =IF(D18="",0,IF(F18="New well",O18,IF(LEFT(F18,3)="P&A",P18,0))) -> 0 | I18: =ROUND((G18*H18),2) -> 0 | O18: =IF(F18="New well",VLOOKUP('Drilling-P&A'!D18,Reference!A$106:E$117,5,FALSE),0) -> 0 | P18: =IF(F18="P&A-1",VLOOKUP(D18,Reference!A$106:I$117,7,FALSE),IF(F18="P&A-2",VLOOKUP(D18,Reference!A$106:I$117,8,FALSE),IF(F18="P&A-3",VLOOKUP(D18,Reference!A$106:I$117,9,FALSE),0))) -> 0 | Q18: =IF(D18<>"",IF(OR(A18="",B18="",C18="",E18="",F18="",G18=""),1,0),0) -> 0
H19: =IF(D19="",0,IF(F19="New well",O19,IF(LEFT(F19,3)="P&A",P19,0))) -> 0 | I19: =ROUND((G19*H19),2) -> 0 | O19: =IF(F19="New well",VLOOKUP('Drilling-P&A'!D19,Reference!A$106:E$117,5,FALSE),0) -> 0 | P19: =IF(F19="P&A-1",VLOOKUP(D19,Reference!A$106:I$117,7,FALSE),IF(F19="P&A-2",VLOOKUP(D19,Reference!A$106:I$117,8,FALSE),IF(F19="P&A-3",VLOOKUP(D19,Reference!A$106:I$117,9,FALSE),0))) -> 0 | Q19: =IF(D19<>"",IF(OR(A19="",B19="",C19="",E19="",F19="",G19=""),1,0),0) -> 0
H20: 0 | I20: 0 | O20: =IF(F20="New well",VLOOKUP('Drilling-P&A'!D20,Reference!A$106:E$117,5,FALSE),0) -> 0 | P20: =IF(F20="P&A-1",VLOOKUP(D20,Reference!A$106:I$117,7,FALSE),IF(F20="P&A-2",VLOOKUP(D20,Reference!A$106:I$117,8,FALSE),IF(F20="P&A-3",VLOOKUP(D20,Reference!A$106:I$117,9,FALSE),0))) -> 0 | Q20: 0
H21: 0 | I21: 0 | O21: =IF(F21="New well",VLOOKUP('Drilling-P&A'!D21,Reference!A$106:E$117,5,FALSE),0) -> 0 | P21: =IF(F21="P&A-1",VLOOKUP(D21,Reference!A$106:I$117,7,FALSE),IF(F21="P&A-2",VLOOKUP(D21,Reference!A$106:I$117,8,FALSE),IF(F21="P&A-3",VLOOKUP(D21,Reference!A$106:I$117,9,FALSE),0))) -> 0 | Q21: 0
H22: 0 | I22: 0 | O22: =IF(F22="New well",VLOOKUP('Drilling-P&A'!D22,Reference!A$106:E$117,5,FALSE),0) -> 0 | P22: =IF(F22="P&A-1",VLOOKUP(D22,Reference!A$106:I$117,7,FALSE),IF(F22="P&A-2",VLOOKUP(D22,Reference!A$106:I$117,8,FALSE),IF(F22="P&A-3",VLOOKUP(D22,Reference!A$106:I$117,9,FALSE),0))) -> 0 | Q22: 0
H23: 0 | I23: =ROUND((G23*H23),2) -> 0 | O23: =IF(F23="New well",VLOOKUP('Drilling-P&A'!D23,Reference!A$106:E$117,5,FALSE),0) -> 0 | P23: =IF(F23="P&A-1",VLOOKUP(D23,Reference!A$106:I$117,7,FALSE),IF(F23="P&A-2",VLOOKUP(D23,Reference!A$106:I$117,8,FALSE),IF(F23="P&A-3",VLOOKUP(D23,Reference!A$106:I$117,9,FALSE),0))) -> 0 | Q23: 0
H24: 0 | I24: =ROUND((G24*H24),2) -> 0 | O24: =IF(F24="New well",VLOOKUP('Drilling-P&A'!D24,Reference!A$106:E$117,5,FALSE),0) -> 0 | P24: =IF(F24="P&A-1",VLOOKUP(D24,Reference!A$106:I$117,7,FALSE),IF(F24="P&A-2",VLOOKUP(D24,Reference!A$106:I$117,8,FALSE),IF(F24="P&A-3",VLOOKUP(D24,Reference!A$106:I$117,9,FALSE),0))) -> 0 | Q24: 0
H25: 0 | I25: 0 | O25: =IF(F25="New well",VLOOKUP('Drilling-P&A'!D25,Reference!A$106:E$117,5,FALSE),0) -> 0 | P25: =IF(F25="P&A-1",VLOOKUP(D25,Reference!A$106:I$117,7,FALSE),IF(F25="P&A-2",VLOOKUP(D25,Reference!A$106:I$117,8,FALSE),IF(F25="P&A-3",VLOOKUP(D25,Reference!A$106:I$117,9,FALSE),0))) -> 0 | Q25: 0
H26: 0 | I26: 0 | O26: =IF(F26="New well",VLOOKUP('Drilling-P&A'!D26,Reference!A$106:E$117,5,FALSE),0) -> 0 | P26: =IF(F26="P&A-1",VLOOKUP(D26,Reference!A$106:I$117,7,FALSE),IF(F26="P&A-2",VLOOKUP(D26,Reference!A$106:I$117,8,FALSE),IF(F26="P&A-3",VLOOKUP(D26,Reference!A$106:I$117,9,FALSE),0))) -> 0 | Q26: 0
H27: 0 | I27: 0 | O27: =IF(F27="New well",VLOOKUP('Drilling-P&A'!D27,Reference!A$106:E$117,5,FALSE),0) -> 0 | P27: =IF(F27="P&A-1",VLOOKUP(D27,Reference!A$106:I$117,7,FALSE),IF(F27="P&A-2",VLOOKUP(D27,Reference!A$106:I$117,8,FALSE),IF(F27="P&A-3",VLOOKUP(D27,Reference!A$106:I$117,9,FALSE),0))) -> 0 | Q27: 0
H28: 0 | I28: 0 | O28: =IF(F28="New well",VLOOKUP('Drilling-P&A'!D28,Reference!A$106:E$117,5,FALSE),0) -> 0 | P28: =IF(F28="P&A-1",VLOOKUP(D28,Reference!A$106:I$117,7,FALSE),IF(F28="P&A-2",VLOOKUP(D28,Reference!A$106:I$117,8,FALSE),IF(F28="P&A-3",VLOOKUP(D28,Reference!A$106:I$117,9,FALSE),0))) -> 0 | Q28: 0
H29: 0 | I29: 0 | O29: =IF(F29="New well",VLOOKUP('Drilling-P&A'!D29,Reference!A$106:E$117,5,FALSE),0) -> 0 | P29: =IF(F29="P&A-1",VLOOKUP(D29,Reference!A$106:I$117,7,FALSE),IF(F29="P&A-2",VLOOKUP(D29,Reference!A$106:I$117,8,FALSE),IF(F29="P&A-3",VLOOKUP(D29,Reference!A$106:I$117,9,FALSE),0))) -> 0 | Q29: 0
H30: 0 | I30: 0 | O30: =IF(F30="New well",VLOOKUP('Drilling-P&A'!D30,Reference!A$106:E$117,5,FALSE),0) -> 0 | P30: =IF(F30="P&A-1",VLOOKUP(D30,Reference!A$106:I$117,7,FALSE),IF(F30="P&A-2",VLOOKUP(D30,Reference!A$106:I$117,8,FALSE),IF(F30="P&A-3",VLOOKUP(D30,Reference!A$106:I$117,9,FALSE),0))) -> 0 | Q30: 0
H31: 0 | I31: 0 | O31: =IF(F31="New well",VLOOKUP('Drilling-P&A'!D31,Reference!A$106:E$117,5,FALSE),0) -> 0 | P31: =IF(F31="P&A-1",VLOOKUP(D31,Reference!A$106:I$117,7,FALSE),IF(F31="P&A-2",VLOOKUP(D31,Reference!A$106:I$117,8,FALSE),IF(F31="P&A-3",VLOOKUP(D31,Reference!A$106:I$117,9,FALSE),0))) -> 0 | Q31: 0
H32: 0 | I32: 0 | O32: =IF(F32="New well",VLOOKUP('Drilling-P&A'!D32,Reference!A$106:E$117,5,FALSE),0) -> 0 | P32: =IF(F32="P&A-1",VLOOKUP(D32,Reference!A$106:I$117,7,FALSE),IF(F32="P&A-2",VLOOKUP(D32,Reference!A$106:I$117,8,FALSE),IF(F32="P&A-3",VLOOKUP(D32,Reference!A$106:I$117,9,FALSE),0))) -> 0 | Q32: 0
H33: 0 | I33: 0 | O33: =IF(F33="New well",VLOOKUP('Drilling-P&A'!D33,Reference!A$106:E$117,5,FALSE),0) -> 0 | P33: =IF(F33="P&A-1",VLOOKUP(D33,Reference!A$106:I$117,7,FALSE),IF(F33="P&A-2",VLOOKUP(D33,Reference!A$106:I$117,8,FALSE),IF(F33="P&A-3",VLOOKUP(D33,Reference!A$106:I$117,9,FALSE),0))) -> 0 | Q33: 0
A34: MINIMUM APPLIED RATES
A35: Costing Category | B35: Well/Boring Identification Numbers | C35: Activity Date | D35: Activity Type | E35: RAC Invoice No. | F35: No. of Events | I35: TOTAL
I36: =IF(D36="",0,VLOOKUP(D36,Reference!A$120:B$123,2,FALSE))*F36 -> 0 | Q36: =IF(D36<>"",IF(OR(A36="",B36="",C36="",E36="",F36=""),1,0),0) -> 0
I37: =IF(D37="",0,VLOOKUP(D37,Reference!A$120:B$123,2,FALSE))*F37 -> 0 | Q37: =IF(D37<>"",IF(OR(A37="",B37="",C37="",E37="",F37=""),1,0),0) -> 0
I38: =IF(D38="",0,VLOOKUP(D38,Reference!A$120:B$123,2,FALSE))*F38 -> 0 | Q38: =IF(D38<>"",IF(OR(A38="",B38="",C38="",E38="",F38=""),1,0),0) -> 0
I39: =IF(D39="",0,VLOOKUP(D39,Reference!A$120:B$123,2,FALSE))*F39 -> 0 | M39: =IF(SUM(I18:I33,I36:I39)>0,1,0) -> 0 | N39: Print check | Q39: =IF(D39<>"",IF(OR(A39="",B39="",C39="",E39="",F39=""),1,0),0) -> 0
A41: PART 5.F
A42: DRILLING/PLUGGING & ABANDONMENT SUPPLEMENTARY SHEET
A44: 1. The per foot rates include all costs associated with drilling or P&A of wells and borings with the exceptions of mileage, mob/demob unit price, analysis, and disposal of cuttings.
A45: 2. (Depth of Boring or Well) X (Cost Per Foot) = (Total)
A46: 3. When a boring is converted to a monitoring well, only the monitoring well rate is reimbursable.
A47: 4. Drilling logs, well registrations, and P&A forms must be provided.
A48: 5. In the “Activity Type” column, enter one of the following P&A methods:
A49: P&A-1 = Overdrilling
A50: P&A-2 = Pulling casing/screen and grouting
A51: P&A-3 = Grouting only
A52: 6. If a minimum rate or per-day rate for chemical injection is being charged, indicate the number of events next to the appropriate activity. All well/activity information
A53: must be documented, excluding the Cost Per Foot Rate and including the dates of chemical injection events.
A57: Costing Category | B57: Well/Boring Identification Numbers (As shown in technical reports to DEQ) | C57: Activity Date | D57: Well Type, Activity, and Diameter (inches) | E57: RAC Invoice No. | F57: Activity Type [New well or P&A (1, 2, or 3); see note 5] | G57: Depth (feet) | H57: Cost Per Foot Rate | I57: TOTAL | O57: New Well ($/ft) | P57: P&A ($/ft) | Q57: Test
H58: =IF(D58="",0,IF(F58="New well",O58,IF(LEFT(F58,3)="P&A",P58,0))) -> 0 | I58: =ROUND((G58*H58),2) -> 0 | O58: =IF(F58="New well",VLOOKUP('Drilling-P&A'!D58,Reference!A$106:E$117,5,FALSE),0) -> 0 | P58: =IF(F58="P&A-1",VLOOKUP(D58,Reference!A$106:I$117,7,FALSE),IF(F58="P&A-2",VLOOKUP(D58,Reference!A$106:I$117,8,FALSE),IF(F58="P&A-3",VLOOKUP(D58,Reference!A$106:I$117,9,FALSE),0))) -> 0 | Q58: =IF(D58<>"",IF(OR(A58="",B58="",C58="",E58="",F58="",G58=""),1,0),0) -> 0
H59: =IF(D59="",0,IF(F59="New well",O59,IF(LEFT(F59,3)="P&A",P59,0))) -> 0 | I59: =ROUND((G59*H59),2) -> 0 | O59: =IF(F59="New well",VLOOKUP('Drilling-P&A'!D59,Reference!A$106:E$117,5,FALSE),0) -> 0 | P59: =IF(F59="P&A-1",VLOOKUP(D59,Reference!A$106:I$117,7,FALSE),IF(F59="P&A-2",VLOOKUP(D59,Reference!A$106:I$117,8,FALSE),IF(F59="P&A-3",VLOOKUP(D59,Reference!A$106:I$117,9,FALSE),0))) -> 0 | Q59: =IF(D59<>"",IF(OR(A59="",B59="",C59="",E59="",F59="",G59=""),1,0),0) -> 0
H60: 0 | I60: 0 | O60: =IF(F60="New well",VLOOKUP('Drilling-P&A'!D60,Reference!A$106:E$117,5,FALSE),0) -> 0 | P60: =IF(F60="P&A-1",VLOOKUP(D60,Reference!A$106:I$117,7,FALSE),IF(F60="P&A-2",VLOOKUP(D60,Reference!A$106:I$117,8,FALSE),IF(F60="P&A-3",VLOOKUP(D60,Reference!A$106:I$117,9,FALSE),0))) -> 0 | Q60: 0
H61: 0 | I61: 0 | O61: =IF(F61="New well",VLOOKUP('Drilling-P&A'!D61,Reference!A$106:E$117,5,FALSE),0) -> 0 | P61: =IF(F61="P&A-1",VLOOKUP(D61,Reference!A$106:I$117,7,FALSE),IF(F61="P&A-2",VLOOKUP(D61,Reference!A$106:I$117,8,FALSE),IF(F61="P&A-3",VLOOKUP(D61,Reference!A$106:I$117,9,FALSE),0))) -> 0 | Q61: 0
H62: 0 | I62: 0 | O62: =IF(F62="New well",VLOOKUP('Drilling-P&A'!D62,Reference!A$106:E$117,5,FALSE),0) -> 0 | P62: =IF(F62="P&A-1",VLOOKUP(D62,Reference!A$106:I$117,7,FALSE),IF(F62="P&A-2",VLOOKUP(D62,Reference!A$106:I$117,8,FALSE),IF(F62="P&A-3",VLOOKUP(D62,Reference!A$106:I$117,9,FALSE),0))) -> 0 | Q62: 0
H63: 0 | I63: 0 | O63: =IF(F63="New well",VLOOKUP('Drilling-P&A'!D63,Reference!A$106:E$117,5,FALSE),0) -> 0 | P63: =IF(F63="P&A-1",VLOOKUP(D63,Reference!A$106:I$117,7,FALSE),IF(F63="P&A-2",VLOOKUP(D63,Reference!A$106:I$117,8,FALSE),IF(F63="P&A-3",VLOOKUP(D63,Reference!A$106:I$117,9,FALSE),0))) -> 0 | Q63: 0
H64: 0 | I64: 0 | O64: =IF(F64="New well",VLOOKUP('Drilling-P&A'!D64,Reference!A$106:E$117,5,FALSE),0) -> 0 | P64: =IF(F64="P&A-1",VLOOKUP(D64,Reference!A$106:I$117,7,FALSE),IF(F64="P&A-2",VLOOKUP(D64,Reference!A$106:I$117,8,FALSE),IF(F64="P&A-3",VLOOKUP(D64,Reference!A$106:I$117,9,FALSE),0))) -> 0 | Q64: 0
H65: 0 | I65: 0 | O65: =IF(F65="New well",VLOOKUP('Drilling-P&A'!D65,Reference!A$106:E$117,5,FALSE),0) -> 0 | P65: =IF(F65="P&A-1",VLOOKUP(D65,Reference!A$106:I$117,7,FALSE),IF(F65="P&A-2",VLOOKUP(D65,Reference!A$106:I$117,8,FALSE),IF(F65="P&A-3",VLOOKUP(D65,Reference!A$106:I$117,9,FALSE),0))) -> 0 | Q65: 0
H66: 0 | I66: 0 | O66: =IF(F66="New well",VLOOKUP('Drilling-P&A'!D66,Reference!A$106:E$117,5,FALSE),0) -> 0 | P66: =IF(F66="P&A-1",VLOOKUP(D66,Reference!A$106:I$117,7,FALSE),IF(F66="P&A-2",VLOOKUP(D66,Reference!A$106:I$117,8,FALSE),IF(F66="P&A-3",VLOOKUP(D66,Reference!A$106:I$117,9,FALSE),0))) -> 0 | Q66: 0
H67: 0 | I67: 0 | O67: =IF(F67="New well",VLOOKUP('Drilling-P&A'!D67,Reference!A$106:E$117,5,FALSE),0) -> 0 | P67: =IF(F67="P&A-1",VLOOKUP(D67,Reference!A$106:I$117,7,FALSE),IF(F67="P&A-2",VLOOKUP(D67,Reference!A$106:I$117,8,FALSE),IF(F67="P&A-3",VLOOKUP(D67,Reference!A$106:I$117,9,FALSE),0))) -> 0 | Q67: 0
H68: 0 | I68: 0 | O68: =IF(F68="New well",VLOOKUP('Drilling-P&A'!D68,Reference!A$106:E$117,5,FALSE),0) -> 0 | P68: =IF(F68="P&A-1",VLOOKUP(D68,Reference!A$106:I$117,7,FALSE),IF(F68="P&A-2",VLOOKUP(D68,Reference!A$106:I$117,8,FALSE),IF(F68="P&A-3",VLOOKUP(D68,Reference!A$106:I$117,9,FALSE),0))) -> 0 | Q68: 0
H69: 0 | I69: 0 | O69: =IF(F69="New well",VLOOKUP('Drilling-P&A'!D69,Reference!A$106:E$117,5,FALSE),0) -> 0 | P69: =IF(F69="P&A-1",VLOOKUP(D69,Reference!A$106:I$117,7,FALSE),IF(F69="P&A-2",VLOOKUP(D69,Reference!A$106:I$117,8,FALSE),IF(F69="P&A-3",VLOOKUP(D69,Reference!A$106:I$117,9,FALSE),0))) -> 0 | Q69: 0
H70: 0 | I70: 0 | O70: =IF(F70="New well",VLOOKUP('Drilling-P&A'!D70,Reference!A$106:E$117,5,FALSE),0) -> 0 | P70: =IF(F70="P&A-1",VLOOKUP(D70,Reference!A$106:I$117,7,FALSE),IF(F70="P&A-2",VLOOKUP(D70,Reference!A$106:I$117,8,FALSE),IF(F70="P&A-3",VLOOKUP(D70,Reference!A$106:I$117,9,FALSE),0))) -> 0 | Q70: 0
H71: 0 | I71: 0 | O71: =IF(F71="New well",VLOOKUP('Drilling-P&A'!D71,Reference!A$106:E$117,5,FALSE),0) -> 0 | P71: =IF(F71="P&A-1",VLOOKUP(D71,Reference!A$106:I$117,7,FALSE),IF(F71="P&A-2",VLOOKUP(D71,Reference!A$106:I$117,8,FALSE),IF(F71="P&A-3",VLOOKUP(D71,Reference!A$106:I$117,9,FALSE),0))) -> 0 | Q71: 0
H72: 0 | I72: 0 | O72: =IF(F72="New well",VLOOKUP('Drilling-P&A'!D72,Reference!A$106:E$117,5,FALSE),0) -> 0 | P72: =IF(F72="P&A-1",VLOOKUP(D72,Reference!A$106:I$117,7,FALSE),IF(F72="P&A-2",VLOOKUP(D72,Reference!A$106:I$117,8,FALSE),IF(F72="P&A-3",VLOOKUP(D72,Reference!A$106:I$117,9,FALSE),0))) -> 0 | Q72: 0
H73: 0 | I73: 0 | O73: =IF(F73="New well",VLOOKUP('Drilling-P&A'!D73,Reference!A$106:E$117,5,FALSE),0) -> 0 | P73: =IF(F73="P&A-1",VLOOKUP(D73,Reference!A$106:I$117,7,FALSE),IF(F73="P&A-2",VLOOKUP(D73,Reference!A$106:I$117,8,FALSE),IF(F73="P&A-3",VLOOKUP(D73,Reference!A$106:I$117,9,FALSE),0))) -> 0 | Q73: 0
A74: MINIMUM APPLIED RATES
A75: Costing Category | B75: Well/Boring Identification Numbers | C75: Activity Date | D75: Activity Type | E75: RAC Invoice No. | F75: No. of Events | I75: TOTAL
I76: =IF(D76="",0,VLOOKUP(D76,Reference!A$120:B$123,2,FALSE))*F76 -> 0 | Q76: =IF(D76<>"",IF(OR(A76="",B76="",C76="",E76="",F76=""),1,0),0) -> 0
I77: =IF(D77="",0,VLOOKUP(D77,Reference!A$120:B$123,2,FALSE))*F77 -> 0 | Q77: =IF(D77<>"",IF(OR(A77="",B77="",C77="",E77="",F77=""),1,0),0) -> 0
I78: =IF(D78="",0,VLOOKUP(D78,Reference!A$120:B$123,2,FALSE))*F78 -> 0 | Q78: 0
I79: =IF(D79="",0,VLOOKUP(D79,Reference!A$120:B$123,2,FALSE))*F79 -> 0 | M79: =IF(SUM(I58:I73,I76:I79)>0,1,0) -> 0 | N79: Print check | Q79: 0

Sheet Analysis
A1: PART 5.G | L1: =+L31+L64+L99 -> 0 | M1: Total Print check
A2: ANALYSIS SUPPLEMENTARY SHEET | E2: =IF(SUM(N12:N99)>0,"MISSING INFORMATION","") ->  | G2: Costing Category Summary
G3: Emergency/Initial | K3: =SUMIF(A$12:A$31,G3,K$12:K$31)+SUMIF(A$45:A$64,G3,K$45:K$64)+SUMIF(A$80:A$99,G3,K$80:K$99) -> 0
G4: Investigation | K4: =SUMIF(A$12:A$31,G4,K$12:K$31)+SUMIF(A$45:A$64,G4,K$45:K$64)+SUMIF(A$80:A$99,G4,K$80:K$99) -> 0
A5: 1. Refer to Appendix B, Table 4 of the Guidance Document for analysis rates. | G5: Interim Monitoring | K5: =SUMIF(A$12:A$31,G5,K$12:K$31)+SUMIF(A$45:A$64,G5,K$45:K$64)+SUMIF(A$80:A$99,G5,K$80:K$99) -> 0
A6: 2. Purchase of sampling equipment (EnCores, preserved vials, etc.) should be addressed on the Part 5.H (1). | G6: Corrective Action Plan | K6: =SUMIF(A$12:A$31,G6,K$12:K$31)+SUMIF(A$45:A$64,G6,K$45:K$64)+SUMIF(A$80:A$99,G6,K$80:K$99) -> 0
A7: 3. (No. of Test) X (Cost Per Test) = (Total)
A8: 4. Rush charges applied by the laboratory can be added on the same row as the parameter or selected from the parameter dropdown on a separate row. These charges will not be reimbursed without approval.
A9: 5. Markup can be added on the same row as the parameter or selected from the parameter dropdown on a separate row. If the owner is directly billed for analysis, no markup is allowed.
A11: Costing Category | B11: RAC Invoice No. | C11: Outside Invoice No. | D11: Parameter (Ex.: BTEX, TPH-G, etc.) | E11: Method Used | F11: Medium Analyzed | G11: No. of Tests | H11: Unit Rate - ($) Per Test | I11: Non-Unit Rate - ($) Per Test | J11: Markup or Rush Charges ($) | K11: TOTAL | N11: Test | P11: Analysis cost + other cost | Q11: RAC Mark up | R11: Lab Rush cost | T11: Subtest 1 | U11: Subtest 2
E12: =IF(D12="","",VLOOKUP(D12,Reference!A$127:C$169,3,FALSE)) ->  | H12: =IF(D12="",0,VLOOKUP(D12,Reference!A$127:C$169,2,FALSE)) -> 0 | I12: 0 | J12: 0 | K12: =ROUND(IF(D12<>"",(+P12),0),2) -> 0 | N12: =IF(OR(D12="RAC Analysis Markup",D12="Lab Rush Charges"),U12,T12) -> 0 | P12: =ROUND(IF(OR(D12="RAC Analysis Markup",D12="Lab Rush Charges"),0,IF(D12<>"",IF(I12>0,(I12*G12)+J12,(G12*H12)+J12),0)),2)+Q12+R12 -> 0 | Q12: =IF(D12="RAC Analysis Markup",J12,0) -> 0 | R12: =IF(D12="Lab Rush Charges",J12,0) -> 0 | T12: =IF(D12<>"",IF(OR(A12="",B12="",C12="",G12="",F12=""),1,0),0) -> 0 | U12: =IF(D12<>"",IF(OR(A12="",B12="",C12="",J12=0),1,0),0) -> 0
E13: =IF(D13="","",VLOOKUP(D13,Reference!A$127:C$169,3,FALSE)) ->  | H13: =IF(D13="",0,VLOOKUP(D13,Reference!A$127:C$169,2,FALSE)) -> 0 | I13: 0 | J13: 0 | K13: 0 | N13: 0 | P13: =ROUND(IF(OR(D13="RAC Analysis Markup",D13="Lab Rush Charges"),0,IF(D13<>"",IF(I13>0,(I13*G13)+J13,(G13*H13)+J13),0)),2)+Q13+R13 -> 0 | Q13: =IF(D13="RAC Analysis Markup",J13,0) -> 0 | R13: =IF(D13="Lab Rush Charges",J13,0) -> 0 | T13: 0 | U13: =IF(D13<>"",IF(OR(A13="",B13="",C13="",J13=0),1,0),0) -> 0
E14: =IF(D14="","",VLOOKUP(D14,Reference!A$127:C$169,3,FALSE)) ->  | H14: =IF(D14="",0,VLOOKUP(D14,Reference!A$127:C$169,2,FALSE)) -> 0 | I14: 0 | J14: 0 | K14: 0 | N14: 0 | P14: 0 | Q14: 0 | R14: 0 | T14: 0 | U14: 0
E15: =IF(D15="","",VLOOKUP(D15,Reference!A$127:C$169,3,FALSE)) ->  | H15: =IF(D15="",0,VLOOKUP(D15,Reference!A$127:C$169,2,FALSE)) -> 0 | I15: 0 | J15: 0 | K15: 0 | N15: 0 | P15: 0 | Q15: 0 | R15: 0 | T15: 0 | U15: 0
E16: =IF(D16="","",VLOOKUP(D16,Reference!A$127:C$169,3,FALSE)) ->  | H16: =IF(D16="",0,VLOOKUP(D16,Reference!A$127:C$169,2,FALSE)) -> 0 | I16: 0 | J16: 0 | K16: 0 | N16: 0 | P16: 0 | Q16: 0 | R16: 0 | T16: 0 | U16: 0
E17: =IF(D17="","",VLOOKUP(D17,Reference!A$127:C$169,3,FALSE)) ->  | H17: =IF(D17="",0,VLOOKUP(D17,Reference!A$127:C$169,2,FALSE)) -> 0 | I17: 0 | J17: 0 | K17: 0 | N17: 0 | P17: 0 | Q17: 0 | R17: 0 | T17: 0 | U17: 0
E18: =IF(D18="","",VLOOKUP(D18,Reference!A$127:C$169,3,FALSE)) ->  | H18: =IF(D18="",0,VLOOKUP(D18,Reference!A$127:C$169,2,FALSE)) -> 0 | I18: 0 | J18: 0 | K18: 0 | N18: 0 | P18: 0 | Q18: 0 | R18: 0 | T18: 0 | U18: 0
E19: =IF(D19="","",VLOOKUP(D19,Reference!A$127:C$169,3,FALSE)) ->  | H19: =IF(D19="",0,VLOOKUP(D19,Reference!A$127:C$169,2,FALSE)) -> 0 | I19: 0 | J19: 0 | K19: 0 | N19: 0 | P19: 0 | Q19: 0 | R19: 0 | T19: 0 | U19: 0
E20: =IF(D20="","",VLOOKUP(D20,Reference!A$127:C$169,3,FALSE)) ->  | H20: =IF(D20="",0,VLOOKUP(D20,Reference!A$127:C$169,2,FALSE)) -> 0 | I20: 0 | J20: 0 | K20: 0 | N20: 0 | P20: 0 | Q20: 0 | R20: 0 | T20: 0 | U20: 0
E21: =IF(D21="","",VLOOKUP(D21,Reference!A$127:C$169,3,FALSE)) ->  | H21: =IF(D21="",0,VLOOKUP(D21,Reference!A$127:C$169,2,FALSE)) -> 0 | I21: 0 | J21: 0 | K21: 0 | N21: 0 | P21: 0 | Q21: 0 | R21: 0 | T21: 0 | U21: 0
E22: =IF(D22="","",VLOOKUP(D22,Reference!A$127:C$169,3,FALSE)) ->  | H22: =IF(D22="",0,VLOOKUP(D22,Reference!A$127:C$169,2,FALSE)) -> 0 | I22: 0 | J22: 0 | K22: 0 | N22: 0 | P22: 0 | Q22: 0 | R22: 0 | T22: 0 | U22: 0
E23: =IF(D23="","",VLOOKUP(D23,Reference!A$127:C$169,3,FALSE)) ->  | H23: =IF(D23="",0,VLOOKUP(D23,Reference!A$127:C$169,2,FALSE)) -> 0 | I23: 0 | J23: 0 | K23: 0 | N23: 0 | P23: 0 | Q23: 0 | R23: 0 | T23: 0 | U23: 0
A24: USE SPACE BELOW FOR PARAMETERS/METHODS/RATES NOT LISTED/POPULATED ABOVE | H24: Costs Per Test ($) | K24: TOTAL
H25: 0 | J25: 0 | K25: =ROUND(IF(H25>0,(+P25),0),2) -> 0 | N25: =IF(G25>0,IF(OR(A25="",B25="",C25="",E25="",D25="",F25="",H25=""),1,0),0) -> 0 | P25: =ROUND(IF(D25<>"",(G25*H25)+J25,0),2) -> 0
H26: 0 | J26: 0 | K26: =ROUND(IF(H26>0,(+P26),0),2) -> 0 | N26: =IF(G26>0,IF(OR(A26="",B26="",C26="",E26="",D26="",F26="",H26=""),1,0),0) -> 0 | P26: =ROUND(IF(D26<>"",(G26*H26)+J26,0),2) -> 0
H27: 0 | J27: 0 | K27: 0 | N27: 0 | P27: 0
H28: 0 | J28: 0 | K28: =ROUND(IF(H28>0,(+P28),0),2) -> 0 | N28: =IF(G28>0,IF(OR(A28="",B28="",C28="",E28="",D28="",F28="",H28=""),1,0),0) -> 0 | P28: =ROUND(IF(D28<>"",(G28*H28)+J28,0),2) -> 0
H29: 0 | J29: 0 | K29: =ROUND(IF(H29>0,(+P29),0),2) -> 0 | N29: =IF(G29>0,IF(OR(A29="",B29="",C29="",E29="",D29="",F29="",H29=""),1,0),0) -> 0 | P29: 0
H30: 0 | J30: 0 | K30: =ROUND(IF(H30>0,(+P30),0),2) -> 0 | N30: =IF(G30>0,IF(OR(A30="",B30="",C30="",E30="",D30="",F30="",H30=""),1,0),0) -> 0 | P30: 0
H31: 0 | J31: 0 | K31: 0 | L31: =IF(SUM(K25:K31,K12:K23)>0,1,0) -> 0 | M31: Print check | N31: =IF(G31>0,IF(OR(A31="",B31="",C31="",E31="",D31="",F31="",H31=""),1,0),0) -> 0 | P31: 0
A33: PART 5.G
A34: ANALYSIS SUPPLEMENTARY SHEET
A38: 1. Refer to Appendix B, Table 4 of the Guidance Document for analysis rates.
A39: 2. Purchase of sampling equipment (EnCores, preserved vials, etc.) should be addressed on the Part 5.H (1).
A40: 3. (No. of Test) X (Cost Per Test) = (Total)
A41: 4. Rush charges applied by the laboratory can be added on the same row as the parameter or selected from the parameter dropdown on a separate row. These charges will not be reimbursed without approval.
A42: 5. Markup can be added on the same row as the parameter or selected from the parameter dropdown on a separate row. If the owner is directly billed for analysis, no markup is allowed.
A44: Costing Category | B44: RAC Invoice No. | C44: Outside Invoice No. | D44: Parameter (Ex.: BTEX, TPH-G, etc.) | E44: Method Used | F44: Medium Analyzed | G44: No. of Tests | H44: Unit Rate - ($) Per Test | I44: Non-Unit Rate - ($) Per Test | J44: Markup or Rush Charges ($) | K44: TOTAL | N44: Test | P44: Analysis cost | Q44: RAC Mark up | R44: Lab Rush cost | T44: Subtest 1 | U44: Subtest 2
E45: =IF(D45="","",VLOOKUP(D45,Reference!A$127:C$169,3,FALSE)) ->  | H45: =IF(D45="",0,VLOOKUP(D45,Reference!A$127:C$169,2,FALSE)) -> 0 | I45: 0 | J45: 0 | K45: =ROUND(IF(D45>0,(+P45),0),2) -> 0 | N45: =IF(OR(D45="RAC Analysis Markup",D45="Lab Rush Charges"),U45,T45) -> 0 | P45: =ROUND(IF(OR(D45="RAC Analysis Markup",D45="Lab Rush Charges"),0,IF(D45<>"",IF(I45>0,(I45*G45)+J45,(G45*H45)+J45),0)),2)+Q45+R45 -> 0 | Q45: =IF(D45="RAC Analysis Markup",J45,0) -> 0 | R45: =IF(D45="Lab Rush Charges",J45,0) -> 0 | T45: =IF(D45<>"",IF(OR(A45="",B45="",C45="",G45="",F45=""),1,0),0) -> 0 | U45: =IF(D45<>"",IF(OR(A45="",B45="",C45="",I45=0),1,0),0) -> 0
E46: =IF(D46="","",VLOOKUP(D46,Reference!A$127:C$169,3,FALSE)) ->  | H46: =IF(D46="",0,VLOOKUP(D46,Reference!A$127:C$169,2,FALSE)) -> 0 | I46: 0 | J46: 0 | K46: 0 | N46: 0 | P46: =ROUND(IF(OR(D46="RAC Analysis Markup",D46="Lab Rush Charges"),0,IF(D46<>"",IF(I46>0,(I46*G46)+J46,(G46*H46)+J46),0)),2)+Q46+R46 -> 0 | Q46: =IF(D46="RAC Analysis Markup",J46,0) -> 0 | R46: =IF(D46="Lab Rush Charges",J46,0) -> 0 | T46: 0 | U46: 0
E47: =IF(D47="","",VLOOKUP(D47,Reference!A$127:C$169,3,FALSE)) ->  | H47: =IF(D47="",0,VLOOKUP(D47,Reference!A$127:C$169,2,FALSE)) -> 0 | I47: 0 | J47: 0 | K47: 0 | N47: 0 | P47: 0 | Q47: 0 | R47: 0 | T47: 0 | U47: 0
E48: =IF(D48="","",VLOOKUP(D48,Reference!A$127:C$169,3,FALSE)) ->  | H48: =IF(D48="",0,VLOOKUP(D48,Reference!A$127:C$169,2,FALSE)) -> 0 | I48: 0 | J48: 0 | K48: 0 | N48: 0 | P48: 0 | Q48: 0 | R48: 0 | T48: 0 | U48: 0
E49: =IF(D49="","",VLOOKUP(D49,Reference!A$127:C$169,3,FALSE)) ->  | H49: =IF(D49="",0,VLOOKUP(D49,Reference!A$127:C$169,2,FALSE)) -> 0 | I49: 0 | J49: 0 | K49: 0 | N49: 0 | P49: 0 | Q49: 0 | R49: 0 | T49: 0 | U49: 0
E50: =IF(D50="","",VLOOKUP(D50,Reference!A$127:C$169,3,FALSE)) ->  | H50: =IF(D50="",0,VLOOKUP(D50,Reference!A$127:C$169,2,FALSE)) -> 0 | I50: 0 | J50: 0 | K50: 0 | N50: 0 | P50: 0 | Q50: 0 | R50: 0 | T50: 0 | U50: 0
E51: =IF(D51="","",VLOOKUP(D51,Reference!A$127:C$169,3,FALSE)) ->  | H51: =IF(D51="",0,VLOOKUP(D51,Reference!A$127:C$169,2,FALSE)) -> 0 | I51: 0 | J51: 0 | K51: 0 | N51: 0 | P51: 0 | Q51: 0 | R51: 0 | T51: 0 | U51: 0
E52: =IF(D52="","",VLOOKUP(D52,Reference!A$127:C$169,3,FALSE)) ->  | H52: =IF(D52="",0,VLOOKUP(D52,Reference!A$127:C$169,2,FALSE)) -> 0 | I52: 0 | J52: 0 | K52: 0 | N52: 0 | P52: 0 | Q52: 0 | R52: 0 | T52: 0 | U52: 0
E53: =IF(D53="","",VLOOKUP(D53,Reference!A$127:C$169,3,FALSE)) ->  | H53: =IF(D53="",0,VLOOKUP(D53,Reference!A$127:C$169,2,FALSE)) -> 0 | I53: 0 | J53: 0 | K53: 0 | N53: 0 | P53: 0 | Q53: 0 | R53: 0 | T53: 0 | U53: 0
E54: =IF(D54="","",VLOOKUP(D54,Reference!A$127:C$169,3,FALSE)) ->  | H54: =IF(D54="",0,VLOOKUP(D54,Reference!A$127:C$169,2,FALSE)) -> 0 | I54: 0 | J54: 0 | K54: 0 | N54: 0 | P54: 0 | Q54: 0 | R54: 0 | T54: 0 | U54: 0
E55: =IF(D55="","",VLOOKUP(D55,Reference!A$127:C$169,3,FALSE)) ->  | H55: =IF(D55="",0,VLOOKUP(D55,Reference!A$127:C$169,2,FALSE)) -> 0 | I55: 0 | J55: 0 | K55: 0 | N55: 0 | P55: 0 | Q55: 0 | R55: 0 | T55: 0 | U55: 0
E56: =IF(D56="","",VLOOKUP(D56,Reference!A$127:C$169,3,FALSE)) ->  | H56: =IF(D56="",0,VLOOKUP(D56,Reference!A$127:C$169,2,FALSE)) -> 0 | I56: 0 | J56: 0 | K56: 0 | N56: 0 | P56: 0 | Q56: 0 | R56: 0 | T56: 0 | U56: 0
A57: USE SPACE BELOW FOR PARAMETERS/METHODS/RATES NOT LISTED/POPULATED ABOVE | H57: Costs Per Test ($) | K57: TOTAL
H58: 0 | J58: 0 | K58: =ROUND(IF(H58>0,(+P58),0),2) -> 0 | N58: =IF(G58>0,IF(OR(A58="",B58="",C58="",E58="",D58="",F58="",H58=""),1,0),0) -> 0 | P58: =ROUND(IF(D58<>"",(G58*H58)+J58,0),2) -> 0
H59: 0 | J59: 0 | K59: =ROUND(IF(H59>0,(+P59),0),2) -> 0 | N59: =IF(G59>0,IF(OR(A59="",B59="",C59="",E59="",D59="",F59="",H59=""),1,0),0) -> 0 | P59: =ROUND(IF(D59<>"",(G59*H59)+J59,0),2) -> 0
H60: 0 | J60: 0 | K60: =ROUND(IF(H60>0,(+P60),0),2) -> 0 | N60: =IF(G60>0,IF(OR(A60="",B60="",C60="",E60="",D60="",F60="",H60=""),1,0),0) -> 0 | P60: 0
H61: 0 | J61: 0 | K61: 0 | N61: 0 | P61: 0
H62: 0 | J62: 0 | K62: =ROUND(IF(H62>0,(+P62),0),2) -> 0 | N62: =IF(G62>0,IF(OR(A62="",B62="",C62="",E62="",D62="",F62="",H62=""),1,0),0) -> 0 | P62: 0
H63: 0 | J63: 0 | K63: =ROUND(IF(H63>0,(+P63),0),2) -> 0 | N63: =IF(G63>0,IF(OR(A63="",B63="",C63="",E63="",D63="",F63="",H63=""),1,0),0) -> 0 | P63: 0
H64: 0 | J64: 0 | K64: =ROUND(IF(H64>0,(+P64),0),2) -> 0 | L64: =IF(SUM(K58:K64,K45:K56)>0,1,0) -> 0 | M64: Print check | N64: =IF(G64>0,IF(OR(A64="",B64="",C64="",E64="",D64="",F64="",H64=""),1,0),0) -> 0 | P64: 0
A68: PART 5.G
A69: ANALYSIS SUPPLEMENTARY SHEET
A73: 1. Refer to Appendix B, Table 4 of the Guidance Document for analysis rates.
A74: 2. Purchase of sampling equipment (EnCores, preserved vials, etc.) should be addressed on the Part 5.H (1).
A75: 3. (No. of Test) X (Cost Per Test) = (Total)
A76: 4. Rush charges applied by the laboratory can be added on the same row as the parameter or selected from the parameter dropdown on a separate row. These charges will not be reimbursed without approval.
A77: 5. Markup can be added on the same row as the parameter or selected from the parameter dropdown on a separate row. If the owner is directly billed for analysis, no markup is allowed.
A79: Costing Category | B79: RAC Invoice No. | C79: Outside Invoice No. | D79: Parameter (Ex.: BTEX, TPH-G, etc.) | E79: Method Used | F79: Medium Analyzed | G79: No. of Tests | H79: Unit Rate - ($) Per Test | I79: Non-Unit Rate- ($) Per Test | J79: Markup or Rush Charges ($) | K79: TOTAL | N79: Test | P79: Analysis cost | Q79: RAC Mark up | R79: Lab Rush cost | T79: Subtest 1 | U79: Subtest 2
E80: =IF(D80="","",VLOOKUP(D80,Reference!A$127:C$169,3,FALSE)) ->  | H80: =IF(D80="",0,VLOOKUP(D80,Reference!A$127:C$169,2,FALSE)) -> 0 | I80: 0 | J80: 0 | K80: =ROUND(IF(D80>0,(+P80),0),2) -> 0 | N80: =IF(OR(D80="RAC Analysis Markup",D80="Lab Rush Charges"),U80,T80) -> 0 | P80: =ROUND(IF(OR(D80="RAC Analysis Markup",D80="Lab Rush Charges"),0,IF(D80<>"",IF(I80>0,(I80*G80)+J80,(G80*H80)+J80),0)),2)+Q80+R80 -> 0 | Q80: =IF(D80="RAC Analysis Markup",J80,0) -> 0 | R80: =IF(D80="Lab Rush Charges",J80,0) -> 0 | T80: =IF(D80<>"",IF(OR(A80="",B80="",C80="",G80="",F80=""),1,0),0) -> 0 | U80: =IF(D80<>"",IF(OR(A80="",B80="",C80="",I80=0),1,0),0) -> 0
E81: =IF(D81="","",VLOOKUP(D81,Reference!A$127:C$169,3,FALSE)) ->  | H81: =IF(D81="",0,VLOOKUP(D81,Reference!A$127:C$169,2,FALSE)) -> 0 | I81: 0 | J81: 0 | K81: 0 | N81: 0 | P81: =ROUND(IF(OR(D81="RAC Analysis Markup",D81="Lab Rush Charges"),0,IF(D81<>"",IF(I81>0,(I81*G81)+J81,(G81*H81)+J81),0)),2)+Q81+R81 -> 0 | Q81: =IF(D81="RAC Analysis Markup",J81,0) -> 0 | R81: =IF(D81="Lab Rush Charges",J81,0) -> 0 | T81: 0 | U81: 0
E82: =IF(D82="","",VLOOKUP(D82,Reference!A$127:C$169,3,FALSE)) ->  | H82: =IF(D82="",0,VLOOKUP(D82,Reference!A$127:C$169,2,FALSE)) -> 0 | I82: 0 | J82: 0 | K82: 0 | N82: 0 | P82: 0 | Q82: 0 | R82: 0 | T82: 0 | U82: 0
E83: =IF(D83="","",VLOOKUP(D83,Reference!A$127:C$169,3,FALSE)) ->  | H83: =IF(D83="",0,VLOOKUP(D83,Reference!A$127:C$169,2,FALSE)) -> 0 | I83: 0 | J83: 0 | K83: 0 | N83: 0 | P83: 0 | Q83: 0 | R83: 0 | T83: 0 | U83: 0
E84: =IF(D84="","",VLOOKUP(D84,Reference!A$127:C$169,3,FALSE)) ->  | H84: =IF(D84="",0,VLOOKUP(D84,Reference!A$127:C$169,2,FALSE)) -> 0 | I84: 0 | J84: 0 | K84: 0 | N84: 0 | P84: 0 | Q84: 0 | R84: 0 | T84: 0 | U84: 0
E85: =IF(D85="","",VLOOKUP(D85,Reference!A$127:C$169,3,FALSE)) ->  | H85: =IF(D85="",0,VLOOKUP(D85,Reference!A$127:C$169,2,FALSE)) -> 0 | I85: 0 | J85: 0 | K85: 0 | N85: 0 | P85: 0 | Q85: 0 | R85: 0 | T85: 0 | U85: 0
E86: =IF(D86="","",VLOOKUP(D86,Reference!A$127:C$169,3,FALSE)) ->  | H86: =IF(D86="",0,VLOOKUP(D86,Reference!A$127:C$169,2,FALSE)) -> 0 | I86: 0 | J86: 0 | K86: 0 | N86: 0 | P86: 0 | Q86: 0 | R86: 0 | T86: 0 | U86: 0
E87: =IF(D87="","",VLOOKUP(D87,Reference!A$127:C$169,3,FALSE)) ->  | H87: =IF(D87="",0,VLOOKUP(D87,Reference!A$127:C$169,2,FALSE)) -> 0 | I87: 0 | J87: 0 | K87: 0 | N87: 0 | P87: 0 | Q87: 0 | R87: 0 | T87: 0 | U87: 0
E88: =IF(D88="","",VLOOKUP(D88,Reference!A$127:C$169,3,FALSE)) ->  | H88: =IF(D88="",0,VLOOKUP(D88,Reference!A$127:C$169,2,FALSE)) -> 0 | I88: 0 | J88: 0 | K88: 0 | N88: 0 | P88: 0 | Q88: 0 | R88: 0 | T88: 0 | U88: 0
E89: =IF(D89="","",VLOOKUP(D89,Reference!A$127:C$169,3,FALSE)) ->  | H89: =IF(D89="",0,VLOOKUP(D89,Reference!A$127:C$169,2,FALSE)) -> 0 | I89: 0 | J89: 0 | K89: 0 | N89: 0 | P89: 0 | Q89: 0 | R89: 0 | T89: 0 | U89: 0
E90: =IF(D90="","",VLOOKUP(D90,Reference!A$127:C$169,3,FALSE)) ->  | H90: =IF(D90="",0,VLOOKUP(D90,Reference!A$127:C$169,2,FALSE)) -> 0 | I90: 0 | J90: 0 | K90: 0 | N90: 0 | P90: 0 | Q90: 0 | R90: 0 | T90: 0 | U90: 0
E91: =IF(D91="","",VLOOKUP(D91,Reference!A$127:C$169,3,FALSE)) ->  | H91: =IF(D91="",0,VLOOKUP(D91,Reference!A$127:C$169,2,FALSE)) -> 0 | I91: 0 | J91: 0 | K91: 0 | N91: 0 | P91: 0 | Q91: 0 | R91: 0 | T91: 0 | U91: 0
A92: USE SPACE BELOW FOR PARAMETERS/METHODS/RATES NOT LISTED/POPULATED ABOVE | H92: Costs Per Test ($) | K92: TOTAL
H93: 0 | J93: 0 | K93: =ROUND(IF(H93>0,(+P93),0),2) -> 0 | N93: =IF(G93>0,IF(OR(A93="",B93="",C93="",E93="",D93="",F93="",H93=""),1,0),0) -> 0 | P93: =ROUND(IF(D93<>"",(G93*H93)+J93,0),2) -> 0
H94: 0 | J94: 0 | K94: =ROUND(IF(H94>0,(+P94),0),2) -> 0 | N94: =IF(G94>0,IF(OR(A94="",B94="",C94="",E94="",D94="",F94="",H94=""),1,0),0) -> 0 | P94: =ROUND(IF(D94<>"",(G94*H94)+J94,0),2) -> 0
H95: 0 | J95: 0 | K95: =ROUND(IF(H95>0,(+P95),0),2) -> 0 | N95: 0 | P95: =ROUND(IF(D95<>"",(G95*H95)+J95,0),2) -> 0
H96: 0 | J96: 0 | K96: 0 | N96: 0 | P96: 0
H97: 0 | J97: 0 | K97: =ROUND(IF(H97>0,(+P97),0),2) -> 0 | N97: 0 | P97: =ROUND(IF(D97<>"",(G97*H97)+J97,0),2) -> 0
H98: 0 | J98: 0 | K98: =ROUND(IF(H98>0,(+P98),0),2) -> 0 | N98: 0 | P98: 0
H99: 0 | J99: 0 | K99: =ROUND(IF(H99>0,(+P99),0),2) -> 0 | L99: =IF(SUM(K93:K99,K80:K91)>0,1,0) -> 0 | M99: Print check | N99: 0 | P99: 0

Sheet Miscellaneous 1
A1: PART 5.H (1) | L1: =+L35+L71+L107 -> 0 | M1: Total Print check
A2: MISCELLANEOUS SUPPLEMENTARY SHEET
B3: =IF(SUM(N11:N107)>0,"MISSING INFORMATION","") ->  | E3: Costing Category Summary
E4: Emergency/Initial | H4: =SUMIF($A$11:$A$35,$E4,H$11:H$35)+SUMIF($A$46:$A$71,$E4,H$46:H$71)+SUMIF($A$82:$A$107,$E4,H$82:H$107) -> 0
A5: 1. All costs not associated with the previous categories must be listed here. | E5: Investigation | H5: =SUMIF(A$11:A$35,E5,H$11:H$35)+SUMIF(A$46:A$71,E5,H$46:H$71)+SUMIF(A$82:A$107,E5,H$82:H$107) -> 0
A6: 2. Miscellaneous charges for work activities included in unit pricing should not be | E6: Interim Monitoring | H6: =SUMIF(A$11:A$35,E6,H$11:H$35)+SUMIF(A$46:A$71,E6,H$46:H$71)+SUMIF(A$82:A$107,E6,H$82:H$107) -> 0
A7: addressed on this form. | E7: Corrective Action Plan | H7: =SUMIF(A$11:A$35,E7,H$11:H$35)+SUMIF(A$46:A$71,E7,H$46:H$71)+SUMIF(A$82:A$107,E7,H$82:H$107) -> 0
A8: 3. All RAC markups not denoted on other pages must be listed on this form. | E8: Report Preparation | H8: =SUMIF(A$11:A$35,E8,H$11:H$35)+SUMIF(A$46:A$71,E8,H$46:H$71)+SUMIF(A$82:A$107,E8,H$82:H$107) -> 0
A10: Costing Category | B10: Description and Quantity of Each Miscellaneous Item | C10: RAC Invoice No. | D10: Outside Invoice No. | E10: Item's Cost ($) | F10: 10% Markup Applies (Yes/No) | G10: Markup Subtotal ($) | H10: TOTAL | N10: Test
G11: =IF(F11="Yes",E11*0.1,0) -> 0 | H11: =ROUND(IF(E11<>"",E11+G11,0),2) -> 0 | N11: =IF(H11<>0,IF(OR(E11="",C11="",B11="",A11=""),1,0),0) -> 0
G12: =IF(F12="Yes",E12*0.1,0) -> 0 | H12: =ROUND(IF(E12<>"",E12+G12,0),2) -> 0 | N12: =IF(H12<>0,IF(OR(E12="",C12="",B12="",A12=""),1,0),0) -> 0
G13: 0 | H13: 0 | N13: 0
G14: 0 | H14: 0 | N14: 0
G15: 0 | H15: 0 | N15: 0
G16: 0 | H16: 0 | N16: 0
G17: 0 | H17: 0 | N17: 0
G18: 0 | H18: 0 | N18: 0
G19: 0 | H19: 0 | N19: 0
G20: 0 | H20: 0 | N20: 0
G21: 0 | H21: 0 | N21: 0
G22: 0 | H22: 0 | N22: 0
G23: 0 | H23: 0 | N23: 0
G24: 0 | H24: 0 | N24: 0
G25: 0 | H25: 0 | N25: 0
G26: 0 | H26: 0 | N26: 0
G27: 0 | H27: 0 | N27: 0
G28: 0 | H28: 0 | N28: 0
G29: 0 | H29: 0 | N29: 0
G30: 0 | H30: 0 | N30: 0
G31: 0 | H31: 0 | N31: 0
G32: 0 | H32: 0 | N32: 0
G33: 0 | H33: 0 | N33: 0
G34: 0 | H34: 0 | N34: 0
G35: 0 | H35: 0 | L35: =IF(SUM(H11:H35)>0,1,0) -> 0 | M35: Print check | N35: 0
A37: PART 5.H (1)
A38: MISCELLANEOUS SUPPLEMENTARY SHEET
A41: 1. All costs not associated with the previous categories must be listed here.
A42: 2. Miscellaneous charges for work activities included in unit pricing should not be addressed on this form.
A43: 3. All RAC markups not denoted on other pages must be listed on this form.
A45: Costing Category | B45: Description and Quantity of Each Miscellaneous Item | C45: RAC Invoice No. | D45: Outside Invoice No. | E45: Item's Cost ($) | F45: 10% Markup Applies (Yes/No) | G45: Markup Subtotal ($) | H45: TOTAL | N45: Test
G46: =IF(F46="Yes",E46*0.1,0) -> 0 | H46: =ROUND(IF(E46<>"",E46+G46,0),2) -> 0 | N46: =IF(H46<>0,IF(OR(E46="",C46="",B46="",A46=""),1,0),0) -> 0
G47: =IF(F47="Yes",E47*0.1,0) -> 0 | H47: =ROUND(IF(E47<>"",E47+G47,0),2) -> 0 | N47: =IF(H47<>0,IF(OR(E47="",C47="",B47="",A47=""),1,0),0) -> 0
G48: 0 | H48: 0 | N48: 0
G49: 0 | H49: 0 | N49: 0
G50: 0 | H50: 0 | N50: 0
G51: 0 | H51: 0 | N51: 0
G52: 0 | H52: 0 | N52: 0
G53: 0 | H53: 0 | N53: 0
G54: 0 | H54: 0 | N54: 0
G55: 0 | H55: 0 | N55: 0
G56: 0 | H56: 0 | N56: 0
G57: 0 | H57: 0 | N57: 0
G58: 0 | H58: 0 | N58: 0
G59: 0 | H59: 0 | N59: 0
G60: 0 | H60: 0 | N60: 0
G61: 0 | H61: 0 | N61: 0
G62: 0 | H62: 0 | N62: 0
G63: 0 | H63: 0 | N63: 0
G64: 0 | H64: 0 | N64: 0
G65: 0 | H65: 0 | N65: 0
G66: 0 | H66: 0 | N66: 0
G67: 0 | H67: 0 | N67: 0
G68: =IF(F68="Yes",E68*0.1,0) -> 0 | H68: 0 | N68: 0
G69: 0 | H69: 0 | N69: 0
G70: 0 | H70: 0 | N70: 0
G71: 0 | H71: 0 | L71: =IF(SUM(H46:H71)>0,1,0) -> 0 | M71: Print check | N71: 0
A73: PART 5.H (1)
A74: MISCELLANEOUS SUPPLEMENTARY SHEET
A77: 1. All costs not associated with the previous categories must be listed here.
A78: 2. Miscellaneous charges for work activities included in unit pricing should not be addressed on this form.
A79: 3. All RAC markups not denoted on other pages must be listed on this form.
A81: Costing Category | B81: Description and Quantity of Each Miscellaneous Item | C81: RAC Invoice No. | D81: Outside Invoice No. | E81: Item's Cost ($) | F81: 10% Markup Applies (Yes/No) | G81: Markup Subtotal ($) | H81: TOTAL | N81: Test
G82: =IF(F82="Yes",E82*0.1,0) -> 0 | H82: =ROUND(IF(E82<>"",E82+G82,0),2) -> 0 | N82: =IF(H82<>0,IF(OR(E82="",C82="",B82="",A82=""),1,0),0) -> 0
G83: =IF(F83="Yes",E83*0.1,0) -> 0 | H83: =ROUND(IF(E83<>"",E83+G83,0),2) -> 0 | N83: =IF(H83<>0,IF(OR(E83="",C83="",B83="",A83=""),1,0),0) -> 0
G84: 0 | H84: 0 | N84: 0
G85: 0 | H85: 0 | N85: 0
G86: 0 | H86: 0 | N86: 0
G87: 0 | H87: 0 | N87: 0
G88: 0 | H88: 0 | N88: 0
G89: 0 | H89: 0 | N89: 0
G90: 0 | H90: 0 | N90: 0
G91: 0 | H91: 0 | N91: 0
G92: 0 | H92: 0 | N92: 0
G93: 0 | H93: 0 | N93: 0
G94: 0 | H94: 0 | N94: 0
G95: 0 | H95: 0 | N95: 0
G96: 0 | H96: 0 | N96: 0
G97: 0 | H97: 0 | N97: 0
G98: 0 | H98: 0 | N98: 0
G99: 0 | H99: 0 | N99: 0
G100: 0 | H100: 0 | N100: 0
G101: 0 | H101: 0 | N101: 0
G102: 0 | H102: 0 | N102: 0
G103: 0 | H103: 0 | N103: 0
G104: 0 | H104: 0 | N104: 0
G105: 0 | H105: 0 | N105: 0
G106: =IF(F106="Yes",E106*0.1,0) -> 0 | H106: 0 | N106: 0
G107: 0 | H107: 0 | L107: =IF(SUM(H82:H107)>0,1,0) -> 0 | M107: Print check | N107: 0

Sheet Miscellaneous 2
A1: PART 5.H (2) | O1: =+O40+O81+O122 -> 0 | P1: Total Print check
A2: MISCELLANEOUS SUPPLEMENTARY SHEET | H2: Costing Category Summary
A3: UNIT PRICING FORM | H3: Emergency/Initial | K3: =SUMIF(A$10:A$40,H3,K$10:K$40)+SUMIF(A$51:A$81,H3,K$51:K$81)+SUMIF(A$92:A$122,H3,K$92:K$122) -> 0
B4: =IF(SUM(Q10:Q122)>0,"MISSING INFORMATION","") ->  | H4: Investigation | K4: =SUMIF(A$10:A$40,H4,K$10:K$40)+SUMIF(A$51:A$81,H4,K$51:K$81)+SUMIF(A$92:A$122,H4,K$92:K$122) -> 0
A5: Unit pricing for these activities must be utilized. | H5: Interim Monitoring | K5: =SUMIF(A$10:A$40,H5,K$10:K$40)+SUMIF(A$51:A$81,H5,K$51:K$81)+SUMIF(A$92:A$122,H5,K$92:K$122) -> 0
H6: Corrective Action Plan | K6: =SUMIF(A$10:A$40,H6,K$10:K$40)+SUMIF(A$51:A$81,H6,K$51:K$81)+SUMIF(A$92:A$122,H6,K$92:K$122) -> 0
A9: Costing Category | B9: Unit Price Activities | I9: RAC Invoice No. | J9: Unit Rates | K9: TOTAL | Q9: Test
A10: Groundwater Sampling | B10: Event Date | C10: 1st Well Count | D10: Add. Well Count | E10: Well Numbers (separate with comma)
K12: =ROUND(IF(B12="",0,(C12*Reference!B$176+D12*Reference!C$176)),2) -> 0 | Q12: =IF(C12>0,IF(OR(A12="",B12="",D12="",E12="",I12=""),1,0),0) -> 0
J13: =CONCATENATE("$",Reference!B$176,".00 - 1st well per sample event") -> $720.00 - 1st well per sample event | K13: =ROUND(IF(B13="",0,(C13*Reference!B$176+D13*Reference!C$176)),2) -> 0 | Q13: =IF(C13>0,IF(OR(A13="",B13="",D13="",E13="",I13=""),1,0),0) -> 0
K14: =ROUND(IF(B14="",0,(C14*Reference!B$176+D14*Reference!C$176)),2) -> 0 | Q14: 0
J15: =CONCATENATE("$",Reference!C$176,".00 - additional wells") -> $224.00 - additional wells | K15: =ROUND(IF(B15="",0,(C15*Reference!B$176+D15*Reference!C$176)),2) -> 0 | Q15: 0
K16: =ROUND(IF(B16="",0,(C16*Reference!B$176+D16*Reference!C$176)),2) -> 0 | Q16: 0
A17: Free Product Recovery | B17: Event Date | C17: 1st Well Count | D17: Add. Well Count | E17: Well Numbers (separate with comma) | J17: =CONCATENATE("$",Reference!B$177,".00 - 1st well per event") -> $218.00 - 1st well per event
J19: =CONCATENATE("$",Reference!C$177,".00 - additional wells") -> $72.00 - additional wells | K19: =ROUND(IF(B19="",0,(C19*Reference!B$177+D19*Reference!C$177)),2) -> 0 | Q19: =IF(C19>0,IF(OR(A19="",B19="",D19="",E19="",I19=""),1,0),0) -> 0
J20: =CONCATENATE("The $",Reference!C$177,".00 rate applies to all wells handbailed on the same date as sampled.") -> The $72.00 rate applies to all wells handbailed on the same date as sampled. | K20: =ROUND(IF(B20="",0,(C20*Reference!B$177+D20*Reference!C$177)),2) -> 0 | Q20: 0
K21: =ROUND(IF(B21="",0,(C21*Reference!B$177+D21*Reference!C$177)),2) -> 0 | Q21: 0
K22: =ROUND(IF(B22="",0,(C22*Reference!B$177+D22*Reference!C$177)),2) -> 0 | Q22: 0
A23: Gauging Wells | B23: Event Date | C23: No. of Wells | D23: Well Numbers (separate with comma) | J23: =CONCATENATE("$",Reference!B$178,".00 per well") -> $28.00 per well
K25: =ROUND((C25*Reference!B$178),2) -> 0 | Q25: =IF(C25>0,IF(OR(A25="",B25="",D25="",I25=""),1,0),0) -> 0
K26: =ROUND((C26*Reference!B$178),2) -> 0 | Q26: =IF(C26>0,IF(OR(A26="",B26="",D26="",I26=""),1,0),0) -> 0
K27: =ROUND((C27*Reference!B$178),2) -> 0 | Q27: =IF(C27>0,IF(OR(A27="",B27="",D27="",I27=""),1,0),0) -> 0
K28: =ROUND((C28*Reference!B$178),2) -> 0 | Q28: =IF(C28>0,IF(OR(A28="",B28="",D28="",I28=""),1,0),0) -> 0
A29: Discharge Sampling Events | B29: Event Dates (When additional sampling events are being requested due to an exceedance, a copy of the analytical result documenting the exceedance must be provided.) | J29: =CONCATENATE("$",Reference!B$179,".00 per event") -> $289.00 per event
K30: =ROUND((COUNTA(B30:H30)*Reference!B$179),2) -> 0 | Q30: =IF(AND(K30>0,OR(I30="",A30="")),1,0) -> 0
K31: =ROUND((COUNTA(B31:H31)*Reference!B$179),2) -> 0 | Q31: =IF(AND(K31>0,OR(I31="",A31="")),1,0) -> 0
K32: =ROUND((COUNTA(B32:H32)*Reference!B$179),2) -> 0 | Q32: 0
A33: Mob/Demob | B33: Event Date | C33: Event Type (Drilling, Direct Push, P&A, etc.) | J33: =CONCATENATE("$",Reference!B$180,".00 once per event") -> $352.00 once per event
K34: =ROUND((COUNTA(B34)*Reference!B$180),2) -> 0 | Q34: =IF(B34<>"",IF(OR(A34="",C34="",I34=""),1,0),0) -> 0
K35: =ROUND((COUNTA(B35)*Reference!B$180),2) -> 0 | Q35: =IF(B35<>"",IF(OR(A35="",C35="",I35=""),1,0),0) -> 0
K36: =ROUND((COUNTA(B36)*Reference!B$180),2) -> 0 | Q36: 0
A37: Aquifer Testing | B37: Event Date | C37: Number of wells | E37: Unit Rates
E38: $1,375.00 - 1st well; $385.00 - each additional well | K38: =ROUND(IF(AND(B38>0,C38=1),Reference!B$172,IF(AND(B38>0,C38>1),Reference!B$172+(C38-1)*Reference!B$173,0)),2) -> 0 | Q38: =IF(B38<>"",IF(OR(A38="",C38="", I38=""),1,0),0) -> 0
A39: Obtaining Offsite Access | B39: Number of Properties Accessed | J39: =CONCATENATE("$",Reference!B$181,".00 per property") -> $505.00 per property | Q39: =IF(F39>0,IF(OR(A40="",C40="",I39=""),1,0),0) -> 0
B40: Description | K40: =F39*Reference!B$181 -> 0 | O40: =IF(SUM(K10:K40)>0,1,0) -> 0 | P40: Print check
A42: PART 5.H (2)
A43: MISCELLANEOUS SUPPLEMENTARY SHEET
A44: UNIT PRICING FORM
A46: Unit pricing for these activities must be utilized.
A50: Costing Category | B50: Unit Price Activities | I50: RAC Invoice No. | J50: Unit Rates | K50: TOTAL | Q50: Test
A51: Groundwater Sampling | B51: Event Date | C51: 1st Well Count | D51: Add. Well Count | E51: Well Numbers (separate with comma)
K53: =ROUND(IF(B53="",0,(C53*Reference!B$176+D53*Reference!C$176)),2) -> 0 | Q53: =IF(C53>0,IF(OR(A53="",B53="",D53="",E53="",I53=""),1,0),0) -> 0
J54: =CONCATENATE("$",Reference!B$176,".00 - 1st well per sample event") -> $720.00 - 1st well per sample event | K54: =ROUND(IF(B54="",0,(C54*Reference!B$176+D54*Reference!C$176)),2) -> 0 | Q54: =IF(C54>0,IF(OR(A54="",B54="",D54="",E54="",I54=""),1,0),0) -> 0
K55: =ROUND(IF(B55="",0,(C55*Reference!B$176+D55*Reference!C$176)),2) -> 0 | Q55: 0
J56: =CONCATENATE("$",Reference!C$176,".00 - additional wells") -> $224.00 - additional wells | K56: =ROUND(IF(B56="",0,(C56*Reference!B$176+D56*Reference!C$176)),2) -> 0 | Q56: 0
K57: =ROUND(IF(B57="",0,(C57*Reference!B$176+D57*Reference!C$176)),2) -> 0 | Q57: 0
A58: Free Product Recovery | B58: Event Date | C58: 1st Well Count | D58: Add. Well Count | E58: Well Numbers (separate with comma) | J58: =CONCATENATE("$",Reference!B$177,".00 - 1st well per event") -> $218.00 - 1st well per event
J60: =CONCATENATE("$",Reference!C$177,".00 - additional wells") -> $72.00 - additional wells | K60: =ROUND(IF(B60="",0,(C60*Reference!B$177+D60*Reference!C$177)),2) -> 0 | Q60: =IF(C60>0,IF(OR(A60="",B60="",D60="",E60="",I60=""),1,0),0) -> 0
J61: =CONCATENATE("The $",Reference!C$177,".00 rate applies to all wells handbailed on the same date as sampled.") -> The $72.00 rate applies to all wells handbailed on the same date as sampled. | K61: =ROUND(IF(B61="",0,(C61*Reference!B$177+D61*Reference!C$177)),2) -> 0 | Q61: 0
K62: =ROUND(IF(B62="",0,(C62*Reference!B$177+D62*Reference!C$177)),2) -> 0 | Q62: 0
K63: =ROUND(IF(B63="",0,(C63*Reference!B$177+D63*Reference!C$177)),2) -> 0 | Q63: 0
A64: Gauging Wells | B64: Event Date | C64: No. of Wells | D64: Well Numbers (separate with comma) | J64: =CONCATENATE("$",Reference!B$178,".00 per well") -> $28.00 per well
K66: =ROUND((C66*Reference!B$178),2) -> 0 | Q66: =IF(C66>0,IF(OR(A66="",B66="",D66="",I66=""),1,0),0) -> 0
K67: =ROUND((C67*Reference!B$178),2) -> 0 | Q67: =IF(C67>0,IF(OR(A67="",B67="",D67="",I67=""),1,0),0) -> 0
K68: =ROUND((C68*Reference!B$178),2) -> 0 | Q68: =IF(C68>0,IF(OR(A68="",B68="",D68="",I68=""),1,0),0) -> 0
K69: =ROUND((C69*Reference!B$178),2) -> 0 | Q69: =IF(C69>0,IF(OR(A69="",B69="",D69="",I69=""),1,0),0) -> 0
A70: Discharge Sampling Events | B70: Event Dates (When additional sampling events are being requested due to an exceedance, a copy of the analytical result documenting the exceedance must be provided.) | J70: =CONCATENATE("$",Reference!B$179,".00 per event") -> $289.00 per event
K71: =ROUND((COUNTA(B71:H71)*Reference!B$179),2) -> 0 | Q71: =IF(AND(K71>0,OR(I71="",A71="")),1,0) -> 0
K72: =ROUND((COUNTA(B72:H72)*Reference!B$179),2) -> 0 | Q72: =IF(AND(K72>0,OR(I72="",A72="")),1,0) -> 0
K73: =ROUND((COUNTA(B73:H73)*Reference!B$179),2) -> 0 | Q73: 0
A74: Mob/Demob | B74: Event Date | C74: Event Type (Drilling, Direct Push, P&A, etc.) | J74: =CONCATENATE("$",Reference!B$180,".00 once per event") -> $352.00 once per event
K75: =ROUND((COUNTA(B75)*Reference!B$180),2) -> 0 | Q75: =IF(B75<>"",IF(OR(A75="",C75="",I75=""),1,0),0) -> 0
K76: =ROUND((COUNTA(B76)*Reference!B$180),2) -> 0 | Q76: =IF(B76<>"",IF(OR(A76="",C76="",I76=""),1,0),0) -> 0
K77: =ROUND((COUNTA(B77)*Reference!B$180),2) -> 0 | Q77: 0
A78: Aquifer Testing | B78: Event Date | C78: Number of wells | E78: Unit Rates
E79: $1,250.00 - 1st well; $350.00 - each additional well | K79: =ROUND(IF(AND(B79>0,C79=1),Reference!B$172,IF(AND(B79>0,C79>1),Reference!B$172+(C79-1)*Reference!B$173,0)),2) -> 0 | Q79: =IF(B79<>"",IF(OR(A79="",C79="", I79=""),1,0),0) -> 0
A80: Obtaining Offsite Access | B80: Number of Properties Accessed | J80: =CONCATENATE("$",Reference!B$181,".00 per property") -> $505.00 per property | Q80: =IF(F80>0,IF(OR(A81="",C81="",I80=""),1,0),0) -> 0
B81: Description | K81: =F80*Reference!B$181 -> 0 | O81: =IF(SUM(K51:K81)>0,1,0) -> 0 | P81: Print check
A83: PART 5.H (2)
A84: MISCELLANEOUS SUPPLEMENTARY SHEET
A85: UNIT PRICING FORM
A87: Unit pricing for these activities must be utilized.
A91: Costing Category | B91: Unit Price Activities | I91: RAC Invoice No. | J91: Unit Rates | K91: TOTAL | Q91: Test
A92: Groundwater Sampling | B92: Event Date | C92: 1st Well Count | D92: Add. Well Count | E92: Well Numbers (separate with comma)
K94: =ROUND(IF(B94="",0,(C94*Reference!B$176+D94*Reference!C$176)),2) -> 0 | Q94: =IF(C94>0,IF(OR(A94="",B94="",D94="",E94="",I94=""),1,0),0) -> 0
J95: =CONCATENATE("$",Reference!B$176,".00 - 1st well per sample event") -> $720.00 - 1st well per sample event | K95: =ROUND(IF(B95="",0,(C95*Reference!B$176+D95*Reference!C$176)),2) -> 0 | Q95: =IF(C95>0,IF(OR(A95="",B95="",D95="",E95="",I95=""),1,0),0) -> 0
K96: =ROUND(IF(B96="",0,(C96*Reference!B$176+D96*Reference!C$176)),2) -> 0 | Q96: 0
J97: =CONCATENATE("$",Reference!C$176,".00 - additional wells") -> $224.00 - additional wells | K97: =ROUND(IF(B97="",0,(C97*Reference!B$176+D97*Reference!C$176)),2) -> 0 | Q97: 0
K98: =ROUND(IF(B98="",0,(C98*Reference!B$176+D98*Reference!C$176)),2) -> 0 | Q98: 0
A99: Free Product Recovery | B99: Event Date | C99: 1st Well Count | D99: Add. Well Count | E99: Well Numbers (separate with comma) | J99: =CONCATENATE("$",Reference!B$177,".00 - 1st well per event") -> $218.00 - 1st well per event
J101: =CONCATENATE("$",Reference!C$177,".00 - additional wells") -> $72.00 - additional wells | K101: =ROUND(IF(B101="",0,(C101*Reference!B$177+D101*Reference!C$177)),2) -> 0 | Q101: =IF(C101>0,IF(OR(A101="",B101="",D101="",E101="",I101=""),1,0),0) -> 0
J102: =CONCATENATE("The $",Reference!C$177,".00 rate applies to all wells handbailed on the same date as sampled.") -> The $72.00 rate applies to all wells handbailed on the same date as sampled. | K102: =ROUND(IF(B102="",0,(C102*Reference!B$177+D102*Reference!C$177)),2) -> 0 | Q102: 0
K103: =ROUND(IF(B103="",0,(C103*Reference!B$177+D103*Reference!C$177)),2) -> 0 | Q103: 0
K104: =ROUND(IF(B104="",0,(C104*Reference!B$177+D104*Reference!C$177)),2) -> 0 | Q104: 0
A105: Gauging Wells | B105: Event Date | C105: No. of Wells | D105: Well Numbers (separate with comma) | J105: =CONCATENATE("$",Reference!B$178,".00 per well") -> $28.00 per well
K107: =ROUND((C107*Reference!B$178),2) -> 0 | Q107: =IF(C107>0,IF(OR(A107="",B107="",D107="",I107=""),1,0),0) -> 0
K108: =ROUND((C108*Reference!B$178),2) -> 0 | Q108: =IF(C108>0,IF(OR(A108="",B108="",D108="",I108=""),1,0),0) -> 0
K109: =ROUND((C109*Reference!B$178),2) -> 0 | Q109: =IF(C109>0,IF(OR(A109="",B109="",D109="",I109=""),1,0),0) -> 0
K110: =ROUND((C110*Reference!B$178),2) -> 0 | Q110: =IF(C110>0,IF(OR(A110="",B110="",D110="",I110=""),1,0),0) -> 0
A111: Discharge Sampling Events | B111: Event Dates (When additional sampling events are being requested due to an exceedance, a copy of the analytical result documenting the exceedance must be provided.) | J111: =CONCATENATE("$",Reference!B$179,".00 per event") -> $289.00 per event
K112: =ROUND((COUNTA(B112:H112)*Reference!B$179),2) -> 0 | Q112: =IF(AND(K112>0,OR(I112="",A112="")),1,0) -> 0
K113: =ROUND((COUNTA(B113:H113)*Reference!B$179),2) -> 0 | Q113: =IF(AND(K113>0,OR(I113="",A113="")),1,0) -> 0
K114: =ROUND((COUNTA(B114:H114)*Reference!B$179),2) -> 0 | Q114: 0
A115: Mob/Demob | B115: Event Date | C115: Event Type (Drilling, Direct Push, P&A, etc.) | J115: =CONCATENATE("$",Reference!B$180,".00 once per event") -> $352.00 once per event
K116: =ROUND((COUNTA(B116)*Reference!B$180),2) -> 0 | Q116: =IF(B116<>"",IF(OR(A116="",C116="",I116=""),1,0),0) -> 0
K117: =ROUND((COUNTA(B117)*Reference!B$180),2) -> 0 | Q117: =IF(B117<>"",IF(OR(A117="",C117="",I117=""),1,0),0) -> 0
K118: =ROUND((COUNTA(B118)*Reference!B$180),2) -> 0 | Q118: 0
A119: Aquifer Testing | B119: Event Date | C119: Number of wells | E119: Unit Rates
E120: $1,250.00 - 1st well; $350.00 - each additional well | K120: =ROUND(IF(AND(B120>0,C120=1),Reference!B$172,IF(AND(B120>0,C120>1),Reference!B$172+(C120-1)*Reference!B$173,0)),2) -> 0 | Q120: =IF(B120<>"",IF(OR(A120="",C120="", I120=""),1,0),0) -> 0
A121: Obtaining Offsite Access | B121: Number of Properties Accessed | J121: =CONCATENATE("$",Reference!B$181,".00 per property") -> $505.00 per property | Q121: =IF(F121>0,IF(OR(A122="",C122="",I121=""),1,0),0) -> 0
B122: Description | K122: =F121*Reference!B$181 -> 0 | O122: =IF(SUM(K92:K122)>0,1,0) -> 0 | P122: Print check

Sheet Miscellaneous 3
A1: PART 5.H(3) | H1: Costing Category Summary | O1: =+O48+O95+O142 -> 0 | P1: Total Print check
A2: MISCELLANEOUS SUPPLEMENTARY SHEET | H2: Emergency/Initial | K2: =SUMIF(A$10:A$48,H2,K$10:K$48)+SUMIF(A$57:A$92,H2,K$57:K$92)+SUMIF(A$104:A$139,H2,K$104:K$139) -> 0
A3: UNIT PRICING FORM | H3: Investigation | K3: =SUMIF(A$10:A$48,H3,K$10:K$48)+SUMIF(A$57:A$92,H3,K$57:K$92)+SUMIF(A$104:A$139,H3,K$104:K$139) -> 0
H4: Interim Monitoring | K4: =SUMIF(A$10:A$48,H4,K$10:K$48)+SUMIF(A$57:A$92,H4,K$57:K$92)+SUMIF(A$104:A$139,H4,K$104:K$139) -> 0
A5: Unit pricing for these activities must be utilized. | H5: Corrective Action Plan | K5: =SUMIF(A$10:A$48,H5,K$10:K$48)+SUMIF(A$57:A$92,H5,K$57:K$92)+SUMIF(A$104:A$139,H5,K$104:K$139) -> 0
A6: * - Cost Control Guidance Document | D6: =IF(SUM(Q10:Q142)>0,"MISSING INFORMATION","") ->  | H6: Report Preparation | K6: =SUMIF(A$10:A$48,H6,K$10:K$48)+SUMIF(A$57:A$92,H6,K$57:K$92)+SUMIF(A$104:A$139,H6,K$104:K$139) -> 0
A8: Costing Category | B8: Unit Price Activities | I8: RAC Invoice No. | J8: Unit Rates | K8: TOTAL | Q8: Test
A9: Bid Package Preparation | B9: Bid Package Description | F9: Work Value | J9: See page 49 of the 2025 CCGD* for rate descriptions Provide Bid Summary with RAC Invoice.
K10: =ROUND(IF(B10>0,IF(B10=Reference!$A$186,INDEX(Reference!$B$186:$D$190,MATCH(B10,Reference!$A$186:$A$190,0),MATCH(F10,Reference!$B$185:$D$185,0)),VLOOKUP(B10,Reference!$A$187:$B$190,2,FALSE)),0),2) -> 0 | Q10: =IF(B10<>"",IF(OR(A10="",I10=""),1,0),0) -> 0
K11: =ROUND(IF(B11>0,IF(B11=Reference!$A$186,INDEX(Reference!$B$186:$D$190,MATCH(B11,Reference!$A$186:$A$190,0),MATCH(F11,Reference!$B$185:$D$185,0)),VLOOKUP(B11,Reference!$A$187:$B$190,2,FALSE)),0),2) -> 0 | Q11: =IF(B11<>"",IF(OR(A11="",I11=""),1,0),0) -> 0
K12: =ROUND(IF(B12>0,IF(B12=Reference!$A$186,INDEX(Reference!$B$186:$D$190,MATCH(B12,Reference!$A$186:$A$190,0),MATCH(F12,Reference!$B$185:$D$185,0)),VLOOKUP(B12,Reference!$A$187:$B$190,2,FALSE)),0),2) -> 0 | Q12: =IF(B12<>"",IF(OR(A12="",I12=""),1,0),0) -> 0
K13: =ROUND(IF(B13>0,IF(B13=Reference!$A$186,INDEX(Reference!$B$186:$D$190,MATCH(B13,Reference!$A$186:$A$190,0),MATCH(F13,Reference!$B$185:$D$185,0)),VLOOKUP(B13,Reference!$A$187:$B$190,2,FALSE)),0),2) -> 0 | Q13: =IF(B13<>"",IF(OR(A13="",I13=""),1,0),0) -> 0
A14: Treatment System Design/Engineering/Planning and Treatment System Installation Design/ Engineering/Planning | J14: =CONCATENATE("$",Reference!B$214,".00 per activity") -> $5766.00 per activity
B15: System/installation RFP documents included with this application | K15: =ROUND(IF(H15="Yes",VLOOKUP("System Design and Planning",Reference!A$214:B$218,2),0),2) -> 0 | Q15: =IF(H15<>"",IF(OR(I15="",A15=""),1,0),0) -> 0
A16: Permit Application Development and Submittal (select from lists) | J16: See page 67 of the 2025 CCGD* for rate descriptions
B17: Air Permit | F17: Water Permit | K17: =SUM(IF(C17>0,VLOOKUP(C17,Reference!A$193:$B$195,2,FALSE),0)+IF(H17>0,VLOOKUP(H17,Reference!$A$193:$B$195,2,FALSE),0)) -> 0 | Q17: =IF(K16>0,IF(OR(I17="",A17=""),1,0),0) -> 0
A18: Groundwater Monitoring Reports | B18: Report Type | C18: Report Period | G18: Treatment System (Yes/No) | H18: Initial or Subsequent | J18: See pages 56-57 of the 2025 CCGD* for rate descriptions
K21: =IF(B21="",0,VLOOKUP(CONCATENATE(B21,G21,H21),Reference!D$199:E$210,2,FALSE)) -> 0 | Q21: =IF(B21<>"",IF(OR(A21="",C21="",G21="",H21="",I21=""),1,0),0) -> 0
K22: =IF(B22="",0,VLOOKUP(CONCATENATE(B22,G22,H22),Reference!D$199:E$210,2,FALSE)) -> 0 | Q22: =IF(B22<>"",IF(OR(A22="",C22="",G22="",H22="",I22=""),1,0),0) -> 0
K23: =IF(B23="",0,VLOOKUP(CONCATENATE(B23,G23,H23),Reference!D$199:E$210,2,FALSE)) -> 0 | Q23: =IF(B23<>"",IF(OR(A23="",C23="",G23="",H23="",I23=""),1,0),0) -> 0
A24: Discharge Monitoring Report | B24: Permit No. | C24: Report Period | G24: Discharge (Yes/No) | H24: Include State or Municipal/ Parish Quarterly Reports | J24: =CONCATENATE("$",Reference!B$302,".00 per report") -> $275.00 per report
J26: =CONCATENATE("($",Reference!B$303,".00 for No Discharge)") -> ($96.00 for No Discharge) | K26: =IF(B26<>"",IF(G26="Yes",Reference!B$302,Reference!B$303),0) -> 0 | Q26: =IF(K26>0,IF(OR(A26="",B26="",C26="",G26="",I26=""),1,0),0) -> 0
K27: =IF(B27<>"",IF(G27="Yes",Reference!B$302,Reference!B$303),0) -> 0 | Q27: =IF(K27>0,IF(OR(A27="",B27="",C27="",G27="",I27=""),1,0),0) -> 0
K28: =IF(B28<>"",IF(G28="Yes",Reference!B$302,Reference!B$303),0) -> 0 | Q28: =IF(K28>0,IF(OR(A28="",B28="",C28="",G28="",I28=""),1,0),0) -> 0
A29: Treatment Unit O&M | B29: Remediation Status/ Unit Type/Frequency | D29: Add. Units | E29: O&M Event Dates | J29: See page 66 of the 2025 CCGD* for rate descriptions
K31: =IF(B31="",0,(VLOOKUP(B31,Reference!$D$221:$E$232,2,FALSE)+IF(D31="",0,D31)*Reference!$B$235)*(COUNT(E31:H31))) -> 0 | Q31: =IF(B31<>"",IF(OR(A31="",D31="",COUNT(E31:H31)=0,I31=""),1,0),0) -> 0
K32: =IF(B32="",0,(VLOOKUP(B32,Reference!$D$221:$E$232,2,FALSE)+IF(D32="",0,D32)*Reference!$B$235)*(COUNT(E32:H32))) -> 0 | Q32: =IF(B32<>"",IF(OR(A32="",D32="",COUNT(E32:H32)=0,I32=""),1,0),0) -> 0
K33: =IF(B33="",0,(VLOOKUP(B33,Reference!$D$221:$E$232,2,FALSE)+IF(D33="",0,D33)*Reference!$B$235)*(COUNT(E33:H33))) -> 0 | Q33: =IF(B33<>"",IF(OR(A33="",D33="",COUNT(E33:H33)=0,I33=""),1,0),0) -> 0
K34: =IF(B34="",0,(VLOOKUP(B34,Reference!$D$221:$E$232,2,FALSE)+IF(D34="",0,D34)*Reference!$B$235)*(COUNT(E34:H34))) -> 0 | Q34: =IF(B34<>"",IF(OR(A34="",D34="",COUNT(E34:H34)=0,I34=""),1,0),0) -> 0
A35: Oil Changes | B35: No. of Events | D35: Unit HP | E35: Event Dates | J35: =CONCATENATE("$",Reference!B$236,".00 per event"," & $",Reference!B$237,".00 for units > 40 HP") -> $3450.00 per event & $616.00 for units > 40 HP
K36: =B36*(Reference!B$236+IF('Miscellaneous 3'!D36="> 40",Reference!B$237,0)) -> 0 | Q36: =IF(K36>0,IF(OR(A36="",D36="",E36="",I36=""),1,0),0) -> 0
A37: Stripperator Cleaning | B37: No. of Events | D37: Event Dates | J37: =CONCATENATE("$",Reference!B$238,".00 per event") -> $1109.00 per event
K38: =B38*(Reference!B$238) -> 0 | Q38: =IF(K38>0,IF(OR(A38="",D38="",I38=""),1,0),0) -> 0
A39: Vac. Event Report with Planning | B39: Event Types | F39: Event Dates | J39: See page 62-64 of the 2025 CCGD* for rate descriptions
A41: Corrective Action Plan | B41: Initial Event | K41: =IF(C41="",0,VLOOKUP('Miscellaneous 3'!C41,Reference!A$242:D$244,2,FALSE)*COUNT(F41:H41)) -> 0 | Q41: =IF(K41>0,IF(OR(A41="",C41="",I41=""),1,0),0) -> 0
A42: Corrective Action Plan | B42: Additional Events | K42: =IF(C42="",0,VLOOKUP('Miscellaneous 3'!C42,Reference!A$242:D$244,3,FALSE)*COUNT(F42:H43)) -> 0 | Q42: =IF(K42>0,IF(OR(A42="",C42="",I42=""),1,0),0) -> 0
A44: High Resolution Site Characterization | B44: Event Description (Operator & Equipment) | F44: Dates of Event | H44: Day Count | J44: See page 60-61 of the 2025 CCGD* for rate descriptions
K45: =IF(OR(B45="",F45=""),0,VLOOKUP(B45,Reference!$A$322:$B$325,2,FALSE)*IF(VLOOKUP(B45,Reference!$A$322:$C$325,3,FALSE)<H45,0,H45)) -> 0 | Q45: =IF(B45>0,IF(OR(A45="",F45="",H45="",I45=""),1,0),0) -> 0
K46: =IF(OR(B46="",F46=""),0,VLOOKUP(B46,Reference!$A$322:$B$325,2,FALSE)*IF(VLOOKUP(B46,Reference!$A$322:$C$325,3,FALSE)<H46,0,H46)) -> 0 | Q46: =IF(B46>0,IF(OR(A46="",F46="",H46="",I46=""),1,0),0) -> 0
B47: Event Planning | K47: =+IF(OR(G47="",G47="No"),0,VLOOKUP(B47,Reference!$A$326:$B$327,2,FALSE)) -> 0 | Q47: =IF(G47="Yes",IF(OR(A47="",I47=""),1,0),0) -> 0
B48: Intergrated Site Visualization report with 3D modeling | K48: =IF(OR(G48="",G48="No"),0,VLOOKUP(B48,Reference!$A$326:$B$327,2,FALSE)) -> 0 | O48: =IF(SUM(K9:K48)>0,1,0) -> 0 | P48: Print check | Q48: =IF(G48="Yes",IF(OR(A48="",I48=""),1,0),0) -> 0
A50: PART 5.H(3)
A51: MISCELLANEOUS SUPPLEMENTARY SHEET
A52: UNIT PRICING FORM
A54: Unit pricing for these activities must be utilized. | J54: * - Cost Control Guidance Document
A55: Costing Category | B55: Unit Price Activities | I55: RAC Invoice No. | J55: Unit Rates | K55: TOTAL | Q55: Test
A56: Bid Package Preparation | B56: Bid Package Description | F56: Work Value | J56: See page 49 of the 2025 CCGD* for rate descriptions Provide Bid Summary with RAC Invoice.
K57: =ROUND(IF(B57>0,IF(B57=Reference!$A$186,INDEX(Reference!$B$186:$D$190,MATCH(B57,Reference!$A$186:$A$190,0),MATCH(F57,Reference!$B$185:$D$185,0)),VLOOKUP(B57,Reference!$A$187:$B$190,2,FALSE)),0),2) -> 0 | Q57: =IF(B57<>"",IF(OR(A57="",I57=""),1,0),0) -> 0
K58: =ROUND(IF(B58>0,IF(B58=Reference!$A$186,INDEX(Reference!$B$186:$D$190,MATCH(B58,Reference!$A$186:$A$190,0),MATCH(F58,Reference!$B$185:$D$185,0)),VLOOKUP(B58,Reference!$A$187:$B$190,2,FALSE)),0),2) -> 0 | Q58: =IF(B58<>"",IF(OR(A58="",I58=""),1,0),0) -> 0
K59: =ROUND(IF(B59>0,IF(B59=Reference!$A$186,INDEX(Reference!$B$186:$D$190,MATCH(B59,Reference!$A$186:$A$190,0),MATCH(F59,Reference!$B$185:$D$185,0)),VLOOKUP(B59,Reference!$A$187:$B$190,2,FALSE)),0),2) -> 0 | Q59: =IF(B59<>"",IF(OR(A59="",I59=""),1,0),0) -> 0
K60: =ROUND(IF(B60>0,IF(B60=Reference!$A$186,INDEX(Reference!$B$186:$D$190,MATCH(B60,Reference!$A$186:$A$190,0),MATCH(F60,Reference!$B$185:$D$185,0)),VLOOKUP(B60,Reference!$A$187:$B$190,2,FALSE)),0),2) -> 0 | Q60: =IF(B60<>"",IF(OR(A60="",I60=""),1,0),0) -> 0
A61: Treatment System Design/Engineering/Planning and Treatment System Installation Design/ Engineering/Planning | J61: =CONCATENATE("$",Reference!B$214,".00 per activity") -> $5766.00 per activity
B62: System/installation RFP documents included with this application | K62: =ROUND(IF(H62="Yes",VLOOKUP("System Design and Planning",Reference!A$214:B$218,2),0),2) -> 0 | Q62: =IF(H62<>"",IF(OR(I62="",A62=""),1,0),0) -> 0
A63: Permit Application Development and Submittal (select from lists) | J63: See page 67 of the 2025 CCGD* for rate descriptions
B64: Air Permit | F64: Water Permit | K64: =SUM(IF(C64>0,VLOOKUP(C64,Reference!A$193:$B$195,2,FALSE),0)+IF(H64>0,VLOOKUP(H64,Reference!$A$193:$B$195,2,FALSE),0)) -> 0 | Q64: =IF(K63>0,IF(OR(I64="",A64=""),1,0),0) -> 0
A65: Groundwater Monitoring Reports | B65: Report Type | C65: Report Period | G65: Treatment System (Yes/No) | H65: Initial or Subsequent | J65: See pages 56-57 of the 2025 CCGD* for rate descriptions
K68: =IF(B68="",0,VLOOKUP(CONCATENATE(B68,G68,H68),Reference!D$199:E$210,2,FALSE)) -> 0 | Q68: =IF(B68<>"",IF(OR(A68="",C68="",G68="",H68="",I68=""),1,0),0) -> 0
K69: =IF(B69="",0,VLOOKUP(CONCATENATE(B69,G69,H69),Reference!D$199:E$210,2,FALSE)) -> 0 | Q69: =IF(B69<>"",IF(OR(A69="",C69="",G69="",H69="",I69=""),1,0),0) -> 0
K70: =IF(B70="",0,VLOOKUP(CONCATENATE(B70,G70,H70),Reference!D$199:E$210,2,FALSE)) -> 0 | Q70: =IF(B70<>"",IF(OR(A70="",C70="",G70="",H70="",I70=""),1,0),0) -> 0
A71: Discharge Monitoring Report | B71: Permit No. | C71: Report Period | G71: Discharge (Yes/No) | H71: Include State or Municipal/ Parish Quarterly Reports | J71: =CONCATENATE("$",Reference!B$302,".00 per report") -> $275.00 per report
J73: =CONCATENATE("($",Reference!B$303,".00 for No Discharge)") -> ($96.00 for No Discharge) | K73: =IF(B73<>"",IF(G73="Yes",Reference!B$302,Reference!B$303),0) -> 0 | Q73: =IF(K73>0,IF(OR(A73="",B73="",C73="",G73="",I73=""),1,0),0) -> 0
K74: =IF(B74<>"",IF(G74="Yes",Reference!B$302,Reference!B$303),0) -> 0 | Q74: =IF(K74>0,IF(OR(A74="",B74="",C74="",G74="",I74=""),1,0),0) -> 0
K75: =IF(B75<>"",IF(G75="Yes",Reference!B$302,Reference!B$303),0) -> 0 | Q75: =IF(K75>0,IF(OR(A75="",B75="",C75="",G75="",I75=""),1,0),0) -> 0
A76: Treatment Unit O&M | B76: Remediation Status/ Unit Type/Frequency | D76: Add. Units | E76: O&M Event Dates | J76: See page 66 of the 2025 CCGD* for rate descriptions
K78: =IF(B78="",0,(VLOOKUP(B78,Reference!$D$221:$E$232,2,FALSE)+IF(D78="",0,D78)*Reference!$B$235)*(COUNT(E78:H78))) -> 0 | Q78: =IF(B78<>"",IF(OR(A78="",D78="",COUNT(E78:H78)=0,I78=""),1,0),0) -> 0
K79: =IF(B79="",0,(VLOOKUP(B79,Reference!$D$221:$E$232,2,FALSE)+IF(D79="",0,D79)*Reference!$B$235)*(COUNT(E79:H79))) -> 0 | Q79: =IF(B79<>"",IF(OR(A79="",D79="",COUNT(E79:H79)=0,I79=""),1,0),0) -> 0
K80: =IF(B80="",0,(VLOOKUP(B80,Reference!$D$221:$E$232,2,FALSE)+IF(D80="",0,D80)*Reference!$B$235)*(COUNT(E80:H80))) -> 0 | Q80: =IF(B80<>"",IF(OR(A80="",D80="",COUNT(E80:H80)=0,I80=""),1,0),0) -> 0
K81: =IF(B81="",0,(VLOOKUP(B81,Reference!$D$221:$E$232,2,FALSE)+IF(D81="",0,D81)*Reference!$B$235)*(COUNT(E81:H81))) -> 0 | Q81: =IF(B81<>"",IF(OR(A81="",D81="",COUNT(E81:H81)=0,I81=""),1,0),0) -> 0
A82: Oil Changes | B82: No. of Events | D82: Unit HP | E82: Event Dates | J82: =CONCATENATE("$",Reference!B$236,".00 per event"," & $",Reference!B$237,".00 for units > 40 HP") -> $3450.00 per event & $616.00 for units > 40 HP
K83: =B83*(Reference!B$236+IF('Miscellaneous 3'!D83="> 40",Reference!B$237,0)) -> 0 | Q83: =IF(K83>0,IF(OR(A83="",D83="",E83="",I83=""),1,0),0) -> 0
A84: Stripperator Cleaning | B84: No. of Events | D84: Event Dates | J84: =CONCATENATE("$",Reference!B$238,".00 per event") -> $1109.00 per event
K85: =B85*(Reference!B$238) -> 0 | Q85: =IF(K85>0,IF(OR(A85="",D85="",I85=""),1,0),0) -> 0
A86: Vac. Event Report with Planning | B86: Event Types | F86: Event Dates | J86: See page 62-64 of the 2025 CCGD* for rate descriptions
B88: Initial Event | K88: =IF(C88="",0,VLOOKUP('Miscellaneous 3'!C88,Reference!A$242:D$244,2,FALSE)*COUNT(F88:H88)) -> 0 | Q88: =IF(K88>0,IF(OR(A88="",C88="",I88=""),1,0),0) -> 0
B89: Additional Events | K89: =IF(C89="",0,VLOOKUP('Miscellaneous 3'!C89,Reference!A$242:D$244,3,FALSE)*COUNT(F89:H90)) -> 0 | Q89: =IF(K89>0,IF(OR(A89="",C89="",I89=""),1,0),0) -> 0
A91: High Resolution Site Characterization | B91: Event Description (Operator & Equipment) | F91: Dates of Event | H91: Day Count | J91: See page 60-61 of the 2025 CCGD* for rate descriptions
K92: =IF(OR(B92="",F92=""),0,VLOOKUP(B92,Reference!$A$322:$B$325,2,FALSE)*IF(VLOOKUP(B92,Reference!$A$322:$C$325,3,FALSE)<H92,0,H92)) -> 0 | Q92: =IF(B92>0,IF(OR(A92="",F92="",H92="",I92=""),1,0),0) -> 0
K93: =IF(OR(B93="",F93=""),0,VLOOKUP(B93,Reference!$A$322:$B$325,2,FALSE)*IF(VLOOKUP(B93,Reference!$A$322:$C$325,3,FALSE)<H93,0,H93)) -> 0 | Q93: =IF(B93>0,IF(OR(A93="",F93="",H93="",I93=""),1,0),0) -> 0
B94: Event Planning | K94: =+IF(OR(G94="",G94="No"),0,VLOOKUP(B94,Reference!$A$326:$B$327,2,FALSE)) -> 0 | Q94: =IF(G94="Yes",IF(OR(A94="",I94=""),1,0),0) -> 0
B95: Intergrated Site Visualization report with 3D modeling | K95: =IF(OR(G95="",G95="No"),0,VLOOKUP(B95,Reference!$A$326:$B$327,2,FALSE)) -> 0 | O95: =IF(SUM(K56:K92)>0,1,0) -> 0 | P95: Print check | Q95: =IF(G95="Yes",IF(OR(A95="",I95=""),1,0),0) -> 0
A97: PART 5.H(3)
A98: MISCELLANEOUS SUPPLEMENTARY SHEET
A99: UNIT PRICING FORM
A101: Unit pricing for these activities must be utilized. | J101: * - Cost Control Guidance Document
A102: Costing Category | B102: Unit Price Activities | I102: RAC Invoice No. | J102: Unit Rates | K102: TOTAL | Q102: Test
A103: Bid Package Preparation | B103: Bid Package Description | F103: Work Value | J103: See page 49 of the 2025 CCGD* for rate descriptions Provide Bid Summary with RAC Invoice.
K104: =ROUND(IF(B104>0,IF(B104=Reference!$A$186,INDEX(Reference!$B$186:$D$190,MATCH(B104,Reference!$A$186:$A$190,0),MATCH(F104,Reference!$B$185:$D$185,0)),VLOOKUP(B104,Reference!$A$187:$B$190,2,FALSE)),0),2) -> 0 | Q104: =IF(B104<>"",IF(OR(A104="",I104=""),1,0),0) -> 0
K105: =ROUND(IF(B105>0,IF(B105=Reference!$A$186,INDEX(Reference!$B$186:$D$190,MATCH(B105,Reference!$A$186:$A$190,0),MATCH(F105,Reference!$B$185:$D$185,0)),VLOOKUP(B105,Reference!$A$187:$B$190,2,FALSE)),0),2) -> 0 | Q105: =IF(B105<>"",IF(OR(A105="",I105=""),1,0),0) -> 0
K106: =ROUND(IF(B106>0,IF(B106=Reference!$A$186,INDEX(Reference!$B$186:$D$190,MATCH(B106,Reference!$A$186:$A$190,0),MATCH(F106,Reference!$B$185:$D$185,0)),VLOOKUP(B106,Reference!$A$187:$B$190,2,FALSE)),0),2) -> 0 | Q106: =IF(B106<>"",IF(OR(A106="",I106=""),1,0),0) -> 0
K107: =ROUND(IF(B107>0,IF(B107=Reference!$A$186,INDEX(Reference!$B$186:$D$190,MATCH(B107,Reference!$A$186:$A$190,0),MATCH(F107,Reference!$B$185:$D$185,0)),VLOOKUP(B107,Reference!$A$187:$B$190,2,FALSE)),0),2) -> 0 | Q107: =IF(B107<>"",IF(OR(A107="",I107=""),1,0),0) -> 0
A108: Treatment System Design/Engineering/Planning and Treatment System Installation Design/ Engineering/Planning | J108: =CONCATENATE("$",Reference!B$214,".00 per activity") -> $5766.00 per activity
B109: System/installation RFP documents included with this application | K109: =ROUND(IF(H109="Yes",VLOOKUP("System Design and Planning",Reference!A$214:B$218,2),0),2) -> 0 | Q109: =IF(H109<>"",IF(OR(I109="",A109=""),1,0),0) -> 0
A110: Permit Application Development and Submittal (select from lists) | J110: See page 67 of the 2025 CCGD* for rate descriptions
B111: Air Permit | F111: Water Permit | K111: =SUM(IF(C111>0,VLOOKUP(C111,Reference!A$193:$B$195,2,FALSE),0)+IF(H111>0,VLOOKUP(H111,Reference!$A$193:$B$195,2,FALSE),0)) -> 0 | Q111: =IF(K110>0,IF(OR(I111="",A111=""),1,0),0) -> 0
A112: Groundwater Monitoring Reports | B112: Report Type | C112: Report Period | G112: Treatment System (Yes/No) | H112: Initial or Subsequent | J112: See pages 56-57 of the 2025 CCGD* for rate descriptions
K115: =IF(B115="",0,VLOOKUP(CONCATENATE(B115,G115,H115),Reference!D$199:E$210,2,FALSE)) -> 0 | Q115: =IF(B115<>"",IF(OR(A115="",C115="",G115="",H115="",I115=""),1,0),0) -> 0
K116: =IF(B116="",0,VLOOKUP(CONCATENATE(B116,G116,H116),Reference!D$199:E$210,2,FALSE)) -> 0 | Q116: =IF(B116<>"",IF(OR(A116="",C116="",G116="",H116="",I116=""),1,0),0) -> 0
K117: =IF(B117="",0,VLOOKUP(CONCATENATE(B117,G117,H117),Reference!D$199:E$210,2,FALSE)) -> 0 | Q117: =IF(B117<>"",IF(OR(A117="",C117="",G117="",H117="",I117=""),1,0),0) -> 0
A118: Discharge Monitoring Report | B118: Permit No. | C118: Report Period | G118: Discharge (Yes/No) | H118: Include State or Municipal/ Parish Quarterly Reports | J118: =CONCATENATE("$",Reference!B$302,".00 per report") -> $275.00 per report
J120: =CONCATENATE("($",Reference!B$303,".00 for No Discharge)") -> ($96.00 for No Discharge) | K120: =IF(B120<>"",IF(G120="Yes",Reference!B$302,Reference!B$303),0) -> 0 | Q120: =IF(K120>0,IF(OR(A120="",B120="",C120="",G120="",I120=""),1,0),0) -> 0
K121: =IF(B121<>"",IF(G121="Yes",Reference!B$302,Reference!B$303),0) -> 0 | Q121: =IF(K121>0,IF(OR(A121="",B121="",C121="",G121="",I121=""),1,0),0) -> 0
K122: =IF(B122<>"",IF(G122="Yes",Reference!B$302,Reference!B$303),0) -> 0 | Q122: =IF(K122>0,IF(OR(A122="",B122="",C122="",G122="",I122=""),1,0),0) -> 0
A123: Treatment Unit O&M | B123: Remediation Status/ Unit Type/Frequency | D123: Add. Units | E123: O&M Event Dates | J123: See page 66 of the 2025 CCGD* for rate descriptions
K125: =IF(B125="",0,(VLOOKUP(B125,Reference!$D$221:$E$232,2,FALSE)+IF(D125="",0,D125)*Reference!$B$235)*(COUNT(E125:H125))) -> 0 | Q125: =IF(B125<>"",IF(OR(A125="",D125="",COUNT(E125:H125)=0,I125=""),1,0),0) -> 0
K126: =IF(B126="",0,(VLOOKUP(B126,Reference!$D$221:$E$232,2,FALSE)+IF(D126="",0,D126)*Reference!$B$235)*(COUNT(E126:H126))) -> 0 | Q126: =IF(B126<>"",IF(OR(A126="",D126="",COUNT(E126:H126)=0,I126=""),1,0),0) -> 0
K127: =IF(B127="",0,(VLOOKUP(B127,Reference!$D$221:$E$232,2,FALSE)+IF(D127="",0,D127)*Reference!$B$235)*(COUNT(E127:H127))) -> 0 | Q127: =IF(B127<>"",IF(OR(A127="",D127="",COUNT(E127:H127)=0,I127=""),1,0),0) -> 0
K128: =IF(B128="",0,(VLOOKUP(B128,Reference!$D$221:$E$232,2,FALSE)+IF(D128="",0,D128)*Reference!$B$235)*(COUNT(E128:H128))) -> 0 | Q128: =IF(B128<>"",IF(OR(A128="",D128="",COUNT(E128:H128)=0,I128=""),1,0),0) -> 0
A129: Oil Changes | B129: No. of Events | D129: Unit HP | E129: Event Dates | J129: =CONCATENATE("$",Reference!B$236,".00 per event"," & $",Reference!B$237,".00 for units > 40 HP") -> $3450.00 per event & $616.00 for units > 40 HP
K130: =B130*(Reference!B$236+IF('Miscellaneous 3'!D130="> 40",Reference!B$237,0)) -> 0 | Q130: =IF(K130>0,IF(OR(A130="",D130="",E130="",I130=""),1,0),0) -> 0
A131: Stripperator Cleaning | B131: No. of Events | D131: Event Dates | J131: =CONCATENATE("$",Reference!B$238,".00 per event") -> $1109.00 per event
K132: =B132*(Reference!B$238) -> 0 | Q132: =IF(K132>0,IF(OR(A132="",D132="",I132=""),1,0),0) -> 0
A133: Vac. Event Report with Planning | B133: Event Types | F133: Event Dates | J133: See page 62-64 of the 2025 CCGD* for rate descriptions
B135: Initial Event | K135: =IF(C135="",0,VLOOKUP('Miscellaneous 3'!C135,Reference!A$242:D$244,2,FALSE)*COUNT(F135:H135)) -> 0 | Q135: =IF(K135>0,IF(OR(A135="",C135="",I135=""),1,0),0) -> 0
B136: Additional Events | K136: =IF(C136="",0,VLOOKUP('Miscellaneous 3'!C136,Reference!A$242:D$244,3,FALSE)*COUNT(F136:H137)) -> 0 | Q136: =IF(K136>0,IF(OR(A136="",C136="",I136=""),1,0),0) -> 0
A138: High Resolution Site Characterization | B138: Event Description (Operator & Equipment) | F138: Dates of Event | H138: Day Count | J138: See page 60-61 of the 2025 CCGD* for rate descriptions
K139: =IF(OR(B139="",F139=""),0,VLOOKUP(B139,Reference!$A$322:$B$325,2,FALSE)*IF(VLOOKUP(B139,Reference!$A$322:$C$325,3,FALSE)<H139,0,H139)) -> 0 | Q139: =IF(B139>0,IF(OR(A139="",F139="",H139="",I139=""),1,0),0) -> 0
K140: =IF(OR(B140="",F140=""),0,VLOOKUP(B140,Reference!$A$322:$B$325,2,FALSE)*IF(VLOOKUP(B140,Reference!$A$322:$C$325,3,FALSE)<H140,0,H140)) -> 0 | Q140: =IF(B140>0,IF(OR(A140="",F140="",H140="",I140=""),1,0),0) -> 0
B141: Event Planning | K141: =+IF(OR(G141="",G141="No"),0,VLOOKUP(B141,Reference!$A$326:$B$327,2,FALSE)) -> 0 | Q141: =IF(G141="Yes",IF(OR(A141="",I141=""),1,0),0) -> 0
B142: Intergrated Site Visualization report with 3D modeling | K142: =IF(OR(G142="",G142="No"),0,VLOOKUP(B142,Reference!$A$326:$B$327,2,FALSE)) -> 0 | O142: =IF(SUM(K103:K139)>0,1,0) -> 0 | P142: Print check | Q142: =IF(G142="Yes",IF(OR(A142="",I142=""),1,0),0) -> 0

Sheet Miscellaneous 4
A1: PART 5.H (4) | E1: Costing Category Summary
A2: MISCELLANEOUS SUPPLEMENTARY SHEET | E2: Category | G2: Page Totals | H2: Part 5.H Totals
A3: UNIT PRICING FORM | E3: Emergency/Initial | G3: =SUMIF($A$11:$A$41,E3,$H$11:$H$41) -> 0 | H3: =+G3+'Miscellaneous 3'!K2+'Miscellaneous 2'!K3+'Miscellaneous 1'!H4 -> 0
E4: Investigation | G4: =SUMIF($A$11:$A$41,E4,$H$11:$H$41) -> 0 | H4: =+G4+'Miscellaneous 3'!K3+'Miscellaneous 2'!K4+'Miscellaneous 1'!H5 -> 0
A5: =IF(SUM(U11:U42)>0,"MISSING INFORMATION","") ->  | E5: Interim Monitoring | G5: 0 | H5: =+G5+'Miscellaneous 3'!K4+'Miscellaneous 2'!K5+'Miscellaneous 1'!H6 -> 0
A6: Unit pricing for these activities must be utilized. | E6: Corrective Action Plan | G6: =SUMIF($A$11:$A$41,E6,$H$11:$H$41) -> 0 | H6: =+G6+'Miscellaneous 3'!K5+'Miscellaneous 2'!K6+'Miscellaneous 1'!H7 -> 0
A7: * - Cost Control Guidance Document | E7: Report Preparation | G7: 0 | H7: =+G7+'Miscellaneous 3'!K6+'Miscellaneous 1'!H8 -> 0
A10: Costing Category | B10: Unit Price Activities | F10: RAC Invoice No. | G10: Unit Rates | H10: TOTAL | U10: Test
A11: Corrective Action Plan | B11: Submittal Date | C11: CAP Category | E11: Budget Amount | G11: See page 50 of the 2025 CCGD* for rate descriptions
H13: =ROUND(IF(OR(AND(B13>0,C13>0,E13>0),AND(B13>0,C13=Reference!A248)),IF(OR(C13=Reference!$A$252,C13=Reference!$A$254,C13=Reference!$A$255),IF(E13*VLOOKUP(C13,Reference!$A$247:$C$255,2,FALSE)>VLOOKUP(C13,Reference!$A$247:$C$255,3,FALSE),VLOOKUP(C13,Reference!$A$247:$C$255,3,FALSE),E13*VLOOKUP(C13,Reference!$A$247:$C$255,2,FALSE)),VLOOKUP(C13,Reference!$A$247:$C$255,2,FALSE)),0),2) -> 0 | U13: =IF(C13<>"",IF(OR(A13="",B13="",E13="",F13=""),1,0),0) -> 0
H14: =ROUND(IF(OR(AND(B14>0,C14>0,E14>0),AND(B14>0,C14=Reference!A249)),IF(OR(C14=Reference!$A$252,C14=Reference!$A$254,C14=Reference!$A$255),IF(E14*VLOOKUP(C14,Reference!$A$247:$C$255,2,FALSE)>VLOOKUP(C14,Reference!$A$247:$C$255,3,FALSE),VLOOKUP(C14,Reference!$A$247:$C$255,3,FALSE),E14*VLOOKUP(C14,Reference!$A$247:$C$255,2,FALSE)),VLOOKUP(C14,Reference!$A$247:$C$255,2,FALSE)),0),2) -> 0 | U14: =IF(C14<>"",IF(OR(A14="",B14="",E14="",F14=""),1,0),0) -> 0
H15: =ROUND(IF(OR(AND(B15>0,C15>0,E15>0),AND(B15>0,C15=Reference!A250)),IF(OR(C15=Reference!$A$252,C15=Reference!$A$254,C15=Reference!$A$255),IF(E15*VLOOKUP(C15,Reference!$A$247:$C$255,2,FALSE)>VLOOKUP(C15,Reference!$A$247:$C$255,3,FALSE),VLOOKUP(C15,Reference!$A$247:$C$255,3,FALSE),E15*VLOOKUP(C15,Reference!$A$247:$C$255,2,FALSE)),VLOOKUP(C15,Reference!$A$247:$C$255,2,FALSE)),0),2) -> 0 | U15: =IF(C15<>"",IF(OR(A15="",B15="",E15="",F15=""),1,0),0) -> 0
A16: Plugging & Abandonment Workplan or Report | B16: Report Type | C16: Event Description | E16: Submittal Date | G16: =CONCATENATE("$",Reference!B$261,".00 per work plan ") -> $128.00 per work plan
G18: =CONCATENATE("$",Reference!B$260,".00 per report") -> $924.00 per report | H18: =ROUND(IF(AND(B18<>"",E18>0),VLOOKUP(B18,Reference!A$260:B$261,2,FALSE),0),2) -> 0 | U18: =IF(B18<>"",IF(OR(A18="",C18="",E18="",F18=""),1,0),0) -> 0
H19: =ROUND(IF(AND(B19<>"",E19>0),VLOOKUP(B19,Reference!A$260:B$261,2,FALSE),0),2) -> 0 | U19: =IF(B19<>"",IF(OR(A19="",C19="",E19="",F19=""),1,0),0) -> 0
A20: Remediation Oversight Group Meeting Preparation and Attendance | G20: =CONCATENATE("$",Reference!B$215,".00 per activity") -> $865.00 per activity
B21: Meeting Date | H21: =ROUND(IF(E21<>"",VLOOKUP(A21,Reference!A$214:B$217,2),0),2) -> 0 | U21: =IF(E21<>"",IF(OR(A21="",F21=""),1,0),0) -> 0
A22: Risk Evaluation/ Corrective Action Report | B22: RECAP Report Description | E22: Submittal Date | G22: See page 70 of the 2025 CCGD* for rate descriptions
H24: =ROUND(IF(AND(B24<>"",E24>0),VLOOKUP(B24,Reference!A$265:B$271,2,FALSE),0),2) -> 0 | U24: =IF(B24<>"",IF(OR(A24="",E24="",F24=""),1,0),0) -> 0
H25: =ROUND(IF(AND(B25<>"",E25>0),VLOOKUP(B25,Reference!A$265:B$271,2,FALSE),0),2) -> 0 | U25: =IF(B25<>"",IF(OR(A25="",E25="",F25=""),1,0),0) -> 0
H26: =ROUND(IF(AND(B26<>"",E26>0),VLOOKUP(B26,Reference!A$265:B$271,2,FALSE),0),2) -> 0 | U26: =IF(B26<>"",IF(OR(A26="",E26="",F26=""),1,0),0) -> 0
A27: Site Investigation/Soil Confirmation Workplan/Report | B27: Workplan/Report Type | C27: Submittal Date | D27: Team Leader Approval Date | E27: Field Work Budgeted/ Reimbursed | G27: See pages 71- 72 of the 2025 CCGD* for rate descriptions
R28: $ calculation
H29: =ROUND(IF(AND(B29<>"",C29>0,E29>0),IF(R29<VLOOKUP(B29,Reference!A$275:D$278,3,FALSE),VLOOKUP(B29,Reference!A$275:D$278,3,FALSE),IF(R29>VLOOKUP(B29,Reference!A$275:D$278,4,FALSE),VLOOKUP(B29,Reference!A$275:D$278,4,FALSE),R29))),2) -> 0 | R29: =IF(AND(B29<>"",C29>0,E29>0),VLOOKUP(B29,Reference!A$275:D$278,2,FALSE)*'Miscellaneous 4'!E29,0) -> 0 | U29: =IF(B29<>"",IF(OR(A29="",C29="",D29="",E29="",F29=""),1,0),0) -> 0
H30: =ROUND(IF(AND(B30<>"",C30>0,E30>0),IF(R30<VLOOKUP(B30,Reference!A$275:D$278,3,FALSE),VLOOKUP(B30,Reference!A$275:D$278,3,FALSE),IF(R30>VLOOKUP(B30,Reference!A$275:D$278,4,FALSE),VLOOKUP(B30,Reference!A$275:D$278,4,FALSE),R30))),2) -> 0 | R30: =IF(AND(B30<>"",C30>0,E30>0),VLOOKUP(B30,Reference!A$275:D$278,2,FALSE)*'Miscellaneous 4'!E30,0) -> 0 | U30: =IF(B30<>"",IF(OR(A30="",C30="",D30="",E30="",F30=""),1,0),0) -> 0
H31: =ROUND(IF(AND(B31<>"",C31>0,E31>0),IF(R31<VLOOKUP(B31,Reference!A$275:D$278,3,FALSE),VLOOKUP(B31,Reference!A$275:D$278,3,FALSE),IF(R31>VLOOKUP(B31,Reference!A$275:D$278,4,FALSE),VLOOKUP(B31,Reference!A$275:D$278,4,FALSE),R31))),2) -> 0 | R31: =IF(AND(B31<>"",C31>0,E31>0),VLOOKUP(B31,Reference!A$275:D$278,2,FALSE)*'Miscellaneous 4'!E31,0) -> 0 | U31: =IF(B31<>"",IF(OR(A31="",C31="",D31="",E31="",F31=""),1,0),0) -> 0
H32: =ROUND(IF(AND(B32<>"",C32>0,E32>0),IF(R32<VLOOKUP(B32,Reference!A$275:D$278,3,FALSE),VLOOKUP(B32,Reference!A$275:D$278,3,FALSE),IF(R32>VLOOKUP(B32,Reference!A$275:D$278,4,FALSE),VLOOKUP(B32,Reference!A$275:D$278,4,FALSE),R32))),2) -> 0 | R32: =IF(AND(B32<>"",C32>0,E32>0),VLOOKUP(B32,Reference!A$275:D$278,2,FALSE)*'Miscellaneous 4'!E32,0) -> 0 | U32: =IF(B32<>"",IF(OR(A32="",C32="",D32="",E32="",F32=""),1,0),0) -> 0
A33: Corrective Action Plan Construction and Operations Report | B33: Report Type | E33: Submittal Date | G33: See page 51 of the 2025 CCGD* for rate descriptions
H35: =ROUND(IF(AND(B35<>"",E35>0),VLOOKUP(B35,Reference!A$281:B$284,2,FALSE),0),2) -> 0 | U35: =IF(B35<>"",IF(OR(A35="",E35="",F35=""),1,0),0) -> 0
H36: =ROUND(IF(AND(B36<>"",E36>0),VLOOKUP(B36,Reference!A$281:B$284,2,FALSE),0),2) -> 0 | U36: =IF(B36<>"",IF(OR(A36="",E36="",F36=""),1,0),0) -> 0
A37: Conveyance Notice | B37: Number of Affected Properties | D37: Notice Date | G37: =CONCATENATE("$",Reference!B$287,".00 per affected property") -> $1478.00 per affected property
H38: =ROUND(IF(AND(B38>0,D38>0),B38*Reference!$B$287,0),2) -> 0 | U38: =IF(C38>0,IF(OR(F38="",E38="",A38=""),1,0),0) -> 0
A39: Trust Fund Reimbursement Application Preparation | B39: July – September | C39: =+'Part 5'!M$16 ->  | D39: January – March | E39: =+'Part 5'!S$16 ->  | G39: =CONCATENATE("Applications Addressing Field Work: $",Reference!B291,".00 Application Addressing Reports Only: $",Reference!B292,".00") -> Applications Addressing Field Work: $440.00 Application Addressing Reports Only: $220.00 | U39: =IF(H41>0,IF(OR(F41="",A41=""),1,0),0) -> 0
B40: October - December | C40: =+'Part 5'!M$17 ->  | D40: April - June | E40: =+'Part 5'!S$17 -> 
B41: Work the Trust Fund Reimbursement Application Addresses | H41: =IF(D41<>"",VLOOKUP(D41,Reference!A$291:B$292,2,FALSE),0) -> 0

Sheet Part 7
A1: PART 7
A2: TREATMENT SYSTEM TRACKING FORM
A5: Current Site Name
A7: Agency Interest Number (AIN)
A9: 1. Please provide the following for groundwater or vapor recovery equipment in use at the above listed site for
A10: which reimbursement is being ,or will be, requested.
B12: Purchase | J12: Cost | P12: Vendor Invoice No. | Z12: (Invoice attached)
B13: Rental (DEQ approval only) | J13: Monthly Rate | P13: Minimum Term | V13: Months
A15: 2. Manufacturer’s Name
A16: 3. Serial Number of Equipment
A17: 4. Prior location of the unit and period of use, if previously used at another site (include AIN)
A19: 5. Brief information on the unit: (Please check appropriate method noted below)
M20: Description: | X20: =IF(F15<>"",1,0) -> 0
A21: 6. Major Components and Manufacturer's Recommendations:
B22: Motor Size (quantity and size) | M22: Carbon Filter (yes/no, size)
B23: Pump (quantity and size) | M23: Oil Capacity (in gallons)
B24: Manufacturer Recommended Oil Change Frequency | M24: Air Stripper (flow rate)
B25: Ozone Output (pounds per day)
B26: Other System Specifications
A28: 7. Period Operated (If original location, please estimate number of months of expected use at the site.)
A29: Original Location/AIN
A31: (Estimated time-frame) From | M31: Length of use
J32: (Installation Date) | R32: (Estimated Time)
A33: New Location/ AIN
A35: (Estimated time-frame) From | M35: Length of use
J36: (Installation Date) | R36: (Estimated Time)
A38: I hereby certify that all of the above information is true and correct to the best of my knowledge and I agree to
A39: notify the Trust Fund Section, in writing, indicating the specific address of the relocation of the treatment
A40: equipment as soon as possible, but prior to relocation of the equipment.
A41: RAC Name | L41: *Signature | P41: =IF(OR(CONCATENATE(K12,K13)="",U12="",F15="",I16="",CONCATENATE(J22,J23,J24,T24,T22,T23,K25,H26)="",G33="",J35="",R35=""),"MISSING INFORMATION","") -> MISSING INFORMATION
A43: Owner, Operator, or RP Name | L43: Title of Signatory
A45: Telefax Number | L45: Telephone Number
A46: * Signature is required of Owner, Operator, RP, or RAC (person purchasing unit). RAC signature is required for rental.

Sheet Part 8
A1: PART 8
A2: PURCHASE AGREEMENT FORM
A3: (TREATMENT SYSTEMS ONLY)
A5: 1. Treatment systems are defined as dual-phase vacuum extraction systems, ozone sparge systems, soil vapor extraction systems, groundwater pump and treat systems, chemical injection systems, or any other technology or equipment used in the remediation of contaminated underground storage tank sites (hereinafter referred to as “equipment”).
A9: 2. The Equipment owner is defined as the owner, operator, Responsible Party (RP), or Response Action Contractor (RAC).” (hereinafter referred to as “owner”).
A12: 3. The owner is responsible for the purchase, delivery, installation, operation, maintenance, troubleshooting, service, and repairs of the equipment as per the manufacturer’s requirements in order to maintain continued, efficient, and effective operation for the duration of corrective action at the site.
A16: 4. The owner shall place the equipment as close as possible to the area to be remediated to minimize cost the Motor Fuel Trust Fund.
A19: 5. The owner shall not use, operate, alter, or store the equipment improperly, carelessly, nor use or operate the equipment other than in the manner and use for its intended purpose. Should the equipment become damaged or rendered inoperable by such activities, the owner, at no cost to the Department, shall repair or replace the equipment within sixty (60) days and continue remediation of the site.
A24: 6. Should the owner relocate the equipment to another site prior to meeting the site-specific clean-up standards and completing the post remediation monitoring period at the original site, or without approval of the Department, the owner, at no cost to the Department, shall mobilize to the original site the same or comparable equipment within sixty (60) days and continue remediation of the site.
A29: 7. Upon completion of remediation at the original site and with prior approval from the Department, the owner shall notify the Trust Fund Section (Financial Services Division) of a pending transfer and relocation of the equipment by completing a Treatment System Tracking Form (Part 7).
A33: 8. In the event of damage to the equipment whether by accident, theft, vandalism, acts of God or third parties, including collision by a motor vehicle, the owner shall be responsible for the repair or replacement of the equipment.
A36: I agree to comply with the terms and conditions as stated above.
A38: =IF(OR(H42="",E57="",G41="VALUE DOES NOT MATCH PART 7",D56="SERIAL NUMBER DOES NOT MATCH PART 7"),"MISSING INFORMATION","") -> MISSING INFORMATION
A39: Signature of system purchaser/renter (Owner, Operator, RP, or RAC) Date Signed
A40: (Circle: Owner, Operator, RP, or RAC)
G41: =IF(AND(H42>0,H42<>'Part 7'!K12),"VALUE DOES NOT MATCH PART 7","") -> 
K42: =IF(H42>0,1,0) -> 0
A43: Typed or Printed Name of Owner, Operator, RP, or RAC Cost of Unit
A44: (Circle: Owner, Operator, RP, or RAC)
A47: Mailing Address of Owner, Operator, RP, or RAC (above)
A49: Phone No. | F49: Telefax No.
A51: Site Name | B51: =IF('Part 1'!A20>0,'Part 1'!A20,"") -> 
A53: Agency Interest No.
A55: Equipment Type | F55: Description
D56: =IF(E57='Part 7'!I16,"","SERIAL NUMBER DOES NOT MATCH PART 7") -> 
A57: Equipment Serial Number

Sheet Reference (hidden)
A1: Costing Categories: | B1: Drilling & P&A Costing category options | D1: Non-impacted and treated soils
A2: Emergency/Initial | B2: Emergency/Initial | D2: Emergency/Initial
A3: Investigation | B3: Investigation | D3: Corrective Action Plan
A4: Interim Monitoring | B4: Corrective Action Plan
A5: Corrective Action Plan
A6: Report Preparation
A8: Title | B8: Rate | C8: Max Qty (Hrs)
A9: **PRINCIPAL | B9: 161 | C9: 10
A10: *SENIOR TOXICOLOGIST | B10: 128 | C10: 250
A11: *SENIOR ENGINEER | B11: 128 | C11: 250
A12: *SENIOR GEOLOGIST | B12: 128 | C12: 250
A13: *PROJECT MANAGER | B13: 128 | C13: 250
A14: ENGINEER | B14: 92 | C14: 250
A15: GEOLOGIST | B15: 92 | C15: 250
A16: TOXICOLOGIST | B16: 92 | C16: 250
A17: *PROJECT COORDINATOR | B17: 92 | C17: 250
A18: DRAFTSMAN (Includes CAD equipment) | B18: 84 | C18: 250
A19: ENVIRONMENTAL SPECIALIST | B19: 84 | C19: 250
A20: FOREMAN | B20: 84 | C20: 250
A21: OPERATOR | B21: 58 | C21: 250
A22: CLERICAL | B22: 45 | C22: 250
A23: LABORER | B23: 45 | C23: 250
A26: EQUIPMENT | B26: SHORT-TERM RATE
B27: HOURLY | C27: DAILY | D27: WEEKLY | E27: Error
A28: AIR COMPRESSOR - 100 cfm to 249 cfm | B28: 8 | C28: 64 | D28: 192.2 | E28: NA
A29: AIR COMPRESSOR - 250 cfm to 375 cfm | B29: 12 | C29: 96.1 | D29: 288.3 | E29: NA
A30: BACKHOE (UP TO 36” BUCKET) | B30: 44 | C30: 352.3 | D30: 1057.1 | E30: NA
A31: BACKHOE (Including and OVER 36” BUCKET) | B31: 56.7 | C31: 452.8 | D31: 1358.3 | E31: NA
A32: BOBCAT/SKID STEER LOADER/FRONT-END LOADER w/ BREAKER | B32: 28.8 | C32: 230.7 | D32: 691.9 | E32: NA
A33: BULLDOZER | B33: 104.9 | C33: 839.2 | D33: 2517.7 | E33: NA
A34: COMBUSTIBLE GAS INDICATOR | B34: 4.8 | C34: 38.4 | D34: 115.3 | E34: NA
A35: COMPACTOR | B35: 36.1 | C35: 288.3 | D35: 864.8 | E35: NA | G35: =CONCATENATE("Applications Addressing Field Work: $",Reference!B291,".00 Application Addressing Reports Only: $") -> Applications Addressing Field Work: $440.00 Application Addressing Reports Only: $
A36: CONCRETE CORE DRILL | B36: 8.6 | C36: 69.2 | D36: 207.6 | E36: NA
A37: CRANE TRUCK | B37: 57.6 | C37: 461.2 | D37: 1383.8 | E37: NA
A38: DATA LOGGER | B38: 24 | C38: 192.2 | D38: 576.6 | E38: NA
A39: DIGITAL MANOMETER | B39: 2.4 | C39: 19.3 | D39: 57.6 | E39: NA
A40: DISSOLVED OXYGEN METER | B40: 4.1 | C40: 32 | D40: 96.1 | E40: NA
A41: DUMP TRUCK (7-10 YARDS) | B41: 38.4 | C41: NA | D41: NA | E41: NA
A42: DUMP TRUCK (11-20 YARDS) | B42: 51.3 | C42: NA | D42: NA | E42: NA
A43: DUMP TRUCK (OVER 20 YARDS) | B43: 64 | C43: NA | D43: NA | E43: NA
A44: ELECTRIC GENERATOR | B44: 8 | C44: 64 | D44: 192.2 | E44: NA
A45: EXCAVATORS | B45: 96.1 | C45: 768.8 | D45: 2306.3 | E45: NA
A46: EXPLOSIMETER * | B46: 4.8 | C46: 38.4 | D46: 115.3 | E46: NA
A47: GAS DETECTOR * | B47: 4.1 | C47: 32 | D47: 96.1 | E47: NA
A48: GOOSENECK TRAILER | B48: 16.1 | C48: 128.2 | D48: 384.3 | E48: NA
A49: HYDROCARBON ANALYZER (FID, PID, HNU, OVA, TVA, ETC. * | B49: 12 | C49: 96.1 | D49: 288.3 | E49: NA
A50: JACKHAMMER | B50: 4.8 | C50: 38.4 | D50: 115.3 | E50: NA
A51: LOWBOY TRAILER (INCLUDES TRUCK) | B51: 28.8 | C51: 230.7 | D51: 691.9 | E51: NA
A52: OIL/WATER INTERFACE PROBE * | B52: 5.6 | C52: 44.9 | D52: 134.5 | E52: NA
A53: pH CONDUCTIVITY METER * | B53: 4.1 | C53: 32 | D53: 96.1 | E53: NA
A54: PORTABLE GAS CHROMATOGRAPHY | B54: 24 | C54: 192.2 | D54: 576.6 | E54: NA
A55: PUMPS (when not used in conjunction with a system) | B55: 4.8 | C55: 38.4 | D55: 115.3 | E55: NA
A56: TEMPERATURE PROBE * | B56: 2.4 | C56: 19.3 | D56: 57.6 | E56: NA
A57: THERMAL ANEMOMETER * | B57: 2.4 | C57: 19.3 | D57: 57.6 | E57: NA
A58: TILLER (HAND) | B58: 4.1 | C58: 32 | D58: 96.1 | E58: NA
A59: TILLER (ROTARY w/ SLIP CLUTCH) | B59: 12 | C59: 96.1 | D59: 288.3 | E59: NA
A60: TRACKHOE (UP TO & INCLUDING 200 HP) | B60: 81.7 | C60: 653.4 | D60: 1960.3 | E60: NA
A61: TRACKHOE (OVER 200 HP) | B61: 163.4 | C61: 1306.9 | D61: 3920.7 | E61: NA
A62: TRACTOR WITH TRAILER, FRONT END LOADER & BOX BLADE OR HITCH | B62: 40.8 | C62: 326.7 | D62: 980.2 | E62: NA
A63: TRANSDUCER | B63: 32 | C63: 256.3 | D63: 768.8 | E63: NA
A64: SOIL/WATER HOLDING CONTAINER (Skid or RAC tank) | B64: 10.5 | C64: 83.3 | D64: 358.7 | E64: NA
A65: VACUUM TRUCK(Bobtail) – 39 HP and below | B65: 108.9 | C65: 871.3 | D65: 2613.8 | E65: NA
A66: VACUUM TRUCK – 40 HP to 150 HP | B66: 140.9 | C66: 1127.5 | D66: 3382.6 | E66: NA
A67: VACUUM TRUCK - over 150 HP | B67: 197 | C67: 1576 | D67: 4727.9 | E67: NA
A68: WATER LEVEL INDICATOR * | B68: 2.4 | C68: 19.3 | D68: 57.6 | E68: NA
A69: PURCHASE - TREATMENT UNIT | B69: 0 | C69: 0 | D69: 0 | E69: NA
A70: RENTAL - TREATMENT UNIT | B70: 0 | C70: 0 | D70: 0 | E70: NA
A71: Other - Not listed (describe in Activity Description section) | B71: 0 | C71: 0 | D71: 0 | E71: NA
A74: Mileage Unit Rate | B74: 2.3
A76: Travel Activity Type
A77: Well Groundwater Sampling
A78: Treatment Unit, O&M
A79: Free Product Recovery (Handbail of Wells)
A80: Free Product Recovery (VAC event)
A81: Treatment Unit, O&M
A82: Discharge Sampling
A83: Drilling, P/A Wells, Geoprobe
A84: Excavation
A85: System Installation
A86: Major Renovation
A87: Major Repair
A88: Soil Treatment
A89: Site Investigation
A90: Soil Confirmation Sampling
A91: Multiple Site Visits
A92: Other or Non-Unit Price Activity
A94: Drilling - P&A - Type of Activity
A95: Chemical Injection
A96: Boring - Direct Push | B96: 1
A97: Boring - Drilling | B97: 2
A98: Monitoring Well | B98: 3
A99: Extraction Well
A100: Horizontal Recovery Well
A101: Recovery Well
A102: Sparge Well
A103: Temporary Well
A105: Well Description | B105: Well diameter (inches) | C105: Sampled (Yes/No) | D105: Manhole cover | E105: Rate ($/ft) | F105: Estimated Well Auger Size (inches) | G105: Overdrill & Grout (P&A-1) | H105: Pull Casing & Grout (P&A-2) | I105: Grout only (P&A-3)
A106: Direct Push, 2 inch, sampled | B106: 2 | C106: Yes | D106: 0 | E106: 80 | F106: 2.5 | G106: 0 | H106: 0 | I106: 0
A107: Direct Push, 2 inch, non-sampled | B107: 2 | C107: No | D107: 0 | E107: =80-15 -> 65 | F107: 2.5 | G107: 0 | H107: 0 | I107: 0
A108: Boring, 2 inch, sampled | B108: 2 | C108: Yes | D108: 0 | E108: 80 | F108: 8.25 | G108: 0 | H108: 0 | I108: 0
A109: Boring, 2 inch, non-sampled | B109: 2 | C109: No | D109: 0 | E109: 65 | F109: 8.25 | G109: 0 | H109: 0 | I109: 0
A110: Boring, 4 inch, sampled | B110: 4 | C110: Yes | D110: 0 | E110: 87 | F110: 10.25 | G110: 0 | H110: 0 | I110: 0
A111: Boring, 4 inch, non-sampled | B111: 4 | C111: No | D111: 0 | E111: =87-15 -> 72 | F111: 10.25 | G111: 0 | H111: 0 | I111: 0
A112: Monitor well, 2 inch, sampled | B112: 2 | C112: Yes | D112: 1 | E112: 116 | F112: 8.25 | G112: 79 | H112: 65 | I112: 36
A113: Monitor well, 2 inch, non-sampled | B113: 2 | C113: No | D113: 1 | E113: =116-15 -> 101 | F113: 8.25 | G113: 79 | H113: 65 | I113: 36
A114: Monitor/Recovery well, 4 inch, sampled | B114: 4 | C114: Yes | D114: 1 | E114: 141 | F114: 10.25 | G114: 108 | H114: 67 | I114: 43
A115: Monitor/Recovery well, 4 inch, non-sampled | B115: 4 | C115: No | D115: 1 | E115: =141-15 -> 126 | F115: 10.25 | G115: 108 | H115: 67 | I115: 43
A116: Horizontal Recovery well, 4 inch, sampled | B116: 4 | C116: No | D116: 1 | E116: 168 | F116: 10.25 | G116: 116 | H116: 86 | I116: 43
A117: Ozone Injection well, 2 inch or less | B117: 2 | C117: No | D117: 1 | E117: 85 | F117: 8.25 | G117: 79 | H117: 65 | I117: 36
A119: Direct Push or Drilling Activity Type | B119: Minimum rates ($/day)
A120: DRILLING | B120: 4501
A121: DIRECT PUSH | B121: 3544
A122: CHEMICAL INJECTION | B122: 5125
A123: P&A | B123: 2156
A126: Parameter | B126: Cost per sample | C126: Method
A127: Atterberg Limits (LL, PLI, PI) | B127: 56 | C127: ASTM D4318
A128: BTEX | B128: 55 | C128: (8021B, 602,603)
A129: BTEX/MTBE | B129: 84 | C129: 8260B
A130: BTEX/TPH-G | B130: 70 | C130: 8021B/8015
A131: Dry Density-Calculated/Unit Wt Determination | B131: 22.5 | C131: NA
A132: EPH Analysis | B132: 160 | C132: MA DEP
A133: Hydraulic Conductivity - Constant Head | B133: 168 | C133: ASTM D2434
A134: Hydraulic Conductivity - Falling Head | B134: 313.5 | C134: ASTM D5084
A135: Lead | B135: 27 | C135: 6010B or 200.7
A136: Moisture Content | B136: 8 | C136: ASTM D2216
A137: Moisture Content/Volumetric Content | B137: 8 | C137: ASTM D2216
A138: MTBE | B138: 84 | C138: 8260B
A139: Organic matter | B139: 45 | C139: ASTM D2974
A140: Organic Matter/Fractional Organic Carbon | B140: 45 | C140: ASTM D2974
A141: PAH - 8270 | B141: 200 | C141: 8270
A142: PAH - 8310 | B142: 135 | C142: 8310
A143: Particle Size Analysis – Hydrometer | B143: 106.5 | C143: ASTM 422
A144: Particle Size Analysis – Sieve | B144: 56 | C144: ASTM 422
A145: RCRA Metals | B145: 135 | C145: 6010
A146: Soil pH | B146: 28 | C146: ASTM D4972
A147: Specific Gravity | B147: 100 | C147: ASTM D854
A148: SPLP Analysis | B148: 40 | C148: 1312
A149: TCLP | B149: 40 | C149: 1311
A150: TOC | B150: 30 | C150: 415.1 or 415.2
A151: Total Porosity - Calculated | B151: 62
A152: TPH-D (RECAP DRO) | B152: 65 | C152: 8015
A153: TPH-G (RECAP GRO) | B153: 45 | C153: 8015
A154: TPH-O | B154: 65 | C154: 8015
A155: Triaxial Permeability - Falling Head | B155: 313.5 | C155: ASTM D5084
A156: Unified Soil Classification System | B156: 45 | C156: ASTM D2487
A157: VPH Analysis (TPH-G Fractions) | B157: 135 | C157: MA DEP
A158: Combination - BTEX/MTBE, VPH Analysis (TPH-G Fractions) | B158: 219 | C158: 8260B, MA DEP
A159: Combination - BTEX, VPH Analysis (TPH-G Fractions) | B159: 190 | C159: (8021B, 602,603) , MA DEP
A160: Combination - MTBE, VPH Analysis (TPH-G Fractions) | B160: 219 | C160: 8260B, MA DEP
A161: Combination - BTEX, Lead, VPH Analysis (TPH-G Fractions) | B161: 217 | C161: (8021B, 602,603) , 6010B or 200.7, MA DEP
A162: Combination - BTEX/MTBE, Lead, VPH Analysis (TPH-G Fractions) | B162: 246 | C162: 8260B, 6010B or 200.7, MA DEP
A163: Combination - BTEX, TOC, Lead | B163: 112 | C163: (8021B, 602,603) , 415.1 or 415.2, 6010B or 200.7
A164: Combination - EPH Analysis, PAH - 8310 | B164: 295 | C164: MA DEP, 8310
A165: Combination - EPH Analysis, PAH - 8310, RCRA Metals | B165: 430 | C165: MA DEP, 8310, 6010
A166: Combination - SPLP Analysis, VPH Analysis (TPH-G Fractions) | B166: 175 | C166: 1312, MA DEP
A167: Combination - SPLP Analysis, EPH Analysis | B167: 200 | C167: 1312, MA DEP
A168: RAC Analysis Markup | B168: 0 | C168: NA
A169: Lab Rush Charges | B169: 0 | C169: NA
A171: Aquifer Test | B171: Cost
A172: 1st well | B172: 1375
A173: Subsequent wells | B173: 385
A175: Activity Description | B175: Initial | C175: Other
A176: Groundwater Sampling | B176: 720 | C176: 224
A177: Free Product recovery | B177: 218 | C177: 72
A178: Gauging wells | B178: 28 | C178: 28
A179: Discharge Sampling Event | B179: 289
A180: Mob/Demob | B180: 352
A181: Obtaining offsite access | B181: 505
A184: Bid Package Prep
B185: $0.00 - $1,999.99 | C185: $2,000.00 - $9,999.99 | D185: $10,000.00 and greater | E185: NA
A186: Work Value Based | B186: 0 | C186: 145 | D186: 370
A187: Treatment System Purchase | B187: 720
A188: Chemical Injection Events | B188: 720
A189: Used Treatment System Sale | B189: 0
A190: Treatment System Installation | B190: 2156
A192: LDEQ Permits
A193: Air Exemption | B193: 1731
A194: Air Permit (Small Source) | B194: 5766
A195: LPDES Water | B195: 2156
A197: Groundwater Monitoring Reports
A198: Type | B198: Treatment (Yes/No) | C198: Initial/ Subsequent | D198: Concatenate | E198: Cost
A199: Annual | B199: Yes | C199: Initial | D199: =CONCATENATE(A199,B199,C199) -> AnnualYesInitial | E199: 3949
A200: Annual | B200: Yes | C200: Subsequent | D200: AnnualYesSubsequent | E200: 3592
A201: Annual | B201: No | C201: Initial | D201: AnnualNoInitial | E201: 2514
A202: Annual | B202: No | C202: Subsequent | D202: AnnualNoSubsequent | E202: 2156
A203: Semi-annual | B203: Yes | C203: Initial | D203: Semi-annualYesInitial | E203: 3949
A204: Semi-annual | B204: Yes | C204: Subsequent | D204: Semi-annualYesSubsequent | E204: 3592
A205: Semi-annual | B205: No | C205: Initial | D205: Semi-annualNoInitial | E205: 2514
A206: Semi-annual | B206: No | C206: Subsequent | D206: Semi-annualNoSubsequent | E206: 2156
A207: Quarterly | B207: Yes | C207: Initial | D207: QuarterlyYesInitial | E207: 3592
A208: Quarterly | B208: Yes | C208: Subsequent | D208: QuarterlyYesSubsequent | E208: 3227
A209: Quarterly | B209: No | C209: Initial | D209: QuarterlyNoInitial | E209: 2156
A210: Quarterly | B210: No | C210: Subsequent | D210: QuarterlyNoSubsequent | E210: 1793
A212: Generic Reports
A213: Report type | B213: Cost
A214: System Design and Planning | B214: 5766
A215: Remediation Oversight Group Meeting Preparation and Attendance | B215: 865
A219: O&M rates
A220: Status | B220: Unit Type | C220: Frequency | D220: Concatenate | E220: Rates
A221: Active | B221: Type 1 | C221: Weekly | D221: Active, Type 1, Weekly | E221: 462
... 91 more rows

Sheet ExcData (hidden)
A2: TONNAGE 1 - 99 | I2: Previous Rates - $/ton | J2: % increase
A4: Minimum Price | F4: =ROUND(I4*(1+J4),2) -> 11385.92 | I4: 9900.8 | J4: 0.15
A5: Price / Ton (1 - 99 tons) | F5: =ROUND(I5*(1+J5),2) -> 133.95 | I5: 116.48 | J5: 0.15
E7: VARIABLE | I7: Previous Rates - $/ton | J7: % increase
A8: Tonnage Ranges | D8: Range Amounts | E8: Price / Ton | F8: Increments
A9: 100 | B9: - | C9: 250 | D9: =C9-A9 -> 150 | E9: =ROUND(I9*(1+J9),2) -> 247.81 | F9: =(E9-E10)/D9 -> 0.3304 | I9: 215.49 | J9: 0.15
A10: 251 | B10: - | C10: 500 | D10: =C10-C9 -> 250 | E10: =ROUND(I10*(1+J10),2) -> 198.25 | F10: =(E10-E11)/D10 -> 0.13928 | H10: =E9-E10 -> 49.56 | I10: 172.39 | J10: 0.15
A11: 501 | B11: - | C11: 1000 | D11: =C11-C10 -> 500 | E11: 163.43 | F11: =(E11-E12)/D11 -> 0.05896 | H11: =E10-E11 -> 34.82 | I11: 142.11 | J11: 0.15
A12: 1001 | B12: - | C12: 2000 | D12: =C12-C11 -> 1000 | E12: 133.95 | F12: =(E12-E13)/D12 -> 0.0134 | H12: =E11-E12 -> 29.48 | I12: 116.48 | J12: 0.15
A13: 2001 | B13: < | E13: 120.55 | H13: =E12-E13 -> 13.4 | I13: 104.83 | J13: 0.15
D17: TONS | E17: PRICE / TON | F17: TOTAL
D18: 1 | E18: =F18/D18 -> 11519.87 | F18: =+$F$4+($F$5*D18) -> 11519.87
D19: 2 | E19: 5826.91 | F19: 11653.82
D20: 3 | E20: 3929.256667 | F20: 11787.77
D21: 4 | E21: 2980.43 | F21: 11921.72
D22: 5 | E22: 2411.134 | F22: 12055.67
D23: 6 | E23: 2031.603333 | F23: 12189.62
D24: 7 | E24: 1760.51 | F24: 12323.57
D25: 8 | E25: 1557.19 | F25: 12457.52
D26: 9 | E26: 1399.052222 | F26: 12591.47
D27: 10 | E27: 1272.542 | F27: 12725.42
D28: 11 | E28: 1169.033636 | F28: 12859.37
D29: 12 | E29: 1082.776667 | F29: 12993.32
D30: 13 | E30: 1009.79 | F30: 13127.27
D31: 14 | E31: 947.23 | F31: 13261.22
D32: 15 | E32: 893.0113333 | F32: 13395.17
D33: 16 | E33: 845.57 | F33: 13529.12
D34: 17 | E34: 803.71 | F34: 13663.07
D35: 18 | E35: 766.5011111 | F35: 13797.02
D36: 19 | E36: 733.2089474 | F36: 13930.97
D37: 20 | E37: 703.246 | F37: 14064.92
D38: 21 | E38: 676.1366667 | F38: 14198.87
D39: 22 | E39: 651.4918182 | F39: 14332.82
D40: 23 | E40: 628.99 | F40: 14466.77
D41: 24 | E41: 608.3633333 | F41: 14600.72
D42: 25 | E42: 589.3868 | F42: 14734.67
D43: 26 | E43: 571.87 | F43: 14868.62
D44: 27 | E44: 555.6507407 | F44: 15002.57
D45: 28 | E45: 540.59 | F45: 15136.52
D46: 29 | E46: 526.567931 | F46: 15270.47
D47: 30 | E47: 513.4806667 | F47: 15404.42
D48: 31 | E48: 501.2377419 | F48: 15538.37
D49: 32 | E49: 489.76 | F49: 15672.32
D50: 33 | E50: 478.9778788 | F50: 15806.27
D51: 34 | E51: 468.83 | F51: 15940.22
D52: 35 | E52: 459.262 | F52: 16074.17
D53: 36 | E53: 450.2255556 | F53: 16208.12
D54: 37 | E54: 441.6775676 | F54: 16342.07
D55: 38 | E55: 433.5794737 | F55: 16476.02
D56: 39 | E56: 425.8966667 | F56: 16609.97
D57: 40 | E57: 418.598 | F57: 16743.92
D58: 41 | E58: 411.6553659 | F58: 16877.87
D59: 42 | E59: 405.0433333 | F59: 17011.82
D60: 43 | E60: 398.7388372 | F60: 17145.77
D61: 44 | E61: 392.7209091 | F61: 17279.72
D62: 45 | E62: 386.9704444 | F62: 17413.67
D63: 46 | E63: 381.47 | F63: 17547.62
D64: 47 | E64: 376.203617 | F64: 17681.57
D65: 48 | E65: 371.1566667 | F65: 17815.52
D66: 49 | E66: 366.3157143 | F66: 17949.47
D67: 50 | E67: 361.6684 | F67: 18083.42
D68: 51 | E68: 357.2033333 | F68: 18217.37
D69: 52 | E69: 352.91 | F69: 18351.32
D70: 53 | E70: 348.7786792 | F70: 18485.27
D71: 54 | E71: 344.8003704 | F71: 18619.22
D72: 55 | E72: 340.9667273 | F72: 18753.17
D73: 56 | E73: 337.27 | F73: 18887.12
D74: 57 | E74: 333.7029825 | F74: 19021.07
D75: 58 | E75: 330.2589655 | F75: 19155.02
D76: 59 | E76: 326.9316949 | F76: 19288.97
D77: 60 | E77: 323.7153333 | F77: 19422.92
D78: 61 | E78: 320.6044262 | F78: 19556.87
D79: 62 | E79: 317.593871 | F79: 19690.82
D80: 63 | E80: 314.6788889 | F80: 19824.77
D81: 64 | E81: 311.855 | F81: 19958.72
D82: 65 | E82: =F82/D82 -> 309.118 | F82: =+$F$4+($F$5*D82) -> 20092.67
D83: 66 | E83: 306.4639394 | F83: 20226.62
D84: 67 | E84: 303.8891045 | F84: 20360.57
D85: 68 | E85: 301.39 | F85: 20494.52
D86: 69 | E86: 298.9633333 | F86: 20628.47
D87: 70 | E87: 296.606 | F87: 20762.42
D88: 71 | E88: 294.3150704 | F88: 20896.37
D89: 72 | E89: 292.0877778 | F89: 21030.32
D90: 73 | E90: 289.9215068 | F90: 21164.27
D91: 74 | E91: 287.8137838 | F91: 21298.22
D92: 75 | E92: 285.7622667 | F92: 21432.17
D93: 76 | E93: 283.7647368 | F93: 21566.12
D94: 77 | E94: 281.8190909 | F94: 21700.07
D95: 78 | E95: 279.9233333 | F95: 21834.02
D96: 79 | E96: 278.0755696 | F96: 21967.97
D97: 80 | E97: 276.274 | F97: 22101.92
D98: 81 | E98: 274.5169136 | F98: 22235.87
D99: 82 | E99: 272.8026829 | F99: 22369.82
D100: 83 | E100: 271.129759 | F100: 22503.77
D101: 84 | E101: 269.4966667 | F101: 22637.72
D102: 85 | E102: 267.902 | F102: 22771.67
D103: 86 | E103: 266.3444186 | F103: 22905.62
D104: 87 | E104: 264.8226437 | F104: 23039.57
D105: 88 | E105: 263.3354545 | F105: 23173.52
D106: 89 | E106: 261.8816854 | F106: 23307.47
D107: 90 | E107: 260.4602222 | F107: 23441.42
D108: 91 | E108: 259.07 | F108: 23575.37
D109: 92 | E109: 257.71 | F109: 23709.32
D110: 93 | E110: 256.3792473 | F110: 23843.27
D111: 94 | E111: 255.0768085 | F111: 23977.22
D112: 95 | E112: 253.8017895 | F112: 24111.17
D113: 96 | E113: 252.5533333 | F113: 24245.12
D114: 97 | E114: 251.3306186 | F114: 24379.07
D115: 98 | E115: 250.1328571 | F115: 24513.02
D116: 99 | E116: 248.9592929 | F116: 24646.97
D117: 100 | E117: =E9 -> 247.81 | F117: =E117*D117 -> 24781
D118: 101 | E118: =E117-$F$9 -> 247.4796 | F118: 24995.4396
D119: 102 | E119: 247.1492 | F119: 25209.2184
D120: 103 | E120: 246.8188 | F120: 25422.3364
D121: 104 | E121: 246.4884 | F121: 25634.7936
D122: 105 | E122: 246.158 | F122: 25846.59
D123: 106 | E123: 245.8276 | F123: 26057.7256
D124: 107 | E124: 245.4972 | F124: 26268.2004
D125: 108 | E125: 245.1668 | F125: 26478.0144
D126: 109 | E126: 244.8364 | F126: 26687.1676
D127: 110 | E127: 244.506 | F127: 26895.66
D128: 111 | E128: 244.1756 | F128: 27103.4916
D129: 112 | E129: 243.8452 | F129: 27310.6624
D130: 113 | E130: 243.5148 | F130: 27517.1724
D131: 114 | E131: 243.1844 | F131: 27723.0216
D132: 115 | E132: 242.854 | F132: 27928.21
D133: 116 | E133: 242.5236 | F133: 28132.7376
D134: 117 | E134: 242.1932 | F134: 28336.6044
D135: 118 | E135: 241.8628 | F135: 28539.8104
D136: 119 | E136: 241.5324 | F136: 28742.3556
D137: 120 | E137: 241.202 | F137: 28944.24
D138: 121 | E138: 240.8716 | F138: 29145.4636
D139: 122 | E139: 240.5412 | F139: 29346.0264
D140: 123 | E140: 240.2108 | F140: 29545.9284
D141: 124 | E141: 239.8804 | F141: 29745.1696
D142: 125 | E142: 239.55 | F142: 29943.75
D143: 126 | E143: 239.2196 | F143: 30141.6696
D144: 127 | E144: 238.8892 | F144: 30338.9284
D145: 128 | E145: 238.5588 | F145: 30535.5264
D146: 129 | E146: 238.2284 | F146: 30731.4636
D147: 130 | E147: 237.898 | F147: 30926.74
D148: 131 | E148: 237.5676 | F148: 31121.3556
D149: 132 | E149: 237.2372 | F149: 31315.3104
D150: 133 | E150: 236.9068 | F150: 31508.6044
D151: 134 | E151: 236.5764 | F151: 31701.2376
D152: 135 | E152: 236.246 | F152: 31893.21
D153: 136 | E153: 235.9156 | F153: 32084.5216
D154: 137 | E154: 235.5852 | F154: 32275.1724
D155: 138 | E155: 235.2548 | F155: 32465.1624
D156: 139 | E156: 234.9244 | F156: 32654.4916
D157: 140 | E157: 234.594 | F157: 32843.16
D158: 141 | E158: 234.2636 | F158: 33031.1676
D159: 142 | E159: 233.9332 | F159: 33218.5144
D160: 143 | E160: 233.6028 | F160: 33405.2004
D161: 144 | E161: 233.2724 | F161: 33591.2256
D162: 145 | E162: 232.942 | F162: 33776.59
D163: 146 | E163: 232.6116 | F163: 33961.2936
D164: 147 | E164: 232.2812 | F164: 34145.3364
D165: 148 | E165: 231.9508 | F165: 34328.7184
D166: 149 | E166: 231.6204 | F166: 34511.4396
D167: 150 | E167: 231.29 | F167: 34693.5
D168: 151 | E168: 230.9596 | F168: 34874.8996
D169: 152 | E169: 230.6292 | F169: 35055.6384
D170: 153 | E170: 230.2988 | F170: 35235.7164
D171: 154 | E171: 229.9684 | F171: 35415.1336
D172: 155 | E172: 229.638 | F172: 35593.89
D173: 156 | E173: 229.3076 | F173: 35771.9856
D174: 157 | E174: 228.9772 | F174: 35949.4204
D175: 158 | E175: 228.6468 | F175: 36126.1944
D176: 159 | E176: 228.3164 | F176: 36302.3076
D177: 160 | E177: 227.986 | F177: 36477.76
D178: 161 | E178: 227.6556 | F178: 36652.5516
D179: 162 | E179: 227.3252 | F179: 36826.6824
D180: 163 | E180: 226.9948 | F180: 37000.1524
D181: 164 | E181: 226.6644 | F181: =E181*D181 -> 37172.9616
D182: 165 | E182: =E181-$F$9 -> 226.334 | F182: 37345.11
D183: 166 | E183: 226.0036 | F183: 37516.5976
D184: 167 | E184: 225.6732 | F184: 37687.4244
D185: 168 | E185: 225.3428 | F185: 37857.5904
D186: 169 | E186: 225.0124 | F186: 38027.0956
D187: 170 | E187: 224.682 | F187: 38195.94
D188: 171 | E188: 224.3516 | F188: 38364.1236
D189: 172 | E189: 224.0212 | F189: 38531.6464
D190: 173 | E190: 223.6908 | F190: 38698.5084
D191: 174 | E191: 223.3604 | F191: 38864.7096
D192: 175 | E192: 223.03 | F192: 39030.25
D193: 176 | E193: 222.6996 | F193: 39195.1296
D194: 177 | E194: 222.3692 | F194: 39359.3484
D195: 178 | E195: 222.0388 | F195: 39522.9064
D196: 179 | E196: 221.7084 | F196: 39685.8036
D197: 180 | E197: 221.378 | F197: 39848.04
D198: 181 | E198: 221.0476 | F198: 40009.6156
D199: 182 | E199: 220.7172 | F199: 40170.5304
D200: 183 | E200: 220.3868 | F200: 40330.7844
D201: 184 | E201: 220.0564 | F201: 40490.3776
D202: 185 | E202: 219.726 | F202: 40649.31
D203: 186 | E203: 219.3956 | F203: 40807.5816
D204: 187 | E204: 219.0652 | F204: 40965.1924
D205: 188 | E205: 218.7348 | F205: 41122.1424
D206: 189 | E206: 218.4044 | F206: 41278.4316
... 4812 more rows

Sheet Print Sheets
A1: Print Multiple Worksheets
G10: Step 2 -Select the worksheets needing to be printed from the ListBox on the left. You can select multiple worksheets by holding down the CTRL key and left clicking on the required worksheets.

Sheet Actions to correct (hidden)
